{"text_format":"1","workbook":"xlsx","n_sheets":14,"sheets":["CUTTING LIST","Qbiss Screen MW elements","Longitudinal L-corner elements ","Transversal L-corner elements","U-corner elements","3D diagonal-cut corner element","3D edge-cut corner elements","Accessories","Fixing material data","Transport","Data 3 Accessories","UPDATES","Data 1","Data 2"],"not_rendered":{"charts":0,"images":128,"macros":1,"external_links":0,"defined_names":234,"comments":0,"pivot_tables":0},"unopened":[],"bounds":{"document_bytes":16777216,"sheet_cells":100000,"rows_first":2000,"rows_last":500,"rows_between":2000,"halvings":0,"cell_chars":16384,"cell_head_chars":4096},"cells_cut":0,"cells_raw":0,"read":"whole","date_system":"1900"}

{"sheet":"CUTTING LIST","index":0,"n_rows":47,"n_cols":14,"rows_kept":47,"cut":false,"hidden":false,"merged":[[1,2,2,9],[9,0,9,1],[10,0,10,1],[43,4,43,6],[32,9,32,10],[32,0,32,2],[22,0,22,2],[32,4,32,7],[46,0,46,13]]}
[null,null,null,null,null,null,null,null,null,null,null,"Date last saved:",null,{"$f":"ProfessorExcelLastSaveDate()","v":"2021-02-25T14:32:22"}]
[null,null,"INTERACTIVE CUTTING LIST",null,null,null,null,null,null,null,null,"Last saved by:",null,{"$f":"Lastauthor()","v":"Slanšek Matic"}]
[null,null,null,null,null,null,null,null,null,null,null,"Cutting list number:",null,"Insert"]
[null,null,null,null,null,null,null,null,"by Matic Slanšek",null,null,"Revision:",null,"Insert"]
[null,null,null,"Required fields"]
[]
[]
[]
[]
["Project name:",null,"Insert text"]
["Customer name:",null,"Insert text"]
["Customer order no:",null,"Insert text"]
["Certificate requirement:",null,"None"]
[]
[]
[]
[]
[]
[]
[]
[]
[]
["Qbiss Screen MW elements"]
[]
[]
[]
[]
[]
[]
[]
[]
[]
["Longitudinal L-corner elements",null,null,null,"Transversal L-corner elements",null,null,null,null,"U-corner elements"]
[]
[]
[]
[]
[]
[]
[]
[]
[]
[]
[null,null,null,null,"Transport"]
[null,"Accessories"]
[]
["Disclaimer: The main and only purpose of this document is to provide cutting list table with integrated restrictions to external designers. Trimo Group holds full copyrights on the information and details provided in this document. Professional care has been taken to ensure that information/details are accurate, correct, completed and not misleading, however Trimo, including its subsidiaries, does not accept responsibility or liability for errors or information, which is found to be misleading. Information/details in this document are for general purposes only. Use of it is on your own initiative and responsibility for compliance with local laws. In no event, will Trimo be liable for any loss or damage including without limitation, indirect orconsequential loss or damage, or any loss or damage whatsoever arising from loss profits arising out of or in connection with the use of this document. Any equation modification of this document or instuction text is stricty prohibited. All information issued by Trimo Group is subject to continuous development and information/details contained in this document are current at date of issue. It is user`s responsibility to obtain most up-to-date information from Trimo when information/details are used for any specific project. The last version of the document is available on www.trimo-group.com. Latest version of published document in English language prevails over other translated language documents."]

{"sheet":"Qbiss Screen MW elements","index":1,"n_rows":106,"n_cols":38,"rows_kept":106,"cut":false,"hidden":false,"merged":[[21,18,22,18],[21,2,22,2],[21,4,21,6],[21,7,21,10],[21,17,22,17],[21,3,22,3],[2,17,2,18],[4,17,4,18],[5,17,5,18],[3,17,3,18],[5,15,5,16],[4,15,4,16],[3,15,3,16],[2,15,2,16],[34,1,34,2],[21,19,22,19],[3,21,4,22],[0,0,0,18],[21,1,22,1],[5,8,5,10],[7,0,7,3],[19,0,19,17],[20,4,20,6],[9,0,9,1],[21,11,21,14],[21,15,22,15],[2,3,2,14],[4,3,4,14],[3,3,3,14],[30,1,33,2]]}
["Qbiss Screen MW Cutting list for rectangular elements",null,null,null,null,null,null,null,null,null,null,null,null,null,null,null,null,null,null,null,null,null,null,null,null,null,"INSTRUCTIONS"]
[null,null,null,null,null,null,null,null,null,null,null,null,null,null,null,null,null,null,null,null,null,null,null,null,null,null,"Follow steps"]
[null,"Project name:",null,{"$f":"IF('CUTTING LIST'!C10=\"INSERT TEXT\",\"Insert text on first page\",'CUTTING LIST'!C10)","v":"Insert text on first page"},null,null,null,null,null,null,null,null,null,null,null,"Date last saved:",null,{"$f":"'CUTTING LIST'!N1","v":"2021-02-25T14:32:22"},null,null,null,null,null,null,null,null,"1 PHASE / FACADE / BUILDING","Mark positioning of the element according to design shop drawings"]
[null,"Customer name:",null,{"$f":"IF('CUTTING LIST'!C11=\"INSERT TEXT\",\"Insert text on first page\",'CUTTING LIST'!C11)","v":"Insert text on first page"},null,null,null,null,null,null,null,null,null,null,null,"Last saved by:",null,{"$f":"'CUTTING LIST'!N2","v":"Slanšek Matic"},null,null,null,null,null,null,null,null,"2 ELEMENT REF","Mark element according to design shop drawings"]
[null,"Customer order no:",null,{"$f":"IF('CUTTING LIST'!C12=\"INSERT TEXT\",\"Insert text on first page\",'CUTTING LIST'!C12)","v":"Insert text on first page"},null,null,null,null,null,null,null,null,null,null,null,"Cutting list number:",null,{"$f":"IF('CUTTING LIST'!N3=\"Insert\",\"Insert text on first page\",'CUTTING LIST'!N3)","v":"Insert text on first page"},null,null,null,null,null,null,null,null,"3 QTY","Number of elements"]
[null,null,null,null,null,null,null,null,null,null,null,null,null,null,null,"Revision:",null,{"$f":"IF('CUTTING LIST'!N4=\"Insert\",\"Insert text of first page\",'CUTTING LIST'!N4)","v":"Insert text of first page"},null,null,null,null,null,null,null,null,"4 Core type","Mineral Wool"]
[null,null,null,null,null,null,null,null,null,null,null,null,null,null,null,null,null,null,null,null,null,null,null,null,null,null,"5 Unit dimensions"]
["STEP 1:",null,null,null,null,null,null,"STEP 2:",null,null,null,null,null,null,null,null,null,null,null,null,null,null,null,null,null,null,null,"T-","element thickness [mm]: 65"]
["Select type of cladding system:",null,null,null,null,null,null,"Select joint option:",null,null,null,null,null,null,null,null,null,null,null,null,null,null,null,null,null,null,null,"M-","element module width [mm]: from 600 up to 1200"]
["Horizontal",null,null,null,null,null,null,null,null,null,null,null,{"$f":"INDEX('Data 1'!B18:G23,MATCH('Qbiss Screen MW elements'!H10,'Data 1'!A18:A23,0),MATCH('Qbiss Screen MW elements'!A10,'Data 1'!B17:G17,0))","v":{"$error":"#N/A"}},null,null,null,null,null,null,null,null,null,null,null,null,null,null,"R-","element length [mm]:  from 500 up to 6500",null,null,null,null,"*except element type 5,6,7,8,9:  550mm < R < 6475mm"]
[null,null,null,null,null,null,null,null,null,null,null,null,null,null,null,null,null,null,null,null,null,null,null,null,null,null,null,null,"Element lenght is measured and scheduled between fixing (joint centres) - SEE PICTURES BELOW !!!"]
[]
[]
[]
[]
[]
[]
[]
[]
["STEP 3:"]
[1,2,3,4,5,null,null,6,7,8,9,10,11,12,13,14,15,16,17]
["PHASE / FACADE /","ELEMENT REF:","QTY:","Core type","UNIT DIMENSIONS [mm]",null,null,"EXTERNAL SKIN",null,null,null,"INTERNAL SKIN",null,null,null,"ELEMENT Type","FIXING POINT","Other notes","TOTAL [m2]","STATUS"]
["BUILDING",null,null,null,"T","M","R","Thickness [mm]","Colour","Profile","Coating","Thickness [mm]","Colour","Profile","Coating",null,"QTY",null,null,null,null,null,null,null,"M*QTY","Total fixing points"]
[null,null,null,"Mineral Wool",65,null,null,0.7,null,"G",{"$f":"IFERROR(VLOOKUP(I24,'Data 2'!$A$1:$B$29,2,FALSE),\"\")","v":""},null,null,"G",null,null,null,{"$f":"IF(AND(OR(AND(G24>1,536>G24),G24>6488),OR($P$24=5,$P$24=6,$P$24=7,$P$24=8,$P$24=9,)),\"El.Length 550mm<R<6475mm!!!\",IF(ISBLANK(G24),\"\",\"\"))","v":""},{"$f":"C24*F24/1000*G24/1000","v":0},{"$f":"IF(OR($A$10=\"\",$H$10=\"\",C24=\"\",D24=\"\",E24=\"\",F24=\"\",G24=\"\",I24=\"\",L24=\"\",M24=\"\",N24=\"\",O24=\"\",P24=\"\",Q24=\"\"),\"Not OK\",\"OK\")","v":"Not OK"},null,null,null,null,{"$f":"C24*F24","v":0},{"$f":"Q24*C24","v":0}]
[]
[null,"TOTAL QTY",{"$f":"SUM(C24:C25)","v":0},null,null,null,null,null,null,null,null,null,null,null,null,null,null,"TOTAL m2 of facade elements",{"$f":"SUM(S24:S25)","v":0}]
[null,"Module x QTY [m]:",{"$f":"SUM(Y24:Y25)/1000","v":0},null,null,null,null,null,null,null,null,null,null,null,null,null,null,"TOTAL fixing points",{"$f":"SUM(Z24:Z25)","v":0}]
[]
[]
[null,"Required fields"]
[null,"Input data doesn't meet Qbiss Screen limitations - see INSTRUCTIONS on the right"]
[]
[]
[]
[null,"Automatically filled"]
[null,null,null,null,null,null,null,null,null,null,null,null,null,null,null,null,null,null,null,null,null,null,null,null,null,null,"6 External skin thickness","In case of Qbiss Screen MW elements, to achieve perfect flatness, we always use 0,7 mm thick steel sheet"]
[null,null,null,null,null,null,null,null,null,null,null,null,null,null,null,null,null,null,null,null,null,null,null,null,null,null,"7 External skin colour","Select avaliable standard colours. Find more about standard colours from Qbiss Screen Book"]
[null,null,null,null,null,null,null,null,null,null,null,null,null,null,null,null,null,null,null,null,null,null,null,null,null,null,"8 External skin profile","All Qbiss Screen MW elements have smooth Front-side steel sheet profile"]
[null,null,null,null,null,null,null,null,null,null,null,null,null,null,null,null,null,null,null,null,null,null,null,null,null,null,"9 External skin coating","Based on colour selection, steel sheet coating is selected automatically"]
[null,null,null,null,null,null,null,null,null,null,null,null,null,null,null,null,null,null,null,null,null,null,null,null,null,null,"10 Internal skin thickness","We always use 0,7 mm ot 0,675 mm thick steel sheet"]
[null,null,null,null,null,null,null,null,null,null,null,null,null,null,null,null,null,null,null,null,null,null,null,null,null,null,"11 Internal skin colour","Select avaliable standard colours. Find more about standard colours from Qbiss Screen Book"]
[null,null,null,null,null,null,null,null,null,null,null,null,null,null,null,null,null,null,null,null,null,null,null,null,null,null,"12 Internal skin profile","All Qbiss Screen MW elements have smooth Back-side steel sheet profile"]
[null,null,null,null,null,null,null,null,null,null,null,null,null,null,null,null,null,null,null,null,null,null,null,null,null,null,"13 Internal skin coating","Considering project requirements, you can choose what type of coating is appropriate. ",null,null,null,null,null,null,null,null,null,"SP - Polyester"]
[null,null,null,null,null,null,null,null,null,null,null,null,null,null,null,null,null,null,null,null,null,null,null,null,null,null,null,null,null,null,null,null,null,null,null,null,null,"PVDF - Polyvinylidene fluoride"]
[null,null,null,null,null,null,null,null,null,null,null,null,null,null,null,null,null,null,null,null,null,null,null,null,null,null,null,null,null,null,null,null,null,null,null,null,null,"PUR/PA - Polyurethane"]
[null,null,null,null,null,null,null,null,null,null,null,null,null,null,null,null,null,null,null,null,null,null,null,null,null,null,null,null,null,null,null,null,null,null,null,null,null,"PVC - Polyvinyl chloride"]
[null,null,null,null,null,null,null,null,null,null,null,null,null,null,null,null,null,null,null,null,null,null,null,null,null,null,"14 Element type","Based on direction of assembly, choose appropriate type of element"]
[]
[]
[]
[]
[]
[]
[]
[]
[]
[]
[]
[]
[]
[]
[]
[]
[]
[]
[]
[]
[]
[]
[]
[]
[]
[]
[]
[]
[]
[]
[]
[]
[]
[]
[]
[null,null,null,null,null,null,null,null,null,null,null,null,null,null,null,null,null,null,null,null,null,null,null,null,null,null,"15 Fixing point","Select quantity of fixing points on Qbiss Screen MW element according to structural calculation, made by Trimo technical support"]
[null,null,null,null,null,null,null,null,null,null,null,null,null,null,null,null,null,null,null,null,null,null,null,null,null,null,null,"Limitations: 2 < number of fixing points < 6",null,null,null,null,"(only on one side of the element)"]
[]
[]
[]
[]
[]
[]
[]
[]
[]
[]
[]
[]
[]
[]
[]
[]
[null,null,null,null,null,null,null,null,null,null,null,null,null,null,null,null,null,null,null,null,null,null,null,null,null,null,"Printscreen of structural calculation in SandStat"]
[]
[null,null,null,null,null,null,null,null,null,null,null,null,null,null,null,null,null,null,null,null,null,null,null,null,null,null,"16 Other notes"]
[null,null,null,null,null,null,null,null,null,null,null,null,null,null,null,null,null,null,null,null,null,null,null,null,null,null,"17 Total","Total amount of facade elements - automatically calculated"]
[null,null,null,null,null,null,null,null,null,null,null,null,null,null,null,null,null,null,null,null,null,null,null,null,null,null,"STATUS","OK","\"- element completely defined"]
[null,null,null,null,null,null,null,null,null,null,null,null,null,null,null,null,null,null,null,null,null,null,null,null,null,null,null,"Not OK","\"- Some caracteristics of the element are missing, please fulfill all required cells."]

{"sheet":"Longitudinal L-corner elements ","index":2,"n_rows":117,"n_cols":42,"rows_kept":117,"cut":false,"hidden":false,"merged":[[30,1,33,2],[4,21,4,22],[5,19,5,20],[5,21,5,22],[0,0,0,22],[2,3,2,18],[3,3,3,18],[2,19,2,20],[2,21,2,22],[3,19,3,20],[3,21,3,22],[21,2,22,2],[21,4,21,9],[8,9,8,10],[21,3,22,3],[3,25,4,26],[21,10,21,13],[21,14,21,17],[21,1,22,1],[20,4,20,9],[5,11,5,13],[7,0,7,3],[19,0,19,21],[21,18,22,18],[21,21,22,21],[21,22,22,22],[4,3,4,18],[4,19,4,20],[21,23,22,23]]}
["Qbiss Screen MW Cutting list for Longitudinal L-corner elements",null,null,null,null,null,null,null,null,null,null,null,null,null,null,null,null,null,null,null,null,null,null,null,null,null,null,null,null,null,"INSTRUCTIONS"]
[null,null,null,null,null,null,null,null,null,null,null,null,null,null,null,null,null,null,null,null,null,null,null,null,null,null,null,null,null,null,"Follow steps"]
[null,"Project name:",null,{"$f":"IF('CUTTING LIST'!C10=\"INSERT TEXT\",\"Insert text on first page\",'CUTTING LIST'!C10)","v":"Insert text on first page"},null,null,null,null,null,null,null,null,null,null,null,null,null,null,null,"Date last saved:",null,{"$f":"'CUTTING LIST'!N1","v":"2021-02-25T14:32:22"},null,null,null,null,null,null,null,null,"1 PHASE / FACADE / BUILDING","Mark positioning of the element according to design shop drawings"]
[null,"Customer name:",null,{"$f":"IF('CUTTING LIST'!C11=\"INSERT TEXT\",\"Insert text on first page\",'CUTTING LIST'!C11)","v":"Insert text on first page"},null,null,null,null,null,null,null,null,null,null,null,null,null,null,null,"Last saved by:",null,{"$f":"'CUTTING LIST'!N2","v":"Slanšek Matic"},null,null,null,null,null,null,null,null,"2 ELEMENT REF","Mark element according to design shop drawings"]
[null,"Customer order no:",null,{"$f":"IF('CUTTING LIST'!C12=\"INSERT TEXT\",\"Insert text on first page\",'CUTTING LIST'!C12)","v":"Insert text on first page"},null,null,null,null,null,null,null,null,null,null,null,null,null,null,null,"Cutting list number:",null,{"$f":"IF('CUTTING LIST'!N3=\"Insert\",\"Insert text on first page\",'CUTTING LIST'!N3)","v":"Insert text on first page"},null,null,null,null,null,null,null,null,"3 QTY","Number of elements"]
[null,null,null,null,null,null,null,null,null,null,null,null,null,null,null,null,null,null,null,"Revision:",null,{"$f":"IF('CUTTING LIST'!N4=\"Insert\",\"Insert text on first page\",'CUTTING LIST'!N4)","v":"Insert text on first page"},null,null,null,null,null,null,null,null,"4 Core type","Mineral Wool"]
[null,null,null,null,null,null,null,null,null,null,null,null,null,null,null,null,null,null,null,null,null,null,null,null,null,null,null,null,null,null,"5 Unit dimensions"]
["STEP 1:",null,null,null,null,null,null,null,null,null,null,null,null,null,null,null,null,null,null,null,null,null,null,null,null,null,null,null,null,null,"T-","element thickness [mm]: 65"]
["Type of installation:",null,null,null,null,null,null,null,null,"Marking corner's sides",null,null,null,null,null,null,null,null,null,null,null,null,null,null,null,null,null,null,null,null,"M-","element module width [mm]: from 600 up to 1200"]
["Longitudinal_corner",null,null,null,null,null,null,null,null,null,null,null,null,null,null,null,null,null,null,null,null,null,null,null,null,null,null,null,null,null,"R-","element length [mm]:  from 500 up to 6500",null,null,null,null,"*except element type 5,6,7,8,9:  550mm < R < 6475mm"]
[null,null,null,null,null,null,null,null,null,null,null,null,null,null,null,null,null,null,null,null,null,null,null,null,null,null,null,null,null,null,null,"Element lenght is measured and scheduled between fixing (joint centres) - SEE PICTURES BELOW !!!"]
[null,null,null,null,null,null,null,null,null,null,null,null,null,null,null,null,null,null,null,null,null,null,null,null,null,null,null,null,null,null,"A-","one side of corner element"]
[null,null,null,null,null,null,null,null,null,null,null,null,null,null,null,null,null,null,null,null,null,null,null,null,null,null,null,null,null,null,"B-","other side of corner element"]
[null,null,null,null,null,null,null,null,null,null,null,null,null,null,null,null,null,null,null,null,null,null,null,null,null,null,null,null,null,null,"Angle [α]-","80 degrees to 175 degrees"]
[null,null,null,null,null,null,null,null,null,null,null,null,null,null,null,null,null,null,null,null,null,null,null,null,null,null,null,null,null,null,"Limitations:","Amin and Bmin = 300 mm"]
[null,null,null,null,null,null,null,null,null,null,null,null,null,null,null,null,null,null,null,null,null,null,null,null,null,null,null,null,null,null,null,"Amax and Bmax = 900 mm"]
[null,null,null,null,null,null,null,null,null,null,null,null,null,null,null,null,null,null,null,null,null,null,null,null,null,null,null,null,null,null,null,"(A + B) > 600 mm"]
[null,null,null,null,null,null,null,null,null,null,null,null,null,null,null,null,null,null,null,null,null,null,null,null,null,null,null,null,null,null,null,"(A + B) < 1200 mm"]
[]
["STEP 2:"]
[1,2,3,4,5,null,null,null,null,null,6,7,8,9,10,11,12,13,14,15,16,17,18]
["PHASE / FACADE /","ELEMENT REF:","QTY:","Core type","UNIT DIMENSIONS [mm]",null,null,null,null,null,"EXTERNAL SKIN",null,null,null,"INTERNAL SKIN",null,null,null,"ELEMENT Type","Installation","FIXING POINT","Other notes","TOTAL [m2]","STATUS"]
["BUILDING",null,null,null,"T","M","R","A","B","Angle","Thickness [mm]","Colour","Profile","Coating","Thickness [mm]","Colour","Profile","Coating",null,"direction","QTY",null,null,null,null,null,null,null,"M*QTY","Total fixing points"]
[null,null,null,"Mineral Wool",65,{"$f":"H24+I24","v":0},null,null,null,null,{"$f":"Thickness_of_external_steel_sheet","v":0.7},null,{"$f":"External_steel_sheet_profilation","v":"G"},{"$f":"IFERROR(VLOOKUP(L24,'Data 2'!$A$1:$B$29,2,FALSE),\"\")","v":""},null,null,"G",null,null,{"$f":"IF(ISNUMBER(SEARCH(\"horizontal\",'Qbiss Screen MW elements'!$A$10)),\"horizontal\",\"vertical\")","v":"horizontal"},null,{"$f":"IF(AND(OR(AND(G24>1,536>G24),G24>6488),OR(S24=5,S24=6,S24=7,S24=8,S24=9,S24=10,S24=11,S24=12)),\"El.Length 550mm<R<6475mm!!!\",IF(ISBLANK(G24),\"\",\"\"))","v":""},{"$f":"C24*F24/1000*G24/1000","v":0},{"$f":"IF(OR($A$10=\"\",C24=\"\",D24=\"\",E24=\"\",G24=\"\",H24=\"\",I24=\"\",J24=\"\",L24=\"\",O24=\"\",P24=\"\",Q24=\"\",R24=\"\",S24=\"\",U24=\"\"),\"Not OK\",\"OK\")","v":"Not OK"},null,null,null,null,{"$f":"C24*F24","v":0},{"$f":"U24*C24","v":0}]
[]
[null,"TOTAL QTY",{"$f":"SUM(C24:C25)","v":0},null,null,null,null,null,null,null,null,null,null,null,null,null,null,null,null,null,null,"TOTAL m2 of facade elements",{"$f":"SUM(W24:W25)","v":0}]
[null,"Module x QTY [m]:",{"$f":"SUM(AC24:AC25)/1000","v":0},null,null,null,null,null,null,null,null,null,null,null,null,null,null,null,null,null,null,"TOTAL fixing points",{"$f":"SUM(AD24:AD25)","v":0}]
[]
[]
[null,"Required fields"]
[null,"Input data doesn't meet Qbiss Screen limitations - see INSTRUCTIONS on the right"]
[]
[]
[]
[null,"Automatically filled"]
[]
[]
[]
[]
[]
[]
[]
[]
[]
[]
[]
[null,null,null,null,null,null,null,null,null,null,null,null,null,null,null,null,null,null,null,null,null,null,null,null,null,null,null,null,null,null,"6 External skin thickness","In case of Qbiss Screen MW elements, to achieve perfect flatness, we always use 0,7 mm thick steel sheet"]
[null,null,null,null,null,null,null,null,null,null,null,null,null,null,null,null,null,null,null,null,null,null,null,null,null,null,null,null,null,null,"7 External skin colour","Select avaliable standard colours. Find more about standard colours from Qbiss Screen Book"]
[null,null,null,null,null,null,null,null,null,null,null,null,null,null,null,null,null,null,null,null,null,null,null,null,null,null,null,null,null,null,"8 External skin profile","All Qbiss Screen MW elements have smooth Front-side steel sheet profile"]
[null,null,null,null,null,null,null,null,null,null,null,null,null,null,null,null,null,null,null,null,null,null,null,null,null,null,null,null,null,null,"9 External skin coating","Based on colour selection, steel sheet coating is selected automatically"]
[null,null,null,null,null,null,null,null,null,null,null,null,null,null,null,null,null,null,null,null,null,null,null,null,null,null,null,null,null,null,"10 Internal skin thickness","We always use 0,7 mm ot 0,675 mm thick steel sheet"]
[null,null,null,null,null,null,null,null,null,null,null,null,null,null,null,null,null,null,null,null,null,null,null,null,null,null,null,null,null,null,"11 Internal skin colour","Select avaliable standard colours. Find more about standard colours from Qbiss Screen Book"]
[null,null,null,null,null,null,null,null,null,null,null,null,null,null,null,null,null,null,null,null,null,null,null,null,null,null,null,null,null,null,"12 Internal skin profile","All Qbiss Screen MW elements have smooth Back-side steel sheet profile"]
[null,null,null,null,null,null,null,null,null,null,null,null,null,null,null,null,null,null,null,null,null,null,null,null,null,null,null,null,null,null,"13 Internal skin coating","Considering project requirements, you can choose what type of coating is appropriate. ",null,null,null,null,null,null,null,null,null,"SP - Polyester"]
[null,null,null,null,null,null,null,null,null,null,null,null,null,null,null,null,null,null,null,null,null,null,null,null,null,null,null,null,null,null,null,null,null,null,null,null,null,null,null,null,null,"PVDF - Polyvinylidene fluoride"]
[null,null,null,null,null,null,null,null,null,null,null,null,null,null,null,null,null,null,null,null,null,null,null,null,null,null,null,null,null,null,null,null,null,null,null,null,null,null,null,null,null,"PUR/PA - Polyurethane"]
[null,null,null,null,null,null,null,null,null,null,null,null,null,null,null,null,null,null,null,null,null,null,null,null,null,null,null,null,null,null,null,null,null,null,null,null,null,null,null,null,null,"PVC - Polyvinyl chloride"]
[null,null,null,null,null,null,null,null,null,null,null,null,null,null,null,null,null,null,null,null,null,null,null,null,null,null,null,null,null,null,"14 Element type","Based on direction of assembly, choose appropriate type of element"]
[]
[]
[]
[]
[]
[]
[]
[]
[]
[]
[]
[]
[]
[]
[]
[]
[]
[]
[]
[]
[]
[]
[]
[]
[]
[]
[]
[]
[]
[]
[]
[]
[]
[]
[null,null,null,null,null,null,null,null,null,null,null,null,null,null,null,null,null,null,null,null,null,null,null,null,null,null,null,null,null,null,"15 Installation direction: The same as orientation of elements. Fulfilled automatically"]
[null,null,null,null,null,null,null,null,null,null,null,null,null,null,null,null,null,null,null,null,null,null,null,null,null,null,null,null,null,null,"16 Fixing point","Select quantity of fixing points on Qbiss element according to structural calculation, made by Trimo technical support"]
[null,null,null,null,null,null,null,null,null,null,null,null,null,null,null,null,null,null,null,null,null,null,null,null,null,null,null,null,null,null,null,"Limitations: 2 < number of fixing points < 6",null,null,null,null,"(only on one side of the element)"]
[]
[]
[]
[]
[]
[]
[]
[]
[]
[]
[]
[]
[]
[]
[]
[]
[null,null,null,null,null,null,null,null,null,null,null,null,null,null,null,null,null,null,null,null,null,null,null,null,null,null,null,null,null,null,"Printscreen of structural calculation in SandStat"]
[]
[null,null,null,null,null,null,null,null,null,null,null,null,null,null,null,null,null,null,null,null,null,null,null,null,null,null,null,null,null,null,"17  Other notes"]
[null,null,null,null,null,null,null,null,null,null,null,null,null,null,null,null,null,null,null,null,null,null,null,null,null,null,null,null,null,null,"18 Total","Total amount of facade elements - calculated automatically"]
[null,null,null,null,null,null,null,null,null,null,null,null,null,null,null,null,null,null,null,null,null,null,null,null,null,null,null,null,null,null,"STATUS","OK","\"- element completely defined"]
[null,null,null,null,null,null,null,null,null,null,null,null,null,null,null,null,null,null,null,null,null,null,null,null,null,null,null,null,null,null,null,"Not OK","\"- Some caracteristics of the element are missing, please fulfill all required cells."]

{"sheet":"Transversal L-corner elements","index":3,"n_rows":108,"n_cols":42,"rows_kept":108,"cut":false,"hidden":false,"merged":[[0,0,0,22],[2,19,2,20],[5,11,5,13],[4,3,4,18],[3,3,3,18],[2,3,2,18],[2,21,2,22],[3,19,3,20],[3,21,3,22],[4,19,4,20],[4,21,4,22],[7,0,7,3],[9,4,18,5],[19,0,19,21],[20,4,20,9],[5,19,5,20],[5,21,5,22],[23,37,23,39],[8,9,8,10],[21,18,22,18],[21,21,22,21],[21,22,22,22],[22,37,22,39],[34,1,34,2],[21,23,22,23],[30,1,33,2],[21,2,22,2],[21,4,21,9],[21,10,21,13],[21,14,21,17],[21,1,22,1],[21,3,22,3]]}
["Qbiss Screen MW Cutting list for Transversal L-corner elements",null,null,null,null,null,null,null,null,null,null,null,null,null,null,null,null,null,null,null,null,null,null,null,null,null,null,null,null,null,"INSTRUCTIONS"]
[null,null,null,null,null,null,null,null,null,null,null,null,null,null,null,null,null,null,null,null,null,null,null,null,null,null,null,null,null,null,"Follow steps"]
[null,"Project name:",null,{"$f":"IF('CUTTING LIST'!C10=\"INSERT TEXT\",\"Insert text on first page\",'CUTTING LIST'!C10)","v":"Insert text on first page"},null,null,null,null,null,null,null,null,null,null,null,null,null,null,null,"Date last saved:",null,{"$f":"'CUTTING LIST'!N1","v":"2021-02-25T14:32:22"},null,null,null,null,null,null,null,null,"1 PHASE / FACADE / BUILDING","Mark positioning of the element according to design shop drawings"]
[null,"Customer name:",null,{"$f":"IF('CUTTING LIST'!C11=\"INSERT TEXT\",\"Insert text on first page\",'CUTTING LIST'!C11)","v":"Insert text on first page"},null,null,null,null,null,null,null,null,null,null,null,null,null,null,null,"Last saved by:",null,{"$f":"'CUTTING LIST'!N2","v":"Slanšek Matic"},null,null,null,null,null,null,null,null,"2 ELEMENT REF","Mark element according to design shop drawings"]
[null,"Customer order no:",null,{"$f":"IF('CUTTING LIST'!C12=\"INSERT TEXT\",\"Insert text on first page\",'CUTTING LIST'!C12)","v":"Insert text on first page"},null,null,null,null,null,null,null,null,null,null,null,null,null,null,null,"Cutting list number:",null,{"$f":"IF('CUTTING LIST'!N3=\"Insert\",\"Insert text on first page\",'CUTTING LIST'!N3)","v":"Insert text on first page"},null,null,null,null,null,null,null,null,"3 QTY","Number of elements"]
[null,null,null,null,null,null,null,null,null,null,null,null,null,null,null,null,null,null,null,"Revision:",null,{"$f":"IF('CUTTING LIST'!N4=\"Insert\",\"Insert text on first page\",'CUTTING LIST'!N4)","v":"Insert text on first page"},null,null,null,null,null,null,null,null,"4 Core type","Mineral Wool"]
[null,null,null,null,null,null,null,null,null,null,null,null,null,null,null,null,null,null,null,null,null,null,null,null,null,null,null,null,null,null,"5 Unit dimensions"]
["STEP 1:",null,null,null,null,null,null,null,null,null,null,null,null,null,null,null,null,null,null,null,null,null,null,null,null,null,null,null,null,null,"T-","element thickness [mm]: 65"]
["Type of installation:",null,null,null,null,null,null,null,null,"Marking corner's sides",null,null,null,null,null,null,null,null,null,null,null,null,null,null,null,null,null,null,null,null,"M-","element module width [mm]: from 600 up to 1200"]
["Transversal_corner",null,null,null,null,null,null,null,null,null,null,null,null,null,null,null,null,null,null,null,null,null,null,null,null,null,null,null,null,null,"R-","element length [mm]:  from 500 up to 2000",null,null,null,null,"*except element type 5,6,7,8,9:  550mm < R < 6475mm"]
[null,null,null,null,null,null,null,null,null,null,null,null,null,null,null,null,null,null,null,null,null,null,null,null,null,null,null,null,null,null,null,"Element lenght is measured and scheduled between fixing (joint centres) - SEE PICTURES BELOW !!!"]
[null,null,null,null,null,null,null,null,null,null,null,null,null,null,null,null,null,null,null,null,null,null,null,null,null,null,null,null,null,null,"A-","one side of corner element"]
[null,null,null,null,null,null,null,null,null,null,null,null,null,null,null,null,null,null,null,null,null,null,null,null,null,null,null,null,null,null,"B-","other side of corner element"]
[null,null,null,null,null,null,null,null,null,null,null,null,null,null,null,null,null,null,null,null,null,null,null,null,null,null,null,null,null,null,"Angle [α]-","70 degrees to 175 degrees"]
[null,null,null,null,null,null,null,null,null,null,null,null,null,null,null,null,null,null,null,null,null,null,null,null,null,null,null,null,null,null,"Limitations:","Amin and Bmin > 215 mm"]
[null,null,null,null,null,null,null,null,null,null,null,null,null,null,null,null,null,null,null,null,null,null,null,null,null,null,null,null,null,null,null,"Amax and Bmax < 1000 mm"]
[null,null,null,null,null,null,null,null,null,null,null,null,null,null,null,null,null,null,null,null,null,null,null,null,null,null,null,null,null,null,null,"A + B > 500 mm"]
[null,null,null,null,null,null,null,null,null,null,null,null,null,null,null,null,null,null,null,null,null,null,null,null,null,null,null,null,null,null,null,"A + B < 6500 mm"]
[]
["STEP 2:"]
[1,2,3,4,5,null,null,null,null,null,6,7,8,9,10,11,12,13,14,15,16,17,18]
["PHASE / FACADE /","ELEMENT REF:","QTY:","Core type","UNIT DIMENSIONS [mm]",null,null,null,null,null,"EXTERNAL SKIN",null,null,null,"INTERNAL SKIN",null,null,null,"ELEMENT Type","Installation","FIXING POINT","Other notes","TOTAL [m2]","STATUS"]
["BUILDING",null,null,null,"T","M","R","A","B","Angle","Thickness [mm]","Colour","Profile","Coating","Thickness [mm]","Colour","Profile","Coating",null,"direction","QTY",null,null,null,null,null,null,null,"M*QTY","Total fixing point QTY",null,null,null,null,null,null,null,"Marking corner's sides"]
[null,null,null,"Mineral Wool",65,null,{"$f":"H24+I24","v":0},null,null,null,{"$f":"Thickness_of_external_steel_sheet","v":0.7},null,"G",{"$f":"IFERROR(VLOOKUP(L24,'Data 2'!$A$1:$B$29,2,FALSE),\"\")","v":""},null,null,"G",null,null,{"$f":"IF(ISNUMBER(SEARCH(\"horizontal\",'Qbiss Screen MW elements'!$A$10)),\"horizontal\",\"vertical\")","v":"horizontal"},null,{"$f":"IF(AND(OR(AND(G24>1,536>G24),G24>6488),OR(S24=5,S24=6,S24=7,S24=8,S24=9)),\"El.Length 550mm<R<6475mm!!!\",IF(ISBLANK(G24),\"\",\"\"))","v":""},{"$f":"C24*F24/1000*G24/1000","v":0},{"$f":"IF(OR($A$10=\"\",C24=\"\",D24=\"\",E24=\"\",F24=\"\",H24=\"\",I24=\"\",J24=\"\",L24=\"\",O24=\"\",P24=\"\",Q24=\"\",R24=\"\",S24=\"\",U24=\"\"),\"Not OK\",\"OK\")","v":"Not OK"},null,null,null,null,{"$f":"C24*F24","v":0},{"$f":"U24*C24","v":0}]
[]
[null,"TOTAL QTY",{"$f":"SUM(C24:C25)","v":0},null,null,null,null,null,null,null,null,null,null,null,null,null,null,null,null,null,null,"TOTAL m2 of facade elements",{"$f":"SUM(W24:W25)","v":0}]
[null,"Module x QTY [m]:",{"$f":"SUM(AC24:AC25)/1000","v":0},null,null,null,null,null,null,null,null,null,null,null,null,null,null,null,null,null,null,"TOTAL fixing points",{"$f":"SUM(AD24:AD25)","v":0}]
[]
[]
[null,"Required fields"]
[null,"Input data doesn't meet Qbiss Screen limitations - see INSTRUCTIONS on the right"]
[]
[]
[]
[null,"Automatically filled"]
[]
[]
[]
[]
[null,null,null,null,null,null,null,null,null,null,null,null,null,null,null,null,null,null,null,null,null,null,null,null,null,null,null,null,null,null,"6 External skin thickness","In case of Qbiss Screen MW elements, to achieve perfect flatness, we always use 0,7 mm thick steel sheet"]
[null,null,null,null,null,null,null,null,null,null,null,null,null,null,null,null,null,null,null,null,null,null,null,null,null,null,null,null,null,null,"7 External skin colour","Select avaliable standard colours. Find more about standard colours from Qbiss Screen Book"]
[null,null,null,null,null,null,null,null,null,null,null,null,null,null,null,null,null,null,null,null,null,null,null,null,null,null,null,null,null,null,"8 External skin profile","All Qbiss Screen MW elements have smooth Front-side steel sheet profile"]
[null,null,null,null,null,null,null,null,null,null,null,null,null,null,null,null,null,null,null,null,null,null,null,null,null,null,null,null,null,null,"9 External skin coating","Based on colour selection, steel sheet coating is selected automatically"]
[null,null,null,null,null,null,null,null,null,null,null,null,null,null,null,null,null,null,null,null,null,null,null,null,null,null,null,null,null,null,"10 Internal skin thickness","We always use 0,7 mm ot 0,675 mm thick steel sheet"]
[null,null,null,null,null,null,null,null,null,null,null,null,null,null,null,null,null,null,null,null,null,null,null,null,null,null,null,null,null,null,"11 Internal skin colour","Select avaliable standard colours. Find more about standard colours from Qbiss Screen Book"]
[null,null,null,null,null,null,null,null,null,null,null,null,null,null,null,null,null,null,null,null,null,null,null,null,null,null,null,null,null,null,"12 Internal skin profile","All Qbiss Screen MW elements have smooth Back-side steel sheet profile"]
[null,null,null,null,null,null,null,null,null,null,null,null,null,null,null,null,null,null,null,null,null,null,null,null,null,null,null,null,null,null,"13 Internal skin coating","Considering project requirements, you can choose what type of coating is appropriate. ",null,null,null,null,null,null,null,null,null,"SP - Polyester"]
[null,null,null,null,null,null,null,null,null,null,null,null,null,null,null,null,null,null,null,null,null,null,null,null,null,null,null,null,null,null,null,null,null,null,null,null,null,null,null,null,null,"PVDF - Polyvinylidene fluoride"]
[null,null,null,null,null,null,null,null,null,null,null,null,null,null,null,null,null,null,null,null,null,null,null,null,null,null,null,null,null,null,null,null,null,null,null,null,null,null,null,null,null,"PUR/PA - Polyurethane"]
[null,null,null,null,null,null,null,null,null,null,null,null,null,null,null,null,null,null,null,null,null,null,null,null,null,null,null,null,null,null,null,null,null,null,null,null,null,null,null,null,null,"PVC - Polyvinyl chloride"]
[null,null,null,null,null,null,null,null,null,null,null,null,null,null,null,null,null,null,null,null,null,null,null,null,null,null,null,null,null,null,"14 Element type","Based on direction of assembly, choose appropriate type of element"]
[]
[]
[]
[]
[]
[]
[]
[]
[]
[]
[]
[]
[]
[]
[]
[]
[]
[]
[]
[]
[]
[]
[]
[]
[]
[]
[]
[]
[]
[]
[]
[]
[]
[null,null,null,null,null,null,null,null,null,null,null,null,null,null,null,null,null,null,null,null,null,null,null,null,null,null,null,null,null,null,"15 Installation direction: The same as orientation of elements. Fulfilled automatically"]
[null,null,null,null,null,null,null,null,null,null,null,null,null,null,null,null,null,null,null,null,null,null,null,null,null,null,null,null,null,null,"16 Fixing point","Select quantity of fixing points on Qbiss element according to structural calculation, made by Trimo technical support"]
[null,null,null,null,null,null,null,null,null,null,null,null,null,null,null,null,null,null,null,null,null,null,null,null,null,null,null,null,null,null,null,"Limitations: 2 < number of fixing points < 6",null,null,null,null,"(only on one side of the element)"]
[]
[]
[]
[]
[]
[]
[]
[]
[]
[]
[]
[]
[]
[]
[]
[]
[null,null,null,null,null,null,null,null,null,null,null,null,null,null,null,null,null,null,null,null,null,null,null,null,null,null,null,null,null,null,"Printscreen of structural calculation in SandStat"]
[null,null,null,null,null,null,null,null,null,null,null,null,null,null,null,null,null,null,null,null,null,null,null,null,null,null,null,null,null,null,"17  Other notes"]
[null,null,null,null,null,null,null,null,null,null,null,null,null,null,null,null,null,null,null,null,null,null,null,null,null,null,null,null,null,null,"18 Total","Total amount of facade elements - calculated automatically"]
[null,null,null,null,null,null,null,null,null,null,null,null,null,null,null,null,null,null,null,null,null,null,null,null,null,null,null,null,null,null,"STATUS","OK","\"- element completely defined"]
[null,null,null,null,null,null,null,null,null,null,null,null,null,null,null,null,null,null,null,null,null,null,null,null,null,null,null,null,null,null,null,"Not OK","\"- Some caracteristics of the element are missing, please fulfill all required cells."]

{"sheet":"U-corner elements","index":4,"n_rows":109,"n_cols":43,"rows_kept":109,"cut":false,"hidden":false,"merged":[[2,22,2,23],[3,20,3,21],[3,22,3,23],[30,1,33,2],[5,20,5,21],[5,22,5,23],[4,3,4,19],[3,3,3,19],[4,20,4,21],[4,22,4,23],[9,0,9,1],[21,3,22,3],[21,24,22,24],[0,0,0,23],[21,16,21,19],[21,20,22,20],[21,1,22,1],[20,4,20,11],[5,13,5,15],[7,0,7,3],[19,0,19,22],[21,22,22,22],[21,4,21,11],[21,2,22,2],[21,23,22,23],[21,12,21,15],[2,3,2,19],[2,20,2,21]]}
["Qbiss Screen MW Cutting list for U-corner elements",null,null,null,null,null,null,null,null,null,null,null,null,null,null,null,null,null,null,null,null,null,null,null,null,null,null,null,null,null,null,"INSTRUCTIONS"]
[null,null,null,null,null,null,null,null,null,null,null,null,null,null,null,null,null,null,null,null,null,null,null,null,null,null,null,null,null,null,null,"Follow steps"]
[null,"Project name:",null,{"$f":"IF('CUTTING LIST'!C10=\"INSERT TEXT\",\"Insert text on first page\",'CUTTING LIST'!C10)","v":"Insert text on first page"},null,null,null,null,null,null,null,null,null,null,null,null,null,null,null,null,"Date last saved:",null,{"$f":"'CUTTING LIST'!N1","v":"2021-02-25T14:32:22"},null,null,null,null,null,null,null,null,"1 PHASE / FACADE / BUILDING","Mark positioning of the element according to design shop drawings"]
[null,"Customer name:",null,{"$f":"IF('CUTTING LIST'!C11=\"INSERT TEXT\",\"Insert text on first page\",'CUTTING LIST'!C11)","v":"Insert text on first page"},null,null,null,null,null,null,null,null,null,null,null,null,null,null,null,null,"Last saved by:",null,{"$f":"'CUTTING LIST'!N2","v":"Slanšek Matic"},null,null,null,null,null,null,null,null,"2 ELEMENT REF","Mark element according to design shop drawings"]
[null,"Customer order no:",null,{"$f":"IF('CUTTING LIST'!C12=\"INSERT TEXT\",\"Insert text on first page\",'CUTTING LIST'!C12)","v":"Insert text on first page"},null,null,null,null,null,null,null,null,null,null,null,null,null,null,null,null,"Cutting list number:",null,{"$f":"IF('CUTTING LIST'!N3=\"Insert\",\"Insert text on first page\",'CUTTING LIST'!N3)","v":"Insert text on first page"},null,null,null,null,null,null,null,null,"3 QTY","Number of elements"]
[null,null,null,null,null,null,null,null,null,null,null,null,null,null,null,null,null,null,null,null,"Revision:",null,{"$f":"IF('CUTTING LIST'!N4=\"Insert\",\"Insert text on first page\",'CUTTING LIST'!N4)","v":"Insert text on first page"},null,null,null,null,null,null,null,null,"4 Core type","Mineral Wool"]
[null,null,null,null,null,null,null,null,null,null,null,null,null,null,null,null,null,null,null,null,null,null,null,null,null,null,null,null,null,null,null,"5 Unit dimensions"]
["STEP 1:",null,null,null,null,null,null,null,null,null,null,null,null,null,null,null,null,null,null,null,null,null,null,null,null,null,null,null,null,null,null,"T-","element thickness [mm]: 65"]
["Type of corner element:",null,null,null,null,null,null,null,null,null,null,null,null,null,null,null,null,null,null,null,null,null,null,null,null,null,null,null,null,null,null,"M-","element module width [mm]: from 600 up to 1200"]
["U_corner_element",null,null,null,null,null,null,null,null,null,null,null,null,null,null,null,null,null,null,null,null,null,null,null,null,null,null,null,null,null,null,"R-","element length [mm]:  from 500 up to 3000",null,null,null,null,null,"*except element type 5,6,7,8,9:  550mm < R < 6475mm"]
[]
[]
[null,null,null,null,null,null,null,null,null,null,null,null,null,null,null,null,null,null,null,null,null,null,null,null,null,null,null,null,null,null,null,null,"Element lenght is measured and scheduled between fixing (joint centres) - SEE PICTURES BELOW !!!"]
[null,null,null,null,null,null,null,null,null,null,null,null,null,null,null,null,null,null,null,null,null,null,null,null,null,null,null,null,null,null,null,"A, B, C-","side of corner element"]
[null,null,null,null,null,null,null,null,null,null,null,null,null,null,null,null,null,null,null,null,null,null,null,null,null,null,null,null,null,null,null,"αAB and αBC-","angle: from 90 degrees to 175 degrees"]
[null,null,null,null,null,null,null,null,null,null,null,null,null,null,null,null,null,null,null,null,null,null,null,null,null,null,null,null,null,null,null,"Limitations:","Amin and Cmin > 215 mm"]
[null,null,null,null,null,null,null,null,null,null,null,null,null,null,null,null,null,null,null,null,null,null,null,null,null,null,null,null,null,null,null,null,"Amax and Cmax < 1000 mm"]
[null,null,null,null,null,null,null,null,null,null,null,null,null,null,null,null,null,null,null,null,null,null,null,null,null,null,null,null,null,null,null,null,"Bmin > 430 mm"]
[null,null,null,null,null,null,null,null,null,null,null,null,null,null,null,null,null,null,null,null,null,null,null,null,null,null,null,null,null,null,null,null,"Bmax < 1000 mm"]
["STEP 2:"]
[1,2,3,4,5,null,null,null,null,null,null,null,6,7,8,9,10,11,12,13,14,15,16,17]
["PHASE / FACADE /","ELEMENT REF:","QTY:","Core type","UNIT DIMENSIONS [mm]",null,null,null,null,null,null,null,"EXTERNAL SKIN",null,null,null,"INTERNAL SKIN",null,null,null,"ELEMENT Type","FIXING POINT","Other notes","TOTAL [m2]","STATUS"]
["BUILDING",null,null,null,"T","M","R","A","B","C","αAB","αBC","Thickness [mm]","Colour","Profile","Coating","Thickness [mm]","Colour","Profile","Coating",null,"QTY",null,null,null,null,null,null,null,"M*QTY","Total fixing points"]
[null,null,null,"Mineral Wool",65,null,{"$f":"H24+I24+J24","v":0},null,null,null,null,null,{"$f":"Thickness_of_external_steel_sheet","v":0.7},null,"G",{"$f":"IFERROR(VLOOKUP(N24,'Data 2'!$A$1:$B$29,2,FALSE),\"\")","v":""},null,null,"G",null,null,null,{"$f":"IF(AND(OR(AND(G24>1,536>G24),G24>6488),OR(S24=5,S24=6,S24=7,S24=8,S24=9)),\"El.Length 550mm<R<6475mm!!!\",IF(ISBLANK(G24),\"\",\"\"))","v":""},{"$f":"C24*F24/1000*G24/1000","v":0},{"$f":"IF(OR($A$10=\"\",C24=\"\",D24=\"\",E24=\"\",F24=\"\",H24=\"\",I24=\"\",J24=\"\",K24=\"\",L24=\"\",N24=\"\",Q24=\"\",R24=\"\",S24=\"\",T24=\"\",U24=\"\",V24=\"\"),\"Not OK\",\"OK\")","v":"Not OK"},null,null,null,null,{"$f":"F24*C24","v":0},{"$f":"V24*C24","v":0}]
[]
[null,"TOTAL QTY",{"$f":"SUM(C24:C25)","v":0},null,null,null,null,null,null,null,null,null,null,null,null,null,null,null,null,null,null,null,"TOTAL m2 of facade elements",{"$f":"SUM(X24:X25)","v":0}]
[null,"Module x QTY [m]:",{"$f":"SUM(AD24:AD25)/1000","v":0},null,null,null,null,null,null,null,null,null,null,null,null,null,null,null,null,null,null,null,"TOTAL fixing points",{"$f":"SUM(AE24:AE25)","v":0}]
[]
[]
[null,"Required fields"]
[null,"Input data doesn't meet Qbiss Screen limitations - see INSTRUCTIONS on the right"]
[]
[]
[]
[null,"Automatically filled"]
[]
[]
[]
[]
[]
[null,null,null,null,null,null,null,null,null,null,null,null,null,null,null,null,null,null,null,null,null,null,null,null,null,null,null,null,null,null,null,"6 External skin thickness","In case of Qbiss Screen MW elements, to achieve perfect flatness, we always use 0,7 mm thick steel sheet"]
[null,null,null,null,null,null,null,null,null,null,null,null,null,null,null,null,null,null,null,null,null,null,null,null,null,null,null,null,null,null,null,"7 External skin colour","Select avaliable standard colours. Find more about standard colours from Qbiss Screen Book"]
[null,null,null,null,null,null,null,null,null,null,null,null,null,null,null,null,null,null,null,null,null,null,null,null,null,null,null,null,null,null,null,"8 External skin profile","All Qbiss Screen MW elements have smooth Front-side steel sheet profile"]
[null,null,null,null,null,null,null,null,null,null,null,null,null,null,null,null,null,null,null,null,null,null,null,null,null,null,null,null,null,null,null,"9 External skin coating","Based on colour selection, steel sheet coating is selected automatically"]
[null,null,null,null,null,null,null,null,null,null,null,null,null,null,null,null,null,null,null,null,null,null,null,null,null,null,null,null,null,null,null,"10 Internal skin thickness","We always use 0,7 mm ot 0,675 mm thick steel sheet"]
[null,null,null,null,null,null,null,null,null,null,null,null,null,null,null,null,null,null,null,null,null,null,null,null,null,null,null,null,null,null,null,"11 Internal skin colour","Select avaliable standard colours. Find more about standard colours from Qbiss Screen Book"]
[null,null,null,null,null,null,null,null,null,null,null,null,null,null,null,null,null,null,null,null,null,null,null,null,null,null,null,null,null,null,null,"12 Internal skin profile","All Qbiss Screen MW elements have smooth Back-side steel sheet profile"]
[null,null,null,null,null,null,null,null,null,null,null,null,null,null,null,null,null,null,null,null,null,null,null,null,null,null,null,null,null,null,null,"13 Internal skin coating","Considering project requirements, you can choose what type of coating is appropriate. ",null,null,null,null,null,null,null,null,null,"SP - Polyester"]
[null,null,null,null,null,null,null,null,null,null,null,null,null,null,null,null,null,null,null,null,null,null,null,null,null,null,null,null,null,null,null,null,null,null,null,null,null,null,null,null,null,null,"PVDF - Polyvinylidene fluoride"]
[null,null,null,null,null,null,null,null,null,null,null,null,null,null,null,null,null,null,null,null,null,null,null,null,null,null,null,null,null,null,null,null,null,null,null,null,null,null,null,null,null,null,"PUR/PA - Polyurethane"]
[null,null,null,null,null,null,null,null,null,null,null,null,null,null,null,null,null,null,null,null,null,null,null,null,null,null,null,null,null,null,null,null,null,null,null,null,null,null,null,null,null,null,"PVC - Polyvinyl chloride"]
[null,null,null,null,null,null,null,null,null,null,null,null,null,null,null,null,null,null,null,null,null,null,null,null,null,null,null,null,null,null,null,"14 Element type","Based on direction of assembly, choose appropriate type of element"]
[]
[]
[]
[]
[]
[]
[]
[]
[]
[]
[]
[]
[]
[]
[]
[]
[]
[]
[]
[]
[]
[]
[]
[]
[]
[]
[]
[]
[]
[]
[]
[]
[]
[]
[null,null,null,null,null,null,null,null,null,null,null,null,null,null,null,null,null,null,null,null,null,null,null,null,null,null,null,null,null,null,null,"15 Fixing point","Select quantity of fixing points on Qbiss element according to structural calculation, made by Trimo technical support"]
[null,null,null,null,null,null,null,null,null,null,null,null,null,null,null,null,null,null,null,null,null,null,null,null,null,null,null,null,null,null,null,null,"Limitations: 2 < number of fixing points < 6",null,null,null,null,"(only on one side of the element)"]
[]
[]
[]
[]
[]
[]
[]
[]
[]
[]
[]
[]
[]
[]
[]
[]
[null,null,null,null,null,null,null,null,null,null,null,null,null,null,null,null,null,null,null,null,null,null,null,null,null,null,null,null,null,null,null,"Printscreen of structural calculation in SandStat"]
[null,null,null,null,null,null,null,null,null,null,null,null,null,null,null,null,null,null,null,null,null,null,null,null,null,null,null,null,null,null,null,"16  Other notes"]
[null,null,null,null,null,null,null,null,null,null,null,null,null,null,null,null,null,null,null,null,null,null,null,null,null,null,null,null,null,null,null,"17 Total","Total amount of facade elements - calculated automatically"]
[null,null,null,null,null,null,null,null,null,null,null,null,null,null,null,null,null,null,null,null,null,null,null,null,null,null,null,null,null,null,null,"STATUS","OK","\"- element completely defined"]
[null,null,null,null,null,null,null,null,null,null,null,null,null,null,null,null,null,null,null,null,null,null,null,null,null,null,null,null,null,null,null,null,"Not OK","\"- Some caracteristics of the element are missing, please fulfill all required cells."]

{"sheet":"3D diagonal-cut corner element","index":5,"n_rows":122,"n_cols":43,"rows_kept":122,"cut":false,"hidden":true,"merged":[[21,22,22,22],[21,23,22,23],[21,24,22,24],[30,1,33,2],[7,0,7,3],[9,0,9,1],[19,0,19,22],[20,4,20,11],[21,1,22,1],[21,2,22,2],[21,3,22,3],[21,4,21,11],[21,12,21,15],[21,16,21,19],[21,20,22,20],[0,0,0,23],[2,3,2,19],[2,20,2,21],[2,22,2,23],[3,3,3,19],[3,20,3,21],[3,22,3,23],[5,13,5,15],[5,20,5,21],[5,22,5,23],[4,3,4,19],[4,20,4,21],[4,22,4,23]]}
["Qbiss Screen Cutting list for 3D diagonal-cut corner elements",null,null,null,null,null,null,null,null,null,null,null,null,null,null,null,null,null,null,null,null,null,null,null,null,null,null,null,null,null,null,"INSTRUCTIONS"]
[null,null,null,null,null,null,null,null,null,null,null,null,null,null,null,null,null,null,null,null,null,null,null,null,null,null,null,null,null,null,null,"Follow steps"]
[null,"Project name:",null,"Insert text on first page",null,null,null,null,null,null,null,null,null,null,null,null,null,null,null,null,"Date last saved:",null,"2020-02-03T10:49:57",null,null,null,null,null,null,null,null,"1 PHASE / FACADE / BUILDING","Mark positioning of the element according to design shop drawings"]
[null,"Customer name:",null,"Insert text on first page",null,null,null,null,null,null,null,null,null,null,null,null,null,null,null,null,"Last saved by:",null,"Slanšek Matic",null,null,null,null,null,null,null,null,"2 ELEMENT REF","Mark element according to design shop drawings"]
[null,"Customer order no:",null,"Insert text on first page",null,null,null,null,null,null,null,null,null,null,null,null,null,null,null,null,"Cutting list number:",null,"Insert text on first page",null,null,null,null,null,null,null,null,"3 QTY","Number of elements"]
[null,null,null,null,null,null,null,null,null,null,null,null,null,null,null,null,null,null,null,null,"Revision:",null,"Insert text on first page",null,null,null,null,null,null,null,null,"4 Core type","Mineral Wool"]
[null,null,null,null,null,null,null,null,null,null,null,null,null,null,null,null,null,null,null,null,null,null,null,null,null,null,null,null,null,null,null,"5 Unit dimensions"]
["STEP 1:",null,null,null,null,null,null,null,null,null,null,null,null,null,null,null,null,null,null,null,null,null,null,null,null,null,null,null,null,null,null,"T-","element thickness [mm]: 65"]
["Type of corner element:",null,null,null,null,null,null,null,null,null,null,null,null,null,null,null,null,null,null,null,null,null,null,null,null,null,null,null,null,null,null,"M-","element module width [mm]: from 600 up to 1200",null,null,null,null,"600mm < M = A+B < 1200mm"]
["3D_Corner element - horizontal",null,null,null,null,null,null,null,null,null,null,null,null,null,null,null,null,null,null,null,null,null,null,null,null,null,null,null,null,null,null,"R-","element length [mm]:  from 1000 up to 2000",null,null,null,null,"1000mm < R=R1+R2 < 2000mm"]
[null,null,null,null,null,null,null,null,null,null,null,null,null,null,null,null,null,null,null,null,null,null,null,null,null,null,null,null,null,null,null,null,"Element lenght is measured and scheduled between fixing (joint centres) - SEE PICTURES BELOW !!!"]
[null,null,null,null,null,null,null,null,null,null,null,null,null,null,null,null,null,null,null,null,null,null,null,null,null,null,null,null,null,null,null,"A, B, R1,R2 -","side of corner element"]
[null,null,null,null,null,null,null,null,null,null,null,null,null,null,null,null,null,null,null,null,null,null,null,null,null,null,null,null,null,null,null,"αR1R2 -","angle: from 90 degrees to 175 degrees"]
[null,null,null,null,null,null,null,null,null,null,null,null,null,null,null,null,null,null,null,null,null,null,null,null,null,null,null,null,null,null,null,"Limitations:","T","Amin(Bmin)","Amax(Bmax)","R1min(R2min)","R1max(R2max)"]
[null,null,null,null,null,null,null,null,null,null,null,null,null,null,null,null,null,null,null,null,null,null,null,null,null,null,null,null,null,null,null,null,65,300,900,500,1000]
[]
[]
[]
[]
["STEP 2:"]
[1,2,3,4,5,null,null,null,null,null,null,null,6,7,8,9,10,11,12,13,14,15,16,17]
["PHASE / FACADE /","ELEMENT REF:","QTY:","Core type","UNIT DIMENSIONS [mm]",null,null,null,null,null,null,null,"EXTERNAL SKIN",null,null,null,"INTERNAL SKIN",null,null,null,"ELEMENT Type","FIXING POINT","Other notes","TOTAL [m2]","STATUS"]
["BUILDING",null,null,null,"T","M","R","A","B","R1","R2","αR1R2","Thickness [mm]","Colour","Profile","Coating","Thickness [mm]","Colour","Profile","Coating",null,"QTY",null,null,null,null,null,null,null,"M*QTY","Total fixing points"]
[null,null,null,"Mineral wool",65,{"$f":"H24+I24","v":0},{"$f":"J24+K24","v":0},null,null,null,null,null,{"$f":"Thickness_of_external_steel_sheet","v":0.7},null,"G",{"$f":"IFERROR(VLOOKUP(N24,'Data 2'!$A$1:$B$29,2,FALSE),\"\")","v":""},null,null,"G",null,null,null,null,{"$f":"C24*F24/1000*G24/1000","v":0},{"$f":"IF(OR($A$10=\"\",C24=\"\",D24=\"\",E24=\"\",F24=\"\",H24=\"\",I24=\"\",J24=\"\",K24=\"\",L24=\"\",N24=\"\",Q24=\"\",R24=\"\",S24=\"\",T24=\"\",U24=\"\",V24=\"\"),\"Not OK\",\"OK\")","v":"Not OK"},null,null,null,null,{"$f":"F24*C24","v":0},{"$f":"V24*C24","v":0}]
[]
[null,"TOTAL QTY",{"$f":"SUM(C24:C25)","v":0},null,null,null,null,null,null,null,null,null,null,null,null,null,null,null,null,null,null,null,"TOTAL m2 of facade elements",{"$f":"SUM(X24:X25)","v":0}]
[null,"Module x QTY [m]:",{"$f":"SUM(AD24:AD25)/1000","v":0},null,null,null,null,null,null,null,null,null,null,null,null,null,null,null,null,null,null,null,"TOTAL fixing points",{"$f":"SUM(AE24:AE25)","v":0}]
[]
[]
[null,"Required fields"]
[null,"Input data doesn't meet Qbiss Screen limitations - see INSTRUCTIONS on the right"]
[]
[]
[]
[null,"Automatically filled"]
[]
[]
[]
[]
[]
[]
[]
[null,null,null,null,null,null,null,null,null,null,null,null,null,null,null,null,null,null,null,null,null,null,null,null,null,null,null,null,null,null,null,"6 External skin thickness","In case of Qbiss Screen MW elements, to achieve perfect flatness, we always use 0,7 mm thick steel sheet"]
[null,null,null,null,null,null,null,null,null,null,null,null,null,null,null,null,null,null,null,null,null,null,null,null,null,null,null,null,null,null,null,"7 External skin colour","Select avaliable standard colours. Find more about standard colours from Qbiss Screen Book"]
[null,null,null,null,null,null,null,null,null,null,null,null,null,null,null,null,null,null,null,null,null,null,null,null,null,null,null,null,null,null,null,"8 External skin profile","All Qbiss Screen MW elements have smooth Front-side steel sheet profile"]
[null,null,null,null,null,null,null,null,null,null,null,null,null,null,null,null,null,null,null,null,null,null,null,null,null,null,null,null,null,null,null,"9 External skin coating","Based on colour selection, steel sheet coating is selected automatically"]
[null,null,null,null,null,null,null,null,null,null,null,null,null,null,null,null,null,null,null,null,null,null,null,null,null,null,null,null,null,null,null,"10 Internal skin thickness","We always use 0,7 mm ot 0,675 mm thick steel sheet"]
[null,null,null,null,null,null,null,null,null,null,null,null,null,null,null,null,null,null,null,null,null,null,null,null,null,null,null,null,null,null,null,"11 Internal skin colour","Select avaliable standard colours. Find more about standard colours from Qbiss Screen Book"]
[null,null,null,null,null,null,null,null,null,null,null,null,null,null,null,null,null,null,null,null,null,null,null,null,null,null,null,null,null,null,null,"12 Internal skin profile","All Qbiss Screen MW elements have smooth Back-side steel sheet profile"]
[null,null,null,null,null,null,null,null,null,null,null,null,null,null,null,null,null,null,null,null,null,null,null,null,null,null,null,null,null,null,null,"13 Internal skin coating","Considering project requirements, you can choose what type of coating is appropriate. ",null,null,null,null,null,null,null,null,null,"SP - Polyester"]
[null,null,null,null,null,null,null,null,null,null,null,null,null,null,null,null,null,null,null,null,null,null,null,null,null,null,null,null,null,null,null,null,null,null,null,null,null,null,null,null,null,null,"PVDF - Polyvinylidene fluoride"]
[null,null,null,null,null,null,null,null,null,null,null,null,null,null,null,null,null,null,null,null,null,null,null,null,null,null,null,null,null,null,null,null,null,null,null,null,null,null,null,null,null,null,"PUR/PA - Polyurethane"]
[null,null,null,null,null,null,null,null,null,null,null,null,null,null,null,null,null,null,null,null,null,null,null,null,null,null,null,null,null,null,null,null,null,null,null,null,null,null,null,null,null,null,"PVC - Polyvinyl chloride"]
[null,null,null,null,null,null,null,null,null,null,null,null,null,null,null,null,null,null,null,null,null,null,null,null,null,null,null,null,null,null,null,"14 Element type","Based on direction of assembly, choose appropriate type of element"]
[]
[]
[]
[]
[]
[]
[]
[]
[]
[]
[]
[]
[]
[]
[]
[]
[]
[]
[]
[]
[]
[]
[]
[]
[]
[]
[]
[]
[]
[]
[]
[]
[]
[]
[]
[]
[]
[]
[]
[]
[]
[]
[]
[]
[]
[null,null,null,null,null,null,null,null,null,null,null,null,null,null,null,null,null,null,null,null,null,null,null,null,null,null,null,null,null,null,null,"15 Fixing point","Select quantity of fixing points on Qbiss element according to structural calculation, made by Trimo technical support"]
[null,null,null,null,null,null,null,null,null,null,null,null,null,null,null,null,null,null,null,null,null,null,null,null,null,null,null,null,null,null,null,null,"Limitations: 2 < number of fixing points < 6",null,null,null,"(only on one side of the element)"]
[]
[]
[]
[]
[]
[]
[]
[]
[]
[]
[]
[]
[]
[]
[]
[]
[null,null,null,null,null,null,null,null,null,null,null,null,null,null,null,null,null,null,null,null,null,null,null,null,null,null,null,null,null,null,null,"Printscreen of structural calculation in SandStat"]
[null,null,null,null,null,null,null,null,null,null,null,null,null,null,null,null,null,null,null,null,null,null,null,null,null,null,null,null,null,null,null,"16  Other notes"]
[null,null,null,null,null,null,null,null,null,null,null,null,null,null,null,null,null,null,null,null,null,null,null,null,null,null,null,null,null,null,null,"17 Total","Total amount of facade elements - calculated automatically"]
[null,null,null,null,null,null,null,null,null,null,null,null,null,null,null,null,null,null,null,null,null,null,null,null,null,null,null,null,null,null,null,"STATUS","OK","\"- element completely defined"]
[null,null,null,null,null,null,null,null,null,null,null,null,null,null,null,null,null,null,null,null,null,null,null,null,null,null,null,null,null,null,null,null,"Not OK","\"- Some caracteristics of the element are missing, please fulfill all required cells."]

{"sheet":"3D edge-cut corner elements","index":6,"n_rows":124,"n_cols":43,"rows_kept":124,"cut":false,"hidden":true,"merged":[[0,0,0,23],[2,3,2,19],[2,20,2,21],[2,22,2,23],[3,3,3,19],[3,20,3,21],[3,22,3,23],[4,3,4,19],[4,20,4,21],[4,22,4,23],[5,13,5,15],[5,20,5,21],[5,22,5,23],[21,22,22,22],[21,23,22,23],[21,24,22,24],[30,1,33,2],[7,0,7,3],[9,0,9,1],[19,0,19,22],[20,4,20,11],[21,1,22,1],[21,2,22,2],[21,4,21,11],[21,12,21,15],[21,16,21,19],[21,20,22,20],[21,3,22,3]]}
["Qbiss Screen Cutting list for 3D edge-cut corner elements",null,null,null,null,null,null,null,null,null,null,null,null,null,null,null,null,null,null,null,null,null,null,null,null,null,null,null,null,null,null,"INSTRUCTIONS"]
[null,null,null,null,null,null,null,null,null,null,null,null,null,null,null,null,null,null,null,null,null,null,null,null,null,null,null,null,null,null,null,"Follow steps"]
[null,"Project name:",null,"Insert text on first page",null,null,null,null,null,null,null,null,null,null,null,null,null,null,null,null,"Date last saved:",null,"2020-02-03T10:49:57",null,null,null,null,null,null,null,null,"1 PHASE / FACADE / BUILDING","Mark positioning of the element according to design shop drawings"]
[null,"Customer name:",null,"Insert text on first page",null,null,null,null,null,null,null,null,null,null,null,null,null,null,null,null,"Last saved by:",null,"Slanšek Matic",null,null,null,null,null,null,null,null,"2 ELEMENT REF","Mark element according to design shop drawings"]
[null,"Customer order no:",null,"Insert text on first page",null,null,null,null,null,null,null,null,null,null,null,null,null,null,null,null,"Cutting list number:",null,"Insert text on first page",null,null,null,null,null,null,null,null,"3 QTY","Number of elements"]
[null,null,null,null,null,null,null,null,null,null,null,null,null,null,null,null,null,null,null,null,"Revision:",null,"Insert text on first page",null,null,null,null,null,null,null,null,"4 Core type","Mineral Wool"]
[null,null,null,null,null,null,null,null,null,null,null,null,null,null,null,null,null,null,null,null,null,null,null,null,null,null,null,null,null,null,null,"5 Unit dimensions"]
["STEP 1:",null,null,null,null,null,null,null,null,null,null,null,null,null,null,null,null,null,null,null,null,null,null,null,null,null,null,null,null,null,null,"T-","element thickness [mm]: 65"]
["Type of corner element:",null,null,null,null,null,null,null,null,null,null,null,null,null,null,null,null,null,null,null,null,null,null,null,null,null,null,null,null,null,null,"M-","element module width [mm]: from 600 up to 1200",null,null,null,null,"600mm < M = A+B < 1200mm"]
["3D_Corner element - horizontal",null,null,null,null,null,null,null,null,null,null,null,null,null,null,null,null,null,null,null,null,null,null,null,null,null,null,null,null,null,null,"R-","element length [mm]:  from 1000 up to 2000",null,null,null,null,"1000mm < R=R1+R2 < 2000mm"]
[null,null,null,null,null,null,null,null,null,null,null,null,null,null,null,null,null,null,null,null,null,null,null,null,null,null,null,null,null,null,null,null,"Element lenght is measured and scheduled between fixing (joint centres) - SEE PICTURES BELOW !!!"]
[null,null,null,null,null,null,null,null,null,null,null,null,null,null,null,null,null,null,null,null,null,null,null,null,null,null,null,null,null,null,null,"A, B, R1,R2 -","side of corner element"]
[null,null,null,null,null,null,null,null,null,null,null,null,null,null,null,null,null,null,null,null,null,null,null,null,null,null,null,null,null,null,null,"αR1R2 -","angle: from 90 degrees to 175 degrees"]
[null,null,null,null,null,null,null,null,null,null,null,null,null,null,null,null,null,null,null,null,null,null,null,null,null,null,null,null,null,null,null,"Limitations:","T","Amin(Bmin)","Amax(Bmax)","R1min(R2min)","R1max(R2max)"]
[null,null,null,null,null,null,null,null,null,null,null,null,null,null,null,null,null,null,null,null,null,null,null,null,null,null,null,null,null,null,null,null,65,300,900,600,1200]
[]
[]
[]
[]
["STEP 2:"]
[1,2,3,4,5,null,null,null,null,null,null,null,6,7,8,9,10,11,12,13,14,15,16,17]
["PHASE / FACADE /","ELEMENT REF:","QTY:","Core type","UNIT DIMENSIONS [mm]",null,null,null,null,null,null,null,"EXTERNAL SKIN",null,null,null,"INTERNAL SKIN",null,null,null,"ELEMENT Type","FIXING POINT","Other notes","TOTAL [m2]","STATUS"]
["BUILDING",null,null,null,"T","M","R","A","B","R1","R2","αR1R2","Thickness [mm]","Colour","Profile","Coating","Thickness [mm]","Colour","Profile","Coating",null,"QTY",null,null,null,null,null,null,null,"M*QTY","Total fixing points"]
[null,null,null,"Mineral wool",65,{"$f":"H24+I24","v":0},{"$f":"J24+K24","v":0},null,null,null,null,null,{"$f":"Thickness_of_external_steel_sheet","v":0.7},null,"G",{"$f":"IFERROR(VLOOKUP(N24,'Data 2'!$A$1:$B$29,2,FALSE),\"\")","v":""},null,null,"G",null,null,null,null,{"$f":"C24*F24/1000*G24/1000","v":0},{"$f":"IF(OR($A$10=\"\",C24=\"\",D24=\"\",E24=\"\",F24=\"\",H24=\"\",I24=\"\",J24=\"\",K24=\"\",L24=\"\",N24=\"\",Q24=\"\",R24=\"\",S24=\"\",T24=\"\",U24=\"\",V24=\"\"),\"Not OK\",\"OK\")","v":"Not OK"},null,null,null,null,{"$f":"F24*C24","v":0},{"$f":"V24*C24","v":0}]
[]
[null,"TOTAL QTY",{"$f":"SUM(C24:C25)","v":0},null,null,null,null,null,null,null,null,null,null,null,null,null,null,null,null,null,null,null,"TOTAL m2 of facade elements",{"$f":"SUM(X24:X25)","v":0}]
[null,"Module x QTY [m]:",{"$f":"SUM(AD24:AD25)/1000","v":0},null,null,null,null,null,null,null,null,null,null,null,null,null,null,null,null,null,null,null,"TOTAL fixing points",{"$f":"SUM(AE24:AE25)","v":0}]
[]
[]
[null,"Required fields"]
[null,"Input data doesn't meet Qbiss Screen limitations - see INSTRUCTIONS on the right"]
[]
[]
[]
[null,"Automatically filled"]
[]
[]
[]
[]
[]
[]
[]
[]
[null,null,null,null,null,null,null,null,null,null,null,null,null,null,null,null,null,null,null,null,null,null,null,null,null,null,null,null,null,null,null,"6 External skin thickness","In case of Qbiss Screen MW elements, to achieve perfect flatness, we always use 0,7 mm thick steel sheet"]
[null,null,null,null,null,null,null,null,null,null,null,null,null,null,null,null,null,null,null,null,null,null,null,null,null,null,null,null,null,null,null,"7 External skin colour","Select avaliable standard colours. Find more about standard colours from Qbiss Screen Book"]
[null,null,null,null,null,null,null,null,null,null,null,null,null,null,null,null,null,null,null,null,null,null,null,null,null,null,null,null,null,null,null,"8 External skin profile","All Qbiss Screen MW elements have smooth Front-side steel sheet profile"]
[null,null,null,null,null,null,null,null,null,null,null,null,null,null,null,null,null,null,null,null,null,null,null,null,null,null,null,null,null,null,null,"9 External skin coating","Based on colour selection, steel sheet coating is selected automatically"]
[null,null,null,null,null,null,null,null,null,null,null,null,null,null,null,null,null,null,null,null,null,null,null,null,null,null,null,null,null,null,null,"10 Internal skin thickness","We always use 0,7 mm ot 0,675 mm thick steel sheet"]
[null,null,null,null,null,null,null,null,null,null,null,null,null,null,null,null,null,null,null,null,null,null,null,null,null,null,null,null,null,null,null,"11 Internal skin colour","Select avaliable standard colours. Find more about standard colours from Qbiss Screen Book"]
[null,null,null,null,null,null,null,null,null,null,null,null,null,null,null,null,null,null,null,null,null,null,null,null,null,null,null,null,null,null,null,"12 Internal skin profile","All Qbiss Screen MW elements have smooth Back-side steel sheet profile"]
[null,null,null,null,null,null,null,null,null,null,null,null,null,null,null,null,null,null,null,null,null,null,null,null,null,null,null,null,null,null,null,"13 Internal skin coating","Considering project requirements, you can choose what type of coating is appropriate. ",null,null,null,null,null,null,null,null,null,"SP - Polyester"]
[null,null,null,null,null,null,null,null,null,null,null,null,null,null,null,null,null,null,null,null,null,null,null,null,null,null,null,null,null,null,null,null,null,null,null,null,null,null,null,null,null,null,"PVDF - Polyvinylidene fluoride"]
[null,null,null,null,null,null,null,null,null,null,null,null,null,null,null,null,null,null,null,null,null,null,null,null,null,null,null,null,null,null,null,null,null,null,null,null,null,null,null,null,null,null,"PUR/PA - Polyurethane"]
[null,null,null,null,null,null,null,null,null,null,null,null,null,null,null,null,null,null,null,null,null,null,null,null,null,null,null,null,null,null,null,null,null,null,null,null,null,null,null,null,null,null,"PVC - Polyvinyl chloride"]
[null,null,null,null,null,null,null,null,null,null,null,null,null,null,null,null,null,null,null,null,null,null,null,null,null,null,null,null,null,null,null,"14 Element type","Based on direction of assembly, choose appropriate type of element"]
[]
[]
[]
[]
[]
[]
[]
[]
[]
[]
[]
[]
[]
[]
[]
[]
[]
[]
[]
[]
[]
[]
[]
[]
[]
[]
[]
[]
[]
[]
[]
[]
[]
[]
[]
[]
[]
[]
[]
[]
[]
[]
[]
[]
[]
[]
[null,null,null,null,null,null,null,null,null,null,null,null,null,null,null,null,null,null,null,null,null,null,null,null,null,null,null,null,null,null,null,"15 Fixing point","Select quantity of fixing points on Qbiss element according to structural calculation, made by Trimo technical support"]
[null,null,null,null,null,null,null,null,null,null,null,null,null,null,null,null,null,null,null,null,null,null,null,null,null,null,null,null,null,null,null,null,"Limitations: 2 < number of fixing points < 6",null,null,null,null,"(only on one side of the element)"]
[]
[]
[]
[]
[]
[]
[]
[]
[]
[]
[]
[]
[]
[]
[]
[]
[null,null,null,null,null,null,null,null,null,null,null,null,null,null,null,null,null,null,null,null,null,null,null,null,null,null,null,null,null,null,null,"Printscreen of structural calculation in SandStat"]
[null,null,null,null,null,null,null,null,null,null,null,null,null,null,null,null,null,null,null,null,null,null,null,null,null,null,null,null,null,null,null,"16  Other notes"]
[null,null,null,null,null,null,null,null,null,null,null,null,null,null,null,null,null,null,null,null,null,null,null,null,null,null,null,null,null,null,null,"17 Total","Total amount of facade elements - calculated automatically"]
[null,null,null,null,null,null,null,null,null,null,null,null,null,null,null,null,null,null,null,null,null,null,null,null,null,null,null,null,null,null,null,"STATUS","OK","\"- element completely defined"]
[null,null,null,null,null,null,null,null,null,null,null,null,null,null,null,null,null,null,null,null,null,null,null,null,null,null,null,null,null,null,null,null,"Not OK","\"- Some caracteristics of the element are missing, please fulfill all required cells."]

{"sheet":"Accessories","index":7,"n_rows":44,"n_cols":27,"rows_kept":44,"cut":false,"hidden":false,"merged":[[30,0,30,1],[45,22,45,26],[33,22,33,26],[34,22,34,24],[34,26,34,28],[42,22,42,26],[35,22,35,26],[36,22,36,24],[36,26,36,28],[42,0,42,1],[35,0,35,1],[31,0,31,1],[32,0,32,1],[40,0,40,1],[28,26,28,28],[27,0,28,1],[27,2,28,2],[27,3,28,3],[27,8,28,8],[27,7,28,7],[27,6,28,6],[27,5,28,5],[27,4,28,4],[27,22,27,24],[27,26,27,28],[22,15,22,16],[23,15,23,16],[30,14,30,18],[32,14,32,18],[28,22,28,24],[31,19,32,19],[31,20,32,20],[12,7,17,7],[12,8,17,8],[4,22,4,25],[29,22,29,26],[18,6,23,6],[18,7,23,7],[18,8,23,8],[18,9,19,16],[20,9,21,11],[22,9,22,11],[23,9,23,11],[20,12,21,13],[22,12,22,13],[23,12,23,13],[20,14,21,14],[20,15,21,16],[0,0,0,20],[5,17,5,18],[5,19,5,20],[5,12,5,13],[2,17,2,18],[2,19,2,20],[3,17,3,18],[3,19,3,20],[4,17,4,18],[4,19,4,20],[12,6,17,6],[29,0,29,1],[24,0,24,1],[25,0,25,1],[26,0,26,1],[12,4,17,4],[12,5,17,5],[18,0,23,1],[18,2,23,2],[18,3,23,3],[18,4,23,4],[18,5,23,5],[12,0,17,1],[12,2,17,2],[12,3,17,3],[3,22,3,24],[5,22,5,24],[50,0,50,1],[44,0,44,1],[45,0,45,1],[46,0,46,1],[47,0,47,1],[48,0,48,1],[49,0,49,1],[43,0,43,1],[33,0,33,1],[34,0,34,1],[37,0,37,1],[38,0,38,1],[39,0,39,1],[41,0,41,1],[5,26,5,28],[9,3,11,3],[9,2,11,2],[9,0,11,1],[9,9,9,16],[9,7,11,8],[9,5,11,6],[9,4,11,4],[7,0,7,2]]}
["Qbiss Screen MW Accessories",null,null,null,null,null,null,null,null,null,null,null,null,null,null,null,null,null,null,null,null,null,"INSTRUCTIONS"]
[]
[null,"Project name:",null,{"$f":"IF('CUTTING LIST'!C10=\"INSERT TEXT\",\"Insert text on first page\",'CUTTING LIST'!C10)","v":"Insert text on first page"},null,null,null,null,null,null,null,null,null,null,null,null,null,"Date last saved:",null,{"$f":"ProfessorExcelLastSaveDate()","v":"2020-12-15T08:57:16"},null,null,"1 Type of fixation: select whether you would like to fix Qbiss One elements with Self-drilling or self-tapping screws"]
[null,"Customer name:",null,{"$f":"IF('CUTTING LIST'!C11=\"INSERT TEXT\",\"Insert text on first page\",'CUTTING LIST'!C11)","v":"Insert text on first page"},null,null,null,null,null,null,null,null,null,null,null,null,null,"Laste saved by:",null,{"$f":"ProfessorExcelLastSavedBy()","v":"Slanšek Matic"},null,null,"2 Fixing method:"]
[null,"Customer order no:",null,{"$f":"IF('CUTTING LIST'!C12=\"INSERT TEXT\",\"Insert text on first page\",'CUTTING LIST'!C18)","v":"Insert text on first page"},null,null,null,null,null,null,null,null,null,null,null,null,null,"Cutting list number:",null,{"$f":"IF('CUTTING LIST'!N3=\"Insert\",\"Insert text on first page\",'CUTTING LIST'!N3)","v":"Insert text on first page"},null,null,"OPTION X - Fixing through Qbiss One element joint"]
[null,null,{"$f":"'Qbiss Screen MW elements'!M10","v":{"$error":"#N/A"}},null,null,null,null,null,null,null,null,null,null,null,null,null,null,"Revision:",null,{"$f":"IF('CUTTING LIST'!N4=\"Insert\",\"Insert text on first page\",'CUTTING LIST'!N4)","v":"Insert text on first page"},null,null,"Self-drilling screw",null,null,null,"Self-tapping screw"]
[]
["LIST OF Accessories",null,null,null,null,null,null,null,null,null,null,null,"Required fields"]
[null,null,null,null,null,null,null,null,null,null,null,null,"Automatically filled"]
["NAME",null,"PICTURE","DESCRIPTION","Note","ESTIMATED NET quantity*",null,"ORDER quantity",null,"S p e c i f y   f i x a t i o n    s c r e w"]
[null,null,null,null,null,null,null,null,null,"1.",null,"2.","3.","4.","5.","6.","7."]
[null,null,null,null,null,null,null,null,null,"Type of fixation",null,"Fixing method (see instructions)","Thickness of substructure (mm)","Thickness of Qbiss One (mm)","Name of fixing screw","Quantity (pcs)","Code of fixing screw"]
[{"$f":"IF(ISNUMBER(SEARCH(\"horizontal\",'Qbiss Screen MW elements'!$M$10)),'Data 3 Accessories'!A8,IF(ISNUMBER(SEARCH(\"vertical\",'Qbiss Screen MW elements'!$M$10)),'Data 3 Accessories'!A32,IF(ISNUMBER(SEARCH(\"Soffit\",'Qbiss Screen MW elements'!$M$10)),'Data 3 Accessories'!A53,\"\")))","v":""},null,null,{"$f":"_xlfn.IFS(ISNUMBER(SEARCH(\"horizontal\",$C$6)),INDEX('Data 3 Accessories'!$D$8:$AM$20,MATCH(Accessories!$A13,'Data 3 Accessories'!$A$8:$A$20,0),MATCH(Accessories!$C$6,'Data 3 Accessories'!$D$1:$AM$1,0)),ISNUMBER(SEARCH(\"vertical\",$C$6)),INDEX('Data 3 Accessories'!$D$32:$S$44,MATCH(Accessories!$A13,'Data 3 Accessories'!$A$32:$A$44,0),MATCH(Accessories!$C$6,'Data 3 Accessories'!$D$23:$S$23,0)),ISNUMBER(SEARCH(\"Soffit\",$C$6)),INDEX('Data 3 Accessories'!$D$46:$AM$65,MATCH(Accessories!$A13,'Data 3 Accessories'!$A$46:$A$65,0),MATCH(Accessories!$C$6,'Data 3 Accessories'!$D$46:$AM$46,0)))","v":{"$error":"#N/A"}},{"$f":"_xlfn.IFS(ISNUMBER(SEARCH(\"horizontal\",$C$6)),INDEX('Data 3 Accessories'!$D$8:$AM$20,MATCH(Accessories!$A13,'Data 3 Accessories'!$A$8:$A$20,0),MATCH(Accessories!$C$6,'Data 3 Accessories'!$D$1:$AM$1,0)+1),ISNUMBER(SEARCH(\"vertical\",$C$6)),INDEX('Data 3 Accessories'!$D$32:$S$44,MATCH(Accessories!$A13,'Data 3 Accessories'!$A$32:$A$44,0),MATCH(Accessories!$C$6,'Data 3 Accessories'!$D$23:$S$23,0)+1),ISNUMBER(SEARCH(\"Soffit\",$C$6)),INDEX('Data 3 Accessories'!$D$46:$AM$65,MATCH(Accessories!$A13,'Data 3 Accessories'!$A$46:$A$65,0),MATCH(Accessories!$C$6,'Data 3 Accessories'!$D$46:$AM$46,0)+1))","v":{"$error":"#N/A"}},{"$f":"SUM('Qbiss Screen MW elements'!S27,'Longitudinal L-corner elements '!W27,'Transversal L-corner elements'!W27,'U-corner elements'!X27,'3D diagonal-cut corner element'!X27,'3D edge-cut corner elements'!X27)","v":0},{"$f":"VLOOKUP(A13,'Data 3 Accessories'!$A$8:$C$44,2,FALSE)","v":{"$error":"#N/A"}},null,{"$f":"G19","v":{"$error":"#N/A"}},null,{"$f":"M13&N13&L13","v":""},null,null,null,{"$f":"IF(J13=\"Self-drilling\",VLOOKUP(K13,'Fixing material data'!$A$18:$E$319,5,FALSE),VLOOKUP(K13,'Fixing material data'!$H$19:$L$51,5,FALSE))","v":{"$error":"#N/A"}},null,{"$f":"IF(J13=\"Self-drilling\",VLOOKUP(K13,'Fixing material data'!$A$18:$E$319,4,FALSE),VLOOKUP(K13,'Fixing material data'!$H$19:$L$51,4,FALSE))","v":{"$error":"#N/A"}}]
[null,null,null,null,null,null,null,null,null,null,{"$f":"M14&N14&L14","v":""},null,null,null,{"$f":"IF(J14=\"Self-drilling\",VLOOKUP(K14,'Fixing material data'!$A$18:$E$319,5,FALSE),VLOOKUP(K14,'Fixing material data'!$H$19:$L$51,5,FALSE))","v":{"$error":"#N/A"}},null,{"$f":"IF(J14=\"Self-drilling\",VLOOKUP(K14,'Fixing material data'!$A$18:$E$319,4,FALSE),VLOOKUP(K14,'Fixing material data'!$H$19:$L$51,4,FALSE))","v":{"$error":"#N/A"}}]
[null,null,null,null,null,null,null,null,null,null,"",null,null,null,{"$f":"IF(J15=\"Self-drilling\",VLOOKUP(K15,'Fixing material data'!$A$18:$E$319,5,FALSE),VLOOKUP(K15,'Fixing material data'!$H$19:$L$51,5,FALSE))","v":{"$error":"#N/A"}},null,{"$f":"IF(J15=\"Self-drilling\",VLOOKUP(K15,'Fixing material data'!$A$18:$E$319,4,FALSE),VLOOKUP(K15,'Fixing material data'!$H$19:$L$51,4,FALSE))","v":{"$error":"#N/A"}}]
[null,null,null,null,null,null,null,null,null,null,"",null,null,null,{"$f":"IF(J16=\"Self-drilling\",VLOOKUP(K16,'Fixing material data'!$A$18:$E$319,5,FALSE),VLOOKUP(K16,'Fixing material data'!$H$19:$L$51,5,FALSE))","v":{"$error":"#N/A"}},null,{"$f":"IF(J16=\"Self-drilling\",VLOOKUP(K16,'Fixing material data'!$A$18:$E$319,4,FALSE),VLOOKUP(K16,'Fixing material data'!$H$19:$L$51,4,FALSE))","v":{"$error":"#N/A"}}]
[null,null,null,null,null,null,null,null,null,null,"",null,null,null,{"$f":"IF(J17=\"Self-drilling\",VLOOKUP(K17,'Fixing material data'!$A$18:$E$319,5,FALSE),VLOOKUP(K17,'Fixing material data'!$H$19:$L$51,5,FALSE))","v":{"$error":"#N/A"}},null,{"$f":"IF(J17=\"Self-drilling\",VLOOKUP(K17,'Fixing material data'!$A$18:$E$319,4,FALSE),VLOOKUP(K17,'Fixing material data'!$H$19:$L$51,4,FALSE))","v":{"$error":"#N/A"}}]
[null,null,null,null,null,null,null,null,null,null,"",null,null,null,{"$f":"IF(J18=\"Self-drilling\",VLOOKUP(K18,'Fixing material data'!$A$18:$E$319,5,FALSE),VLOOKUP(K18,'Fixing material data'!$H$19:$L$51,5,FALSE))","v":{"$error":"#N/A"}},null,{"$f":"IF(J18=\"Self-drilling\",VLOOKUP(K18,'Fixing material data'!$A$18:$E$319,4,FALSE),VLOOKUP(K18,'Fixing material data'!$H$19:$L$51,4,FALSE))","v":{"$error":"#N/A"}}]
[{"$f":"IF(ISNUMBER(SEARCH(\"horizontal\",'Qbiss Screen MW elements'!$M$10)),'Data 3 Accessories'!A9,IF(ISNUMBER(SEARCH(\"vertical\",'Qbiss Screen MW elements'!$M$10)),'Data 3 Accessories'!A33,IF(ISNUMBER(SEARCH(\"Soffit\",'Qbiss Screen MW elements'!$M$10)),'Data 3 Accessories'!A54,\"\")))","v":""},null,null,{"$f":"_xlfn.IFS(ISNUMBER(SEARCH(\"horizontal\",$C$6)),INDEX('Data 3 Accessories'!$D$8:$AM$20,MATCH(Accessories!$A19,'Data 3 Accessories'!$A$8:$A$20,0),MATCH(Accessories!$C$6,'Data 3 Accessories'!$D$1:$AM$1,0)),ISNUMBER(SEARCH(\"vertical\",$C$6)),INDEX('Data 3 Accessories'!$D$32:$S$44,MATCH(Accessories!$A19,'Data 3 Accessories'!$A$32:$A$44,0),MATCH(Accessories!$C$6,'Data 3 Accessories'!$D$23:$S$23,0)),ISNUMBER(SEARCH(\"Soffit\",$C$6)),INDEX('Data 3 Accessories'!$D$46:$AM$65,MATCH(Accessories!$A19,'Data 3 Accessories'!$A$46:$A$65,0),MATCH(Accessories!$C$6,'Data 3 Accessories'!$D$46:$AM$46,0)))","v":{"$error":"#N/A"}},{"$f":"_xlfn.IFS(ISNUMBER(SEARCH(\"horizontal\",$C$6)),INDEX('Data 3 Accessories'!$D$8:$AM$20,MATCH(Accessories!$A19,'Data 3 Accessories'!$A$8:$A$20,0),MATCH(Accessories!$C$6,'Data 3 Accessories'!$D$1:$AM$1,0)+1),ISNUMBER(SEARCH(\"vertical\",$C$6)),INDEX('Data 3 Accessories'!$D$32:$S$44,MATCH(Accessories!$A19,'Data 3 Accessories'!$A$32:$A$44,0),MATCH(Accessories!$C$6,'Data 3 Accessories'!$D$23:$S$23,0)+1),ISNUMBER(SEARCH(\"Soffit\",$C$6)),INDEX('Data 3 Accessories'!$D$46:$AM$65,MATCH(Accessories!$A19,'Data 3 Accessories'!$A$46:$A$65,0),MATCH(Accessories!$C$6,'Data 3 Accessories'!$D$46:$AM$46,0)+1))","v":{"$error":"#N/A"}},{"$f":"2*('Qbiss Screen MW elements'!C26+'Longitudinal L-corner elements '!C26+'Transversal L-corner elements'!C26+'U-corner elements'!C26+'3D diagonal-cut corner element'!C26+'3D edge-cut corner elements'!C26)","v":0},{"$f":"VLOOKUP(A19,'Data 3 Accessories'!$A$8:$C$44,2,FALSE)","v":{"$error":"#N/A"}},null,{"$f":"G19","v":{"$error":"#N/A"}},"S p e c i f y   t e m p o r a r y  f i x i n g    s c r e w"]
[]
[null,null,null,null,null,null,null,null,null,"Thickness of substructure",null,null,"Name of fixing screw",null,"Quantity (pcs)","Code of fixing screw"]
[]
[null,null,null,null,null,null,null,null,null,"up to 5mm",null,null,"SCREW E-VS BOHR 3 5,5 X 25",null,null,30017491]
[null,null,null,null,null,null,null,null,null,"5mm - 12,5mm",null,null,"SCREW E-VS BOHR 5 5,5X32",null,null,30017492]
[{"$f":"IF(ISNUMBER(SEARCH(\"horizontal\",'Qbiss Screen MW elements'!$M$10)),'Data 3 Accessories'!A10,IF(ISNUMBER(SEARCH(\"vertical\",'Qbiss Screen MW elements'!$M$10)),'Data 3 Accessories'!A34,IF(ISNUMBER(SEARCH(\"Soffit\",'Qbiss Screen MW elements'!$M$10)),'Data 3 Accessories'!A55,\"\")))","v":""},null,null,{"$f":"_xlfn.IFS(ISNUMBER(SEARCH(\"horizontal\",$C$6)),INDEX('Data 3 Accessories'!$D$8:$AM$20,MATCH(Accessories!$A25,'Data 3 Accessories'!$A$8:$A$20,0),MATCH(Accessories!$C$6,'Data 3 Accessories'!$D$1:$AM$1,0)),ISNUMBER(SEARCH(\"vertical\",$C$6)),INDEX('Data 3 Accessories'!$D$32:$S$44,MATCH(Accessories!$A25,'Data 3 Accessories'!$A$32:$A$44,0),MATCH(Accessories!$C$6,'Data 3 Accessories'!$D$23:$S$23,0)),ISNUMBER(SEARCH(\"Soffit\",$C$6)),INDEX('Data 3 Accessories'!$D$46:$AM$65,MATCH(Accessories!$A25,'Data 3 Accessories'!$A$46:$A$65,0),MATCH(Accessories!$C$6,'Data 3 Accessories'!$D$46:$AM$46,0)))","v":{"$error":"#N/A"}},{"$f":"_xlfn.IFS(ISNUMBER(SEARCH(\"horizontal\",$C$6)),INDEX('Data 3 Accessories'!$D$8:$AM$20,MATCH(Accessories!$A25,'Data 3 Accessories'!$A$8:$A$20,0),MATCH(Accessories!$C$6,'Data 3 Accessories'!$D$1:$AM$1,0)+1),ISNUMBER(SEARCH(\"vertical\",$C$6)),INDEX('Data 3 Accessories'!$D$32:$S$44,MATCH(Accessories!$A25,'Data 3 Accessories'!$A$32:$A$44,0),MATCH(Accessories!$C$6,'Data 3 Accessories'!$D$23:$S$23,0)+1),ISNUMBER(SEARCH(\"Soffit\",$C$6)),INDEX('Data 3 Accessories'!$D$46:$AM$65,MATCH(Accessories!$A25,'Data 3 Accessories'!$A$46:$A$65,0),MATCH(Accessories!$C$6,'Data 3 Accessories'!$D$46:$AM$46,0)+1))","v":{"$error":"#N/A"}},{"$f":"SUM('Qbiss Screen MW elements'!C27,'Longitudinal L-corner elements '!C27,'Transversal L-corner elements'!C27,'U-corner elements'!C27,'3D diagonal-cut corner element'!C27,'3D edge-cut corner elements'!C27)","v":0},{"$f":"VLOOKUP(A25,'Data 3 Accessories'!$A$8:$C$44,2,FALSE)","v":{"$error":"#N/A"}},null,{"$error":"#N/A"}]
[{"$f":"IF(ISNUMBER(SEARCH(\"horizontal\",'Qbiss Screen MW elements'!$M$10)),'Data 3 Accessories'!A11,IF(ISNUMBER(SEARCH(\"vertical\",'Qbiss Screen MW elements'!$M$10)),'Data 3 Accessories'!A35,IF(ISNUMBER(SEARCH(\"Soffit\",'Qbiss Screen MW elements'!$M$10)),'Data 3 Accessories'!A56,\"\")))","v":""},null,null,{"$f":"_xlfn.IFS(ISNUMBER(SEARCH(\"horizontal\",$C$6)),INDEX('Data 3 Accessories'!$D$8:$AM$20,MATCH(Accessories!$A26,'Data 3 Accessories'!$A$8:$A$20,0),MATCH(Accessories!$C$6,'Data 3 Accessories'!$D$1:$AM$1,0)),ISNUMBER(SEARCH(\"vertical\",$C$6)),INDEX('Data 3 Accessories'!$D$32:$S$44,MATCH(Accessories!$A26,'Data 3 Accessories'!$A$32:$A$44,0),MATCH(Accessories!$C$6,'Data 3 Accessories'!$D$23:$S$23,0)),ISNUMBER(SEARCH(\"Soffit\",$C$6)),INDEX('Data 3 Accessories'!$D$46:$AM$65,MATCH(Accessories!$A26,'Data 3 Accessories'!$A$46:$A$65,0),MATCH(Accessories!$C$6,'Data 3 Accessories'!$D$46:$AM$46,0)))","v":{"$error":"#N/A"}},{"$f":"_xlfn.IFS(ISNUMBER(SEARCH(\"horizontal\",$C$6)),INDEX('Data 3 Accessories'!$D$8:$AM$20,MATCH(Accessories!$A26,'Data 3 Accessories'!$A$8:$A$20,0),MATCH(Accessories!$C$6,'Data 3 Accessories'!$D$1:$AM$1,0)+1),ISNUMBER(SEARCH(\"vertical\",$C$6)),INDEX('Data 3 Accessories'!$D$32:$S$44,MATCH(Accessories!$A26,'Data 3 Accessories'!$A$32:$A$44,0),MATCH(Accessories!$C$6,'Data 3 Accessories'!$D$23:$S$23,0)+1),ISNUMBER(SEARCH(\"Soffit\",$C$6)),INDEX('Data 3 Accessories'!$D$46:$AM$65,MATCH(Accessories!$A26,'Data 3 Accessories'!$A$46:$A$65,0),MATCH(Accessories!$C$6,'Data 3 Accessories'!$D$46:$AM$46,0)+1))","v":{"$error":"#N/A"}},{"$f":"F25","v":0},{"$f":"VLOOKUP(A26,'Data 3 Accessories'!$A$8:$C$44,2,FALSE)","v":{"$error":"#N/A"}},null,{"$error":"#N/A"}]
[{"$f":"IF(ISNUMBER(SEARCH(\"horizontal\",'Qbiss Screen MW elements'!$M$10)),'Data 3 Accessories'!A12,IF(ISNUMBER(SEARCH(\"vertical\",'Qbiss Screen MW elements'!$M$10)),'Data 3 Accessories'!A36,IF(ISNUMBER(SEARCH(\"Soffit\",'Qbiss Screen MW elements'!$M$10)),'Data 3 Accessories'!A57,\"\")))","v":""},null,null,{"$f":"_xlfn.IFS(ISNUMBER(SEARCH(\"horizontal\",$C$6)),INDEX('Data 3 Accessories'!$D$8:$AM$20,MATCH(Accessories!$A27,'Data 3 Accessories'!$A$8:$A$20,0),MATCH(Accessories!$C$6,'Data 3 Accessories'!$D$1:$AM$1,0)),ISNUMBER(SEARCH(\"vertical\",$C$6)),INDEX('Data 3 Accessories'!$D$32:$S$44,MATCH(Accessories!$A27,'Data 3 Accessories'!$A$32:$A$44,0),MATCH(Accessories!$C$6,'Data 3 Accessories'!$D$23:$S$23,0)),ISNUMBER(SEARCH(\"Soffit\",$C$6)),INDEX('Data 3 Accessories'!$D$46:$AM$65,MATCH(Accessories!$A27,'Data 3 Accessories'!$A$46:$A$65,0),MATCH(Accessories!$C$6,'Data 3 Accessories'!$D$46:$AM$46,0)))","v":{"$error":"#N/A"}},{"$f":"_xlfn.IFS(ISNUMBER(SEARCH(\"horizontal\",$C$6)),INDEX('Data 3 Accessories'!$D$8:$AM$20,MATCH(Accessories!$A27,'Data 3 Accessories'!$A$8:$A$20,0),MATCH(Accessories!$C$6,'Data 3 Accessories'!$D$1:$AM$1,0)+1),ISNUMBER(SEARCH(\"vertical\",$C$6)),INDEX('Data 3 Accessories'!$D$32:$S$44,MATCH(Accessories!$A27,'Data 3 Accessories'!$A$32:$A$44,0),MATCH(Accessories!$C$6,'Data 3 Accessories'!$D$23:$S$23,0)+1),ISNUMBER(SEARCH(\"Soffit\",$C$6)),INDEX('Data 3 Accessories'!$D$46:$AM$65,MATCH(Accessories!$A27,'Data 3 Accessories'!$A$46:$A$65,0),MATCH(Accessories!$C$6,'Data 3 Accessories'!$D$46:$AM$46,0)+1))","v":{"$error":"#N/A"}},0,{"$f":"VLOOKUP(A27,'Data 3 Accessories'!$A$8:$C$44,2,FALSE)","v":{"$error":"#N/A"}},null,{"$error":"#N/A"},null,null,null,null,null,null,null,null,null,null,null,null,null,"OPTION Y - Fixing through Qbiss One element"]
[{"$f":"IF(ISNUMBER(SEARCH(\"horizontal\",'Qbiss Screen MW elements'!$M$10)),'Data 3 Accessories'!A13,IF(ISNUMBER(SEARCH(\"vertical\",'Qbiss Screen MW elements'!$M$10)),'Data 3 Accessories'!A37,IF(ISNUMBER(SEARCH(\"Soffit\",'Qbiss Screen MW elements'!$M$10)),'Data 3 Accessories'!A58,\"\")))","v":""},null,null,{"$f":"_xlfn.IFS(ISNUMBER(SEARCH(\"horizontal\",$C$6)),INDEX('Data 3 Accessories'!$D$8:$AM$20,MATCH(Accessories!$A28,'Data 3 Accessories'!$A$8:$A$20,0),MATCH(Accessories!$C$6,'Data 3 Accessories'!$D$1:$AM$1,0)),ISNUMBER(SEARCH(\"vertical\",$C$6)),INDEX('Data 3 Accessories'!$D$32:$S$44,MATCH(Accessories!$A28,'Data 3 Accessories'!$A$32:$A$44,0),MATCH(Accessories!$C$6,'Data 3 Accessories'!$D$23:$S$23,0)),ISNUMBER(SEARCH(\"Soffit\",$C$6)),INDEX('Data 3 Accessories'!$D$46:$AM$65,MATCH(Accessories!$A28,'Data 3 Accessories'!$A$46:$A$65,0),MATCH(Accessories!$C$6,'Data 3 Accessories'!$D$46:$AM$46,0)))","v":{"$error":"#N/A"}},{"$f":"_xlfn.IFS(ISNUMBER(SEARCH(\"horizontal\",$C$6)),INDEX('Data 3 Accessories'!$D$8:$AM$20,MATCH(Accessories!$A28,'Data 3 Accessories'!$A$8:$A$20,0),MATCH(Accessories!$C$6,'Data 3 Accessories'!$D$1:$AM$1,0)+1),ISNUMBER(SEARCH(\"vertical\",$C$6)),INDEX('Data 3 Accessories'!$D$32:$S$44,MATCH(Accessories!$A28,'Data 3 Accessories'!$A$32:$A$44,0),MATCH(Accessories!$C$6,'Data 3 Accessories'!$D$23:$S$23,0)+1),ISNUMBER(SEARCH(\"Soffit\",$C$6)),INDEX('Data 3 Accessories'!$D$46:$AM$65,MATCH(Accessories!$A28,'Data 3 Accessories'!$A$46:$A$65,0),MATCH(Accessories!$C$6,'Data 3 Accessories'!$D$46:$AM$46,0)+1))","v":{"$error":"#N/A"}},{"$f":"IF(ISNUMBER(SEARCH(\"horizontal\",C6)),ROUNDUP(SUM('Qbiss Screen MW elements'!S26,'Longitudinal L-corner elements '!W26,'Transversal L-corner elements'!W26,'U-corner elements'!X26,'3D diagonal-cut corner element'!X26,'3D edge-cut corner elements'!X26)/500,0),SUM('Qbiss Screen MW elements'!C26,'Longitudinal L-corner elements '!C26,'Transversal L-corner elements'!C26,'U-corner elements'!C26,'3D diagonal-cut corner element'!C26,'3D edge-cut corner elements'!C26))","v":0},{"$f":"VLOOKUP(A28,'Data 3 Accessories'!$A$8:$C$44,2,FALSE)","v":{"$error":"#N/A"}},null,{"$f":"G28","v":{"$error":"#N/A"}},null,null,null,null,null,null,null,null,null,null,null,null,null,"Self-drilling screw",null,null,null,"Self-tapping screw"]
[]
[{"$f":"IF(ISNUMBER(SEARCH(\"horizontal\",'Qbiss Screen MW elements'!$M$10)),'Data 3 Accessories'!A14,IF(ISNUMBER(SEARCH(\"vertical\",'Qbiss Screen MW elements'!$M$10)),'Data 3 Accessories'!A38,IF(ISNUMBER(SEARCH(\"Soffit\",'Qbiss Screen MW elements'!$M$10)),'Data 3 Accessories'!A59,\"\")))","v":""},null,null,null,{"$f":"_xlfn.IFS(ISNUMBER(SEARCH(\"horizontal\",$C$6)),INDEX('Data 3 Accessories'!$D$8:$AM$20,MATCH(Accessories!$A30,'Data 3 Accessories'!$A$8:$A$20,0),MATCH(Accessories!$C$6,'Data 3 Accessories'!$D$1:$AM$1,0)+1),ISNUMBER(SEARCH(\"vertical\",$C$6)),INDEX('Data 3 Accessories'!$D$32:$S$44,MATCH(Accessories!$A30,'Data 3 Accessories'!$A$32:$A$44,0),MATCH(Accessories!$C$6,'Data 3 Accessories'!$D$23:$S$23,0)+1),ISNUMBER(SEARCH(\"Soffit\",$C$6)),INDEX('Data 3 Accessories'!$D$46:$AM$65,MATCH(Accessories!$A30,'Data 3 Accessories'!$A$46:$A$65,0),MATCH(Accessories!$C$6,'Data 3 Accessories'!$D$46:$AM$46,0)+1))","v":{"$error":"#N/A"}},{"$f":"IF(ISNUMBER(SEARCH(\"vertical\",C6)),ROUNDUP(SUM('Qbiss Screen MW elements'!S26,'Longitudinal L-corner elements '!W26,'Transversal L-corner elements'!W26,'U-corner elements'!X26,'3D diagonal-cut corner element'!X26,'3D edge-cut corner elements'!X26)/500,0),\"Not defined\")","v":"Not defined"},{"$f":"VLOOKUP(A30,'Data 3 Accessories'!$A$8:$C$44,2,FALSE)","v":{"$error":"#N/A"}},null,{"$error":"#N/A"}]
[{"$f":"IF(ISNUMBER(SEARCH(\"horizontal\",'Qbiss Screen MW elements'!$M$10)),'Data 3 Accessories'!A15,IF(ISNUMBER(SEARCH(\"vertical\",'Qbiss Screen MW elements'!$M$10)),'Data 3 Accessories'!A39,IF(ISNUMBER(SEARCH(\"Soffit\",'Qbiss Screen MW elements'!$M$10)),'Data 3 Accessories'!A60,\"\")))","v":""},null,null,{"$f":"_xlfn.IFS(ISNUMBER(SEARCH(\"horizontal\",$C$6)),INDEX('Data 3 Accessories'!$D$8:$AM$20,MATCH(Accessories!$A31,'Data 3 Accessories'!$A$8:$A$20,0),MATCH(Accessories!$C$6,'Data 3 Accessories'!$D$1:$AM$1,0)),ISNUMBER(SEARCH(\"vertical\",$C$6)),INDEX('Data 3 Accessories'!$D$32:$S$44,MATCH(Accessories!$A31,'Data 3 Accessories'!$A$32:$A$44,0),MATCH(Accessories!$C$6,'Data 3 Accessories'!$D$23:$S$23,0)),ISNUMBER(SEARCH(\"Soffit\",$C$6)),INDEX('Data 3 Accessories'!$D$46:$AM$65,MATCH(Accessories!$A31,'Data 3 Accessories'!$A$46:$A$65,0),MATCH(Accessories!$C$6,'Data 3 Accessories'!$D$46:$AM$46,0)))","v":{"$error":"#N/A"}},{"$f":"_xlfn.IFS(ISNUMBER(SEARCH(\"horizontal\",$C$6)),INDEX('Data 3 Accessories'!$D$8:$AM$20,MATCH(Accessories!$A31,'Data 3 Accessories'!$A$8:$A$20,0),MATCH(Accessories!$C$6,'Data 3 Accessories'!$D$1:$AM$1,0)+1),ISNUMBER(SEARCH(\"vertical\",$C$6)),INDEX('Data 3 Accessories'!$D$32:$S$44,MATCH(Accessories!$A31,'Data 3 Accessories'!$A$32:$A$44,0),MATCH(Accessories!$C$6,'Data 3 Accessories'!$D$23:$S$23,0)+1),ISNUMBER(SEARCH(\"Soffit\",$C$6)),INDEX('Data 3 Accessories'!$D$46:$AM$65,MATCH(Accessories!$A31,'Data 3 Accessories'!$A$46:$A$65,0),MATCH(Accessories!$C$6,'Data 3 Accessories'!$D$46:$AM$46,0)+1))","v":{"$error":"#N/A"}},"Not defined",{"$f":"VLOOKUP(A31,'Data 3 Accessories'!$A$8:$C$44,2,FALSE)","v":{"$error":"#N/A"}},null,{"$error":"#N/A"}]
[{"$f":"IF(ISNUMBER(SEARCH(\"horizontal\",'Qbiss Screen MW elements'!$M$10)),'Data 3 Accessories'!A16,IF(ISNUMBER(SEARCH(\"vertical\",'Qbiss Screen MW elements'!$M$10)),'Data 3 Accessories'!A40,IF(ISNUMBER(SEARCH(\"Soffit\",'Qbiss Screen MW elements'!$M$10)),'Data 3 Accessories'!A61,\"\")))","v":""},null,null,{"$f":"_xlfn.IFS(ISNUMBER(SEARCH(\"horizontal\",$C$6)),INDEX('Data 3 Accessories'!$D$8:$AM$20,MATCH(Accessories!$A32,'Data 3 Accessories'!$A$8:$A$20,0),MATCH(Accessories!$C$6,'Data 3 Accessories'!$D$1:$AM$1,0)),ISNUMBER(SEARCH(\"vertical\",$C$6)),INDEX('Data 3 Accessories'!$D$32:$S$44,MATCH(Accessories!$A32,'Data 3 Accessories'!$A$32:$A$44,0),MATCH(Accessories!$C$6,'Data 3 Accessories'!$D$23:$S$23,0)),ISNUMBER(SEARCH(\"Soffit\",$C$6)),INDEX('Data 3 Accessories'!$D$46:$AM$65,MATCH(Accessories!$A32,'Data 3 Accessories'!$A$46:$A$65,0),MATCH(Accessories!$C$6,'Data 3 Accessories'!$D$46:$AM$46,0)))","v":{"$error":"#N/A"}},{"$f":"_xlfn.IFS(ISNUMBER(SEARCH(\"horizontal\",$C$6)),INDEX('Data 3 Accessories'!$D$8:$AM$20,MATCH(Accessories!$A32,'Data 3 Accessories'!$A$8:$A$20,0),MATCH(Accessories!$C$6,'Data 3 Accessories'!$D$1:$AM$1,0)+1),ISNUMBER(SEARCH(\"vertical\",$C$6)),INDEX('Data 3 Accessories'!$D$32:$S$44,MATCH(Accessories!$A32,'Data 3 Accessories'!$A$32:$A$44,0),MATCH(Accessories!$C$6,'Data 3 Accessories'!$D$23:$S$23,0)+1),ISNUMBER(SEARCH(\"Soffit\",$C$6)),INDEX('Data 3 Accessories'!$D$46:$AM$65,MATCH(Accessories!$A32,'Data 3 Accessories'!$A$46:$A$65,0),MATCH(Accessories!$C$6,'Data 3 Accessories'!$D$46:$AM$46,0)+1))","v":{"$error":"#N/A"}},"Not defined",{"$f":"VLOOKUP(A32,'Data 3 Accessories'!$A$8:$C$44,2,FALSE)","v":{"$error":"#N/A"}},null,{"$error":"#N/A"}]
[{"$f":"IF(ISNUMBER(SEARCH(\"horizontal\",'Qbiss Screen MW elements'!$M$10)),'Data 3 Accessories'!A17,IF(ISNUMBER(SEARCH(\"vertical\",'Qbiss Screen MW elements'!$M$10)),'Data 3 Accessories'!A41,IF(ISNUMBER(SEARCH(\"Soffit\",'Qbiss Screen MW elements'!$M$10)),'Data 3 Accessories'!A62,\"\")))","v":""},null,null,{"$f":"_xlfn.IFS(ISNUMBER(SEARCH(\"horizontal\",$C$6)),INDEX('Data 3 Accessories'!$D$8:$AM$20,MATCH(Accessories!$A33,'Data 3 Accessories'!$A$8:$A$20,0),MATCH(Accessories!$C$6,'Data 3 Accessories'!$D$1:$AM$1,0)),ISNUMBER(SEARCH(\"vertical\",$C$6)),INDEX('Data 3 Accessories'!$D$32:$S$44,MATCH(Accessories!$A33,'Data 3 Accessories'!$A$32:$A$44,0),MATCH(Accessories!$C$6,'Data 3 Accessories'!$D$23:$S$23,0)),ISNUMBER(SEARCH(\"Soffit\",$C$6)),INDEX('Data 3 Accessories'!$D$46:$AM$65,MATCH(Accessories!$A33,'Data 3 Accessories'!$A$46:$A$65,0),MATCH(Accessories!$C$6,'Data 3 Accessories'!$D$46:$AM$46,0)))","v":{"$error":"#N/A"}},{"$f":"_xlfn.IFS(ISNUMBER(SEARCH(\"horizontal\",$C$6)),INDEX('Data 3 Accessories'!$D$8:$AM$20,MATCH(Accessories!$A33,'Data 3 Accessories'!$A$8:$A$20,0),MATCH(Accessories!$C$6,'Data 3 Accessories'!$D$1:$AM$1,0)+1),ISNUMBER(SEARCH(\"vertical\",$C$6)),INDEX('Data 3 Accessories'!$D$32:$S$44,MATCH(Accessories!$A33,'Data 3 Accessories'!$A$32:$A$44,0),MATCH(Accessories!$C$6,'Data 3 Accessories'!$D$23:$S$23,0)+1),ISNUMBER(SEARCH(\"Soffit\",$C$6)),INDEX('Data 3 Accessories'!$D$46:$AM$65,MATCH(Accessories!$A33,'Data 3 Accessories'!$A$46:$A$65,0),MATCH(Accessories!$C$6,'Data 3 Accessories'!$D$46:$AM$46,0)+1))","v":{"$error":"#N/A"}},"Not defined",{"$f":"VLOOKUP(A33,'Data 3 Accessories'!$A$8:$C$44,2,FALSE)","v":{"$error":"#N/A"}},null,{"$error":"#N/A"}]
[{"$f":"IF(ISNUMBER(SEARCH(\"horizontal\",'Qbiss Screen MW elements'!$M$10)),'Data 3 Accessories'!A18,IF(ISNUMBER(SEARCH(\"vertical\",'Qbiss Screen MW elements'!$M$10)),'Data 3 Accessories'!A42,IF(ISNUMBER(SEARCH(\"Soffit\",'Qbiss Screen MW elements'!$M$10)),'Data 3 Accessories'!A63,\"\")))","v":""},null,null,{"$f":"_xlfn.IFS(ISNUMBER(SEARCH(\"horizontal\",$C$6)),INDEX('Data 3 Accessories'!$D$8:$AM$20,MATCH(Accessories!$A34,'Data 3 Accessories'!$A$8:$A$20,0),MATCH(Accessories!$C$6,'Data 3 Accessories'!$D$1:$AM$1,0)),ISNUMBER(SEARCH(\"vertical\",$C$6)),INDEX('Data 3 Accessories'!$D$32:$S$44,MATCH(Accessories!$A34,'Data 3 Accessories'!$A$32:$A$44,0),MATCH(Accessories!$C$6,'Data 3 Accessories'!$D$23:$S$23,0)),ISNUMBER(SEARCH(\"Soffit\",$C$6)),INDEX('Data 3 Accessories'!$D$46:$AM$65,MATCH(Accessories!$A34,'Data 3 Accessories'!$A$46:$A$65,0),MATCH(Accessories!$C$6,'Data 3 Accessories'!$D$46:$AM$46,0)))","v":{"$error":"#N/A"}},{"$f":"_xlfn.IFS(ISNUMBER(SEARCH(\"horizontal\",$C$6)),INDEX('Data 3 Accessories'!$D$8:$AM$20,MATCH(Accessories!$A34,'Data 3 Accessories'!$A$8:$A$20,0),MATCH(Accessories!$C$6,'Data 3 Accessories'!$D$1:$AM$1,0)+1),ISNUMBER(SEARCH(\"vertical\",$C$6)),INDEX('Data 3 Accessories'!$D$32:$S$44,MATCH(Accessories!$A34,'Data 3 Accessories'!$A$32:$A$44,0),MATCH(Accessories!$C$6,'Data 3 Accessories'!$D$23:$S$23,0)+1),ISNUMBER(SEARCH(\"Soffit\",$C$6)),INDEX('Data 3 Accessories'!$D$46:$AM$65,MATCH(Accessories!$A34,'Data 3 Accessories'!$A$46:$A$65,0),MATCH(Accessories!$C$6,'Data 3 Accessories'!$D$46:$AM$46,0)+1))","v":{"$error":"#N/A"}},"Not defined",{"$f":"VLOOKUP(A34,'Data 3 Accessories'!$A$8:$C$44,2,FALSE)","v":{"$error":"#N/A"}},null,{"$error":"#N/A"},null,null,null,null,null,null,null,null,null,null,null,null,null,"OPTION Z - Fixing through longitudinal joint of Qbiss One element"]
[{"$f":"IF(ISNUMBER(SEARCH(\"horizontal\",'Qbiss Screen MW elements'!$M$10)),'Data 3 Accessories'!A19,IF(ISNUMBER(SEARCH(\"vertical\",'Qbiss Screen MW elements'!$M$10)),'Data 3 Accessories'!A43,IF(ISNUMBER(SEARCH(\"Soffit\",'Qbiss Screen MW elements'!$M$10)),'Data 3 Accessories'!A64,\"\")))","v":""},null,null,{"$f":"_xlfn.IFS(ISNUMBER(SEARCH(\"horizontal\",$C$6)),INDEX('Data 3 Accessories'!$D$8:$AM$20,MATCH(Accessories!$A35,'Data 3 Accessories'!$A$8:$A$20,0),MATCH(Accessories!$C$6,'Data 3 Accessories'!$D$1:$AM$1,0)),ISNUMBER(SEARCH(\"vertical\",$C$6)),INDEX('Data 3 Accessories'!$D$32:$S$44,MATCH(Accessories!$A35,'Data 3 Accessories'!$A$32:$A$44,0),MATCH(Accessories!$C$6,'Data 3 Accessories'!$D$23:$S$23,0)),ISNUMBER(SEARCH(\"Soffit\",$C$6)),INDEX('Data 3 Accessories'!$D$46:$AM$65,MATCH(Accessories!$A35,'Data 3 Accessories'!$A$46:$A$65,0),MATCH(Accessories!$C$6,'Data 3 Accessories'!$D$46:$AM$46,0)))","v":{"$error":"#N/A"}},{"$f":"_xlfn.IFS(ISNUMBER(SEARCH(\"horizontal\",$C$6)),INDEX('Data 3 Accessories'!$D$8:$AM$20,MATCH(Accessories!$A35,'Data 3 Accessories'!$A$8:$A$20,0),MATCH(Accessories!$C$6,'Data 3 Accessories'!$D$1:$AM$1,0)+1),ISNUMBER(SEARCH(\"vertical\",$C$6)),INDEX('Data 3 Accessories'!$D$32:$S$44,MATCH(Accessories!$A35,'Data 3 Accessories'!$A$32:$A$44,0),MATCH(Accessories!$C$6,'Data 3 Accessories'!$D$23:$S$23,0)+1),ISNUMBER(SEARCH(\"Soffit\",$C$6)),INDEX('Data 3 Accessories'!$D$46:$AM$65,MATCH(Accessories!$A35,'Data 3 Accessories'!$A$46:$A$65,0),MATCH(Accessories!$C$6,'Data 3 Accessories'!$D$46:$AM$46,0)+1))","v":{"$error":"#N/A"}},"Not defined",{"$f":"VLOOKUP(A35,'Data 3 Accessories'!$A$8:$C$44,2,FALSE)","v":{"$error":"#N/A"}},null,{"$error":"#N/A"},null,null,null,null,null,null,null,null,null,null,null,null,null,"Self-drilling screw",null,null,null,"Self-tapping screw"]
[{"$f":"IF(ISNUMBER(SEARCH(\"horizontal\",'Qbiss Screen MW elements'!$M$10)),'Data 3 Accessories'!A20,IF(ISNUMBER(SEARCH(\"vertical\",'Qbiss Screen MW elements'!$M$10)),'Data 3 Accessories'!A44,IF(ISNUMBER(SEARCH(\"Soffit\",'Qbiss Screen MW elements'!$M$10)),'Data 3 Accessories'!A65,\"\")))","v":""},null,null,{"$f":"_xlfn.IFS(ISNUMBER(SEARCH(\"horizontal\",$C$6)),INDEX('Data 3 Accessories'!$D$8:$AM$20,MATCH(Accessories!$A36,'Data 3 Accessories'!$A$8:$A$20,0),MATCH(Accessories!$C$6,'Data 3 Accessories'!$D$1:$AM$1,0)),ISNUMBER(SEARCH(\"vertical\",$C$6)),INDEX('Data 3 Accessories'!$D$32:$S$44,MATCH(Accessories!$A36,'Data 3 Accessories'!$A$32:$A$44,0),MATCH(Accessories!$C$6,'Data 3 Accessories'!$D$23:$S$23,0)),ISNUMBER(SEARCH(\"Soffit\",$C$6)),INDEX('Data 3 Accessories'!$D$46:$AM$65,MATCH(Accessories!$A36,'Data 3 Accessories'!$A$46:$A$65,0),MATCH(Accessories!$C$6,'Data 3 Accessories'!$D$46:$AM$46,0)))","v":{"$error":"#N/A"}},{"$f":"_xlfn.IFS(ISNUMBER(SEARCH(\"horizontal\",$C$6)),INDEX('Data 3 Accessories'!$D$8:$AM$20,MATCH(Accessories!$A36,'Data 3 Accessories'!$A$8:$A$20,0),MATCH(Accessories!$C$6,'Data 3 Accessories'!$D$1:$AM$1,0)+1),ISNUMBER(SEARCH(\"vertical\",$C$6)),INDEX('Data 3 Accessories'!$D$32:$S$44,MATCH(Accessories!$A36,'Data 3 Accessories'!$A$32:$A$44,0),MATCH(Accessories!$C$6,'Data 3 Accessories'!$D$23:$S$23,0)+1),ISNUMBER(SEARCH(\"Soffit\",$C$6)),INDEX('Data 3 Accessories'!$D$46:$AM$65,MATCH(Accessories!$A36,'Data 3 Accessories'!$A$46:$A$65,0),MATCH(Accessories!$C$6,'Data 3 Accessories'!$D$46:$AM$46,0)+1))","v":{"$error":"#N/A"}},{"$f":"IF(OR('Qbiss Screen MW elements'!A10:B10=\"Vertical\",'Qbiss Screen MW elements'!A10:B10=\"Vertical_brick\"),SUM('Qbiss Screen MW elements'!C26,'Longitudinal L-corner elements '!C26,'Transversal L-corner elements'!C26,'U-corner elements'!C26,'3D diagonal-cut corner element'!C26,'3D edge-cut corner elements'!C26)*400,\"Not defined\")","v":"Not defined"},{"$f":"VLOOKUP(A36,'Data 3 Accessories'!$A$8:$C$44,2,FALSE)","v":{"$error":"#N/A"}},null,{"$error":"#N/A"}]
["* Estimated NET quantity. Values are estimated. Designer needs to calculate values according to project requirements."]
[]
[]
[]
[]
[]
[null,null,null,null,null,null,null,null,null,null,null,null,null,null,null,null,null,null,null,null,null,null,"3 Thickness of substructure: Choose thickness of steel substructure."]
[null,null,null,null,null,null,null,null,null,null,null,null,null,null,null,null,null,null,null,null,null,null,"4 Thickness of Qbiss One element: Based on your selection, you will get appropriate fixing screw."]

{"sheet":"Fixing material data","index":8,"n_rows":319,"n_cols":13,"rows_kept":319,"cut":false,"hidden":true,"merged":[[0,2,0,8]]}
[null,null,"FIXING MATERIAL"]
[]
[null,"Thickness_of_substructure","Thickness_Of_Qbiss_One","Type_of_fixation","Thickness_of_substructure_tapping","Fixing_method"]
[]
[null,1.5,80,"Self-drilling","not relevant","X - through joint"]
[null,1.75,100,"Self-tapping",null,"Y - through element"]
[null,2,120,null,null,"Z - through longitudinal joint"]
[null,2.5,133]
[null,3,150]
[null,4,172]
[null,5,200]
[null,6,220]
[null,8,240]
[null,10,250]
[]
[null,"SELF-Drilling",null,null,null,null,null,null,"SELF-tapping"]
[null,"Thickness_of_Qbiss_One_element_data","Thickness_of_substructure_data","Code_of_fixing_screw_data","Name_of_fixing_screw_data","TYP of fixing",null,null,"Thickness_of_Qbiss_One_element_data_tapping","Thickness_of_substructure_data_tapping","Code_of_fixing_screw_data_tapping","Name_of_fixing_screw_data_tapping","TYP of fixing"]
[{"$f":"C18&B18&F18","v":"1,580X - through joint"},80,1.5,"30023341","EJOT JT3-6-5,5x 70","X - through joint"]
[{"$f":"C19&B19&F19","v":"1,7580X - through joint"},80,1.75,"30023341","EJOT JT3-6-5,5x 70","X - through joint",null,{"$f":"J19&I19&M19","v":"not relevant80X - through joint"},80,"not relevant","30025142","EJOT JZ3 6,3x 64","X - through joint"]
["280X - through joint",80,2,"30023341","EJOT JT3-6-5,5x 70","X - through joint",null,{"$f":"J20&I20&M20","v":"not relevant100X - through joint"},100,"not relevant","30025146","EJOT JZ3 6,3x 90","X - through joint"]
["2,580X - through joint",80,2.5,"30023341","EJOT JT3-6-5,5x 70","X - through joint",null,"not relevant120X - through joint",120,"not relevant","30025247","EJOT JZ3 6,3x115","X - through joint"]
["380X - through joint",80,3,"30023341","EJOT JT3-6-5,5x 70","X - through joint",null,"not relevant133X - through joint",133,"not relevant","30025136","EJOT JZ3 6,3x125","X - through joint"]
["480X - through joint",80,4,"30023341","EJOT JT3-6-5,5x 70","X - through joint",null,"not relevant150X - through joint",150,"not relevant","30025138","EJOT JZ3 6,3x150","X - through joint"]
["580X - through joint",80,5,"30023751","EJOT JT3-12-5,5x 78","X - through joint",null,"not relevant172X - through joint",172,"not relevant","30025140","EJOT JZ3 6,3x175","X - through joint"]
["680X - through joint",80,6,"30023751","EJOT JT3-12-5,5x 78","X - through joint",null,"not relevant200X - through joint",200,"not relevant","30025262","EJOT JZ3 6,3x200","X - through joint"]
["880X - through joint",80,8,"30023751","EJOT JT3-12-5,5x 78","X - through joint",null,"not relevant220X - through joint",220,"not relevant","30028705","EJOT JZ3 6,3x220","X - through joint"]
["1080X - through joint",80,10,"30023751","EJOT JT3-12-5,5x 78","X - through joint",null,"not relevant240X - through joint",240,"not relevant","30028705","EJOT JZ3 6,3x220","X - through joint"]
["1,5100X - through joint",100,1.5,"30023413","EJOT JT3-6-5,5x 90","X - through joint",null,"not relevant250X - through joint",250,"not relevant","30028705","EJOT JZ3 6,3x220","X - through joint"]
["1,75100X - through joint",100,1.75,"30023413","EJOT JT3-6-5,5x 90","X - through joint"]
["2100X - through joint",100,2,"30023413","EJOT JT3-6-5,5x 90","X - through joint"]
["2,5100X - through joint",100,2.5,"30023413","EJOT JT3-6-5,5x 90","X - through joint",null,{"$f":"J31&I31&M31","v":"not relevant80Y - through element"},80,"not relevant","30025246","SCREW JZ3 6,3x100 E19","Y - through element"]
["3100X - through joint",100,3,"30023413","EJOT JT3-6-5,5x 90","X - through joint",null,{"$f":"J32&I32&M32","v":"not relevant100Y - through element"},100,"not relevant","30025137","SCREW JZ3 6,3x125 E19","Y - through element"]
["4100X - through joint",100,4,"30023413","EJOT JT3-6-5,5x 90","X - through joint",null,"not relevant120Y - through element",120,"not relevant","30025139","SCREW JZ3 6,3x150 E19","Y - through element"]
["5100X - through joint",100,5,"30023757","EJOT JT3-12-5,5x 98","X - through joint",null,"not relevant133Y - through element",133,"not relevant","30024291","SCREW JZ3 6,3x175 E19","Y - through element"]
["6100X - through joint",100,6,"30023757","EJOT JT3-12-5,5x 98","X - through joint",null,"not relevant150Y - through element",150,"not relevant","30024291","SCREW JZ3 6,3x175 E19","Y - through element"]
["8100X - through joint",100,8,"30023757","EJOT JT3-12-5,5x 98","X - through joint",null,"not relevant172Y - through element",172,"not relevant","30025261","SCREW JZ3 6,3x200 E19","Y - through element"]
["10100X - through joint",100,10,"30023757","EJOT JT3-12-5,5x 98","X - through joint",null,"not relevant200Y - through element",200,"not relevant","30025935","SCREW JZ3 6,3x220 E19","Y - through element"]
["1,5120X - through joint",120,1.5,"30023414","EJOT JT3-6-5,5x110","X - through joint",null,{"$f":"J38&I38&M38","v":"not relevant220Y - through element"},220,"not relevant","30025333","SCREW JZ3 6,3x270 E19","Y - through element"]
["1,75120X - through joint",120,1.75,"30023414","EJOT JT3-6-5,5x110","X - through joint",null,{"$f":"J39&I39&M39","v":"not relevant240Y - through element"},240,"not relevant","30025333","SCREW JZ3 6,3x270 E19","Y - through element"]
["2120X - through joint",120,2,"30023414","EJOT JT3-6-5,5x110","X - through joint",null,{"$f":"J40&I40&M40","v":"not relevant250Y - through element"},250,"not relevant","30025333","SCREW JZ3 6,3x270 E19","Y - through element"]
["2,5120X - through joint",120,2.5,"30023414","EJOT JT3-6-5,5x110","X - through joint"]
["3120X - through joint",120,3,"30023414","EJOT JT3-6-5,5x110","X - through joint",null,{"$f":"J42&I42&M42","v":"not relevant80Z - through longitudinal joint"},80,"not relevant","30024250","SCREW JZ3 6,3x 80 E19","Z - through longitudinal joint"]
["4120X - through joint",120,4,"30023414","EJOT JT3-6-5,5x110","X - through joint",null,{"$f":"J43&I43&M43","v":"not relevant100Z - through longitudinal joint"},100,"not relevant","30025145","SCREW JZ3 6,3x 90 E19","Z - through longitudinal joint"]
["5120X - through joint",120,5,"30023591","EJOT JT3-12-5,5x118","X - through joint",null,"not relevant120Z - through longitudinal joint",120,"not relevant","30025248","SCREW JZ3 6,3x115 E19","Z - through longitudinal joint"]
["6120X - through joint",120,6,"30023591","EJOT JT3-12-5,5x118","X - through joint",null,"not relevant133Z - through longitudinal joint",133,"not relevant","30025137","SCREW JZ3 6,3x125 E19","Z - through longitudinal joint"]
["8120X - through joint",120,8,"30023591","EJOT JT3-12-5,5x118","X - through joint",null,"not relevant150Z - through longitudinal joint",150,"not relevant","30025139","SCREW JZ3 6,3x150 E19","Z - through longitudinal joint"]
["10120X - through joint",120,10,"30023591","EJOT JT3-12-5,5x118","X - through joint",null,"not relevant172Z - through longitudinal joint",172,"not relevant","30024291","SCREW JZ3 6,3x175 E19","Z - through longitudinal joint"]
["1,5133X - through joint",133,1.5,"30023416","EJOT JT3-6-5,5x130","X - through joint",null,"not relevant200Z - through longitudinal joint",200,"not relevant","30025261","SCREW JZ3 6,3x200 E19","Z - through longitudinal joint"]
["1,75133X - through joint",133,1.75,"30023416","EJOT JT3-6-5,5x130","X - through joint",null,"not relevant220Z - through longitudinal joint",220,"not relevant","30025935","SCREW JZ3 6,3x220 E19","Z - through longitudinal joint"]
["2133X - through joint",133,2,"30023416","EJOT JT3-6-5,5x130","X - through joint",null,"not relevant240Z - through longitudinal joint",240,"not relevant","30025333","SCREW JZ3 6,3x270 E19","Z - through longitudinal joint"]
["2,5133X - through joint",133,2.5,"30023416","EJOT JT3-6-5,5x130","X - through joint",null,"not relevant250Z - through longitudinal joint",250,"not relevant","30025333","SCREW JZ3 6,3x270 E19","Z - through longitudinal joint"]
["3133X - through joint",133,3,"30023416","EJOT JT3-6-5,5x130","X - through joint"]
["4133X - through joint",133,4,"30023416","EJOT JT3-6-5,5x130","X - through joint"]
["5133X - through joint",133,5,"30023592","EJOT JT3-12-5,5x138","X - through joint"]
["6133X - through joint",133,6,"30023592","EJOT JT3-12-5,5x138","X - through joint"]
["8133X - through joint",133,8,"30023592","EJOT JT3-12-5,5x138","X - through joint"]
["10133X - through joint",133,10,"30023592","EJOT JT3-12-5,5x138","X - through joint"]
["1,5150X - through joint",150,1.5,"30023416","EJOT JT3-6-5,5x130","X - through joint"]
["1,75150X - through joint",150,1.75,"30023416","EJOT JT3-6-5,5x130","X - through joint"]
["2150X - through joint",150,2,"30023416","EJOT JT3-6-5,5x130","X - through joint"]
["2,5150X - through joint",150,2.5,"30023416","EJOT JT3-6-5,5x130","X - through joint"]
["3150X - through joint",150,3,"30023416","EJOT JT3-6-5,5x130","X - through joint"]
["4150X - through joint",150,4,"30023416","EJOT JT3-6-5,5x130","X - through joint"]
["5150X - through joint",150,5,"30023592","EJOT JT3-12-5,5x138","X - through joint"]
["6150X - through joint",150,6,"30023592","EJOT JT3-12-5,5x138","X - through joint"]
["8150X - through joint",150,8,"30023592","EJOT JT3-12-5,5x138","X - through joint"]
["10150X - through joint",150,10,"30023592","EJOT JT3-12-5,5x138","X - through joint"]
["1,5172X - through joint",172,1.5,"30023468","EJOT JT3-6-5,5x150","X - through joint"]
["1,75172X - through joint",172,1.75,"30023468","EJOT JT3-6-5,5x150","X - through joint"]
["2172X - through joint",172,2,"30023468","EJOT JT3-6-5,5x150","X - through joint"]
["2,5172X - through joint",172,2.5,"30023468","EJOT JT3-6-5,5x150","X - through joint"]
["3172X - through joint",172,3,"30023468","EJOT JT3-6-5,5x150","X - through joint"]
["4172X - through joint",172,4,"30023468","EJOT JT3-6-5,5x150","X - through joint"]
["5172X - through joint",172,5,"30023410","EJOT JT3-12-5,5x158","X - through joint"]
["6172X - through joint",172,6,"30023410","EJOT JT3-12-5,5x158","X - through joint"]
["8172X - through joint",172,8,"30023410","EJOT JT3-12-5,5x158","X - through joint"]
["10172X - through joint",172,10,"30023410","EJOT JT3-12-5,5x158","X - through joint"]
["1,5200X - through joint",200,1.5,"30023607","EJOT JT3-6-5,5x190","X - through joint"]
["1,75200X - through joint",200,1.75,"30023607","EJOT JT3-6-5,5x190","X - through joint"]
["2200X - through joint",200,2,"30023607","EJOT JT3-6-5,5x190","X - through joint"]
["2,5200X - through joint",200,2.5,"30023607","EJOT JT3-6-5,5x190","X - through joint"]
["3200X - through joint",200,3,"30023607","EJOT JT3-6-5,5x190","X - through joint"]
[{"$f":"C83&B83&F83","v":"4200X - through joint"},200,4,"30023607","EJOT JT3-6-5,5x190","X - through joint"]
["5200X - through joint",200,5,"30023758","EJOT JT3-12-5,5x198","X - through joint"]
["6200X - through joint",200,6,"30023758","EJOT JT3-12-5,5x198","X - through joint"]
["8200X - through joint",200,8,"30023758","EJOT JT3-12-5,5x198","X - through joint"]
["10200X - through joint",200,10,"30023758","EJOT JT3-12-5,5x198","X - through joint"]
["1,5220X - through joint",220,1.5,"30029413","EJOT 7520 5,5x225","X - through joint"]
["1,75220X - through joint",220,1.75,"30029413","EJOT 7520 5,5x225","X - through joint"]
["2220X - through joint",220,2,"30029413","EJOT 7520 5,5x225","X - through joint"]
["2,5220X - through joint",220,2.5,"30029413","EJOT 7520 5,5x225","X - through joint"]
["3220X - through joint",220,3,"30029413","EJOT 7520 5,5x225","X - through joint"]
["4220X - through joint",220,4,"30029413","EJOT 7520 5,5x225","X - through joint"]
["5220X - through joint",220,5,"30028974","EJOT 7530 5,5x 250","X - through joint"]
["6220X - through joint",220,6,"30028974","EJOT 7530 5,5x 250","X - through joint"]
["8220X - through joint",220,8,"30028974","EJOT 7530 5,5x 250","X - through joint"]
["10220X - through joint",220,10,"30028974","EJOT 7530 5,5x 250","X - through joint"]
["1,5240X - through joint",240,1.5,"30029413","EJOT 7520 5,5X225","X - through joint"]
["1,75240X - through joint",240,1.75,"30029413","EJOT 7520 5,5X225","X - through joint"]
["2240X - through joint",240,2,"30029413","EJOT 7520 5,5X225","X - through joint"]
["2,5240X - through joint",240,2.5,"30029413","EJOT 7520 5,5X225","X - through joint"]
["3240X - through joint",240,3,"30029413","EJOT 7520 5,5X225","X - through joint"]
["4240X - through joint",240,4,"30029413","EJOT 7520 5,5X225","X - through joint"]
["5240X - through joint",240,5,"30028974","EJOT 7530 5,5x 250","X - through joint"]
["6240X - through joint",240,6,"30028974","EJOT 7530 5,5x 250","X - through joint"]
["8240X - through joint",240,8,"30028974","EJOT 7530 5,5x 250","X - through joint"]
["10240X - through joint",240,10,"30028974","EJOT 7530 5,5x 250","X - through joint"]
["1,5250X - through joint",250,1.5,"30029413","EJOT 7520 5,5X225","X - through joint"]
["1,75250X - through joint",250,1.75,"30029413","EJOT 7520 5,5X225","X - through joint"]
["2250X - through joint",250,2,"30029413","EJOT 7520 5,5X225","X - through joint"]
["2,5250X - through joint",250,2.5,"30029413","EJOT 7520 5,5X225","X - through joint"]
["3250X - through joint",250,3,"30029413","EJOT 7520 5,5X225","X - through joint"]
["4250X - through joint",250,4,"30029413","EJOT 7520 5,5X225","X - through joint"]
["5250X - through joint",250,5,"30028974","EJOT 7530 5,5x 250","X - through joint"]
["6250X - through joint",250,6,"30028974","EJOT 7530 5,5x 250","X - through joint"]
["8250X - through joint",250,8,"30028974","EJOT 7530 5,5x 250","X - through joint"]
["10250X - through joint",250,10,"30028974","EJOT 7530 5,5x 250","X - through joint"]
[]
[{"$f":"C119&B119&F119","v":"1,580Y - through element"},80,1.5,{"$f":"VLOOKUP(B119,$H$119:$M$130,IF(C119>4,4,2),FALSE)","v":"30024462"},{"$f":"VLOOKUP(B119,$H$119:$M$130,IF(C119>4,5,3),FALSE)","v":"SCREW JT3-D-6H-5,5/6,3x127 E19"},"Y - through element",null,null,"Tip pritrjevanja Y (čez panel)"]
[{"$f":"C120&B120&F120","v":"1,7580Y - through element"},80,1.75,{"$f":"VLOOKUP(B120,$H$119:$M$130,IF(C120>4,4,2),FALSE)","v":"30024462"},{"$f":"VLOOKUP(B120,$H$119:$M$130,IF(C120>4,5,3),FALSE)","v":"SCREW JT3-D-6H-5,5/6,3x127 E19"},"Y - through element",null,null,"Do debeline 4mm",null,"nad debelino 4mm"]
["280Y - through element",80,2,"30024462","SCREW JT3-D-6H-5,5/6,3x127 E19","Y - through element",null,80,"30024462","SCREW JT3-D-6H-5,5/6,3x127 E19","30024463","SCREW JT3-D-12H-5,5/6,3x135 E19"]
["2,580Y - through element",80,2.5,"30024462","SCREW JT3-D-6H-5,5/6,3x127 E19","Y - through element",null,100,"30024462","SCREW JT3-D-6H-5,5/6,3x127 E19","30027301","SCREW JT3-D-12H-5,5/6,3x155 E19"]
["380Y - through element",80,3,"30024462","SCREW JT3-D-6H-5,5/6,3x127 E19","Y - through element",null,120,"30024990","SCREW JT3-D-6H-5,5/6,3x167 E19","30027306","SCREW JT3-D-12H-5,5/6,3x175 E19"]
["480Y - through element",80,4,"30024462","SCREW JT3-D-6H-5,5/6,3x127 E19","Y - through element",null,133,"30024990","SCREW JT3-D-6H-5,5/6,3x167 E19","30027306","SCREW JT3-D-12H-5,5/6,3x175 E19"]
["580Y - through element",80,5,"30024463","SCREW JT3-D-12H-5,5/6,3x135 E19","Y - through element",null,150,"30011562","SCREW JT3-D-6H-5,5/6,3x197 E19","30027305","SCREW JT3-D-12H-5,5/6,3x195 E19"]
["680Y - through element",80,6,"30024463","SCREW JT3-D-12H-5,5/6,3x135 E19","Y - through element",null,172,"30023821","SCREW JT3-D-6H-5,5/6,3x237 E19","30024060","SCREW JT3-D-12H-5,5/6,3x245 E19"]
["880Y - through element",80,8,"30024463","SCREW JT3-D-12H-5,5/6,3x135 E19","Y - through element",null,200,"30023821","SCREW JT3-D-6H-5,5/6,3x237 E19","30024060","SCREW JT3-D-12H-5,5/6,3x245 E19"]
["1080Y - through element",80,10,"30024463","SCREW JT3-D-12H-5,5/6,3x135 E19","Y - through element",null,220,"30027310","SCREW JT3-D-6H-5,5/6,3x267 E19","30027304","SCREW JT3-D-12H-5,5/6,3x275 E19"]
["1,5100Y - through element",100,1.5,"30024462","SCREW JT3-D-6H-5,5/6,3x127 E19","Y - through element",null,240,"30027310","SCREW JT3-D-6H-5,5/6,3x267 E19","30027304","SCREW JT3-D-12H-5,5/6,3x275 E19"]
["1,75100Y - through element",100,1.75,"30024462","SCREW JT3-D-6H-5,5/6,3x127 E19","Y - through element",null,250,"xx","xx",30024102,"SCREW JT3-D-12H-5,5/6,3x300 E19"]
["2100Y - through element",100,2,"30024462","SCREW JT3-D-6H-5,5/6,3x127 E19","Y - through element"]
["2,5100Y - through element",100,2.5,"30024462","SCREW JT3-D-6H-5,5/6,3x127 E19","Y - through element"]
["3100Y - through element",100,3,"30024462","SCREW JT3-D-6H-5,5/6,3x127 E19","Y - through element"]
["4100Y - through element",100,4,"30024462","SCREW JT3-D-6H-5,5/6,3x127 E19","Y - through element"]
["5100Y - through element",100,5,"30027301","SCREW JT3-D-12H-5,5/6,3x155 E19","Y - through element"]
["6100Y - through element",100,6,"30027301","SCREW JT3-D-12H-5,5/6,3x155 E19","Y - through element"]
["8100Y - through element",100,8,"30027301","SCREW JT3-D-12H-5,5/6,3x155 E19","Y - through element"]
["10100Y - through element",100,10,"30027301","SCREW JT3-D-12H-5,5/6,3x155 E19","Y - through element"]
["1,5120Y - through element",120,1.5,"30024990","SCREW JT3-D-6H-5,5/6,3x167 E19","Y - through element"]
["1,75120Y - through element",120,1.75,"30024990","SCREW JT3-D-6H-5,5/6,3x167 E19","Y - through element"]
["2120Y - through element",120,2,"30024990","SCREW JT3-D-6H-5,5/6,3x167 E19","Y - through element"]
["2,5120Y - through element",120,2.5,"30024990","SCREW JT3-D-6H-5,5/6,3x167 E19","Y - through element"]
["3120Y - through element",120,3,"30024990","SCREW JT3-D-6H-5,5/6,3x167 E19","Y - through element"]
["4120Y - through element",120,4,"30024990","SCREW JT3-D-6H-5,5/6,3x167 E19","Y - through element"]
["5120Y - through element",120,5,"30027306","SCREW JT3-D-12H-5,5/6,3x175 E19","Y - through element"]
["6120Y - through element",120,6,"30027306","SCREW JT3-D-12H-5,5/6,3x175 E19","Y - through element"]
["8120Y - through element",120,8,"30027306","SCREW JT3-D-12H-5,5/6,3x175 E19","Y - through element"]
["10120Y - through element",120,10,"30027306","SCREW JT3-D-12H-5,5/6,3x175 E19","Y - through element"]
["1,5133Y - through element",133,1.5,"30024990","SCREW JT3-D-6H-5,5/6,3x167 E19","Y - through element"]
["1,75133Y - through element",133,1.75,"30024990","SCREW JT3-D-6H-5,5/6,3x167 E19","Y - through element"]
["2133Y - through element",133,2,"30024990","SCREW JT3-D-6H-5,5/6,3x167 E19","Y - through element"]
["2,5133Y - through element",133,2.5,"30024990","SCREW JT3-D-6H-5,5/6,3x167 E19","Y - through element"]
["3133Y - through element",133,3,"30024990","SCREW JT3-D-6H-5,5/6,3x167 E19","Y - through element"]
["4133Y - through element",133,4,"30024990","SCREW JT3-D-6H-5,5/6,3x167 E19","Y - through element"]
["5133Y - through element",133,5,"30027306","SCREW JT3-D-12H-5,5/6,3x175 E19","Y - through element"]
["6133Y - through element",133,6,"30027306","SCREW JT3-D-12H-5,5/6,3x175 E19","Y - through element"]
["8133Y - through element",133,8,"30027306","SCREW JT3-D-12H-5,5/6,3x175 E19","Y - through element"]
["10133Y - through element",133,10,"30027306","SCREW JT3-D-12H-5,5/6,3x175 E19","Y - through element"]
["1,5150Y - through element",150,1.5,"30011562","SCREW JT3-D-6H-5,5/6,3x197 E19","Y - through element"]
["1,75150Y - through element",150,1.75,"30011562","SCREW JT3-D-6H-5,5/6,3x197 E19","Y - through element"]
["2150Y - through element",150,2,"30011562","SCREW JT3-D-6H-5,5/6,3x197 E19","Y - through element"]
["2,5150Y - through element",150,2.5,"30011562","SCREW JT3-D-6H-5,5/6,3x197 E19","Y - through element"]
["3150Y - through element",150,3,"30011562","SCREW JT3-D-6H-5,5/6,3x197 E19","Y - through element"]
["4150Y - through element",150,4,"30011562","SCREW JT3-D-6H-5,5/6,3x197 E19","Y - through element"]
["5150Y - through element",150,5,"30027305","SCREW JT3-D-12H-5,5/6,3x195 E19","Y - through element"]
["6150Y - through element",150,6,"30027305","SCREW JT3-D-12H-5,5/6,3x195 E19","Y - through element"]
["8150Y - through element",150,8,"30027305","SCREW JT3-D-12H-5,5/6,3x195 E19","Y - through element"]
["10150Y - through element",150,10,"30027305","SCREW JT3-D-12H-5,5/6,3x195 E19","Y - through element"]
["1,5172Y - through element",172,1.5,"30023821","SCREW JT3-D-6H-5,5/6,3x237 E19","Y - through element"]
["1,75172Y - through element",172,1.75,"30023821","SCREW JT3-D-6H-5,5/6,3x237 E19","Y - through element"]
["2172Y - through element",172,2,"30023821","SCREW JT3-D-6H-5,5/6,3x237 E19","Y - through element"]
["2,5172Y - through element",172,2.5,"30023821","SCREW JT3-D-6H-5,5/6,3x237 E19","Y - through element"]
["3172Y - through element",172,3,"30023821","SCREW JT3-D-6H-5,5/6,3x237 E19","Y - through element"]
["4172Y - through element",172,4,"30023821","SCREW JT3-D-6H-5,5/6,3x237 E19","Y - through element"]
["5172Y - through element",172,5,"30024060","SCREW JT3-D-12H-5,5/6,3x245 E19","Y - through element"]
["6172Y - through element",172,6,"30024060","SCREW JT3-D-12H-5,5/6,3x245 E19","Y - through element"]
["8172Y - through element",172,8,"30024060","SCREW JT3-D-12H-5,5/6,3x245 E19","Y - through element"]
["10172Y - through element",172,10,"30024060","SCREW JT3-D-12H-5,5/6,3x245 E19","Y - through element"]
["1,5200Y - through element",200,1.5,"30023821","SCREW JT3-D-6H-5,5/6,3x237 E19","Y - through element"]
["1,75200Y - through element",200,1.75,"30023821","SCREW JT3-D-6H-5,5/6,3x237 E19","Y - through element"]
["2200Y - through element",200,2,"30023821","SCREW JT3-D-6H-5,5/6,3x237 E19","Y - through element"]
["2,5200Y - through element",200,2.5,"30023821","SCREW JT3-D-6H-5,5/6,3x237 E19","Y - through element"]
["3200Y - through element",200,3,"30023821","SCREW JT3-D-6H-5,5/6,3x237 E19","Y - through element"]
[{"$f":"C184&B184&F184","v":"4200Y - through element"},200,4,{"$f":"VLOOKUP(B184,$H$119:$M$130,IF(C184>4,4,2),FALSE)","v":"30023821"},{"$f":"VLOOKUP(B184,$H$119:$M$130,IF(C184>4,5,3),FALSE)","v":"SCREW JT3-D-6H-5,5/6,3x237 E19"},"Y - through element"]
["5200Y - through element",200,5,"30024060","SCREW JT3-D-12H-5,5/6,3x245 E19","Y - through element"]
["6200Y - through element",200,6,"30024060","SCREW JT3-D-12H-5,5/6,3x245 E19","Y - through element"]
["8200Y - through element",200,8,"30024060","SCREW JT3-D-12H-5,5/6,3x245 E19","Y - through element"]
["10200Y - through element",200,10,"30024060","SCREW JT3-D-12H-5,5/6,3x245 E19","Y - through element"]
["1,5220Y - through element",220,1.5,"30027310","SCREW JT3-D-6H-5,5/6,3x267 E19","Y - through element"]
["1,75220Y - through element",220,1.75,"30027310","SCREW JT3-D-6H-5,5/6,3x267 E19","Y - through element"]
["2220Y - through element",220,2,"30027310","SCREW JT3-D-6H-5,5/6,3x267 E19","Y - through element"]
["2,5220Y - through element",220,2.5,"30027310","SCREW JT3-D-6H-5,5/6,3x267 E19","Y - through element"]
["3220Y - through element",220,3,"30027310","SCREW JT3-D-6H-5,5/6,3x267 E19","Y - through element"]
["4220Y - through element",220,4,"30027310","SCREW JT3-D-6H-5,5/6,3x267 E19","Y - through element"]
["5220Y - through element",220,5,"30027304","SCREW JT3-D-12H-5,5/6,3x275 E19","Y - through element"]
["6220Y - through element",220,6,"30027304","SCREW JT3-D-12H-5,5/6,3x275 E19","Y - through element"]
["8220Y - through element",220,8,"30027304","SCREW JT3-D-12H-5,5/6,3x275 E19","Y - through element"]
["10220Y - through element",220,10,"30027304","SCREW JT3-D-12H-5,5/6,3x275 E19","Y - through element"]
["1,5240Y - through element",240,1.5,"30027310","SCREW JT3-D-6H-5,5/6,3x267 E19","Y - through element"]
["1,75240Y - through element",240,1.75,"30027310","SCREW JT3-D-6H-5,5/6,3x267 E19","Y - through element"]
["2240Y - through element",240,2,"30027310","SCREW JT3-D-6H-5,5/6,3x267 E19","Y - through element"]
["2,5240Y - through element",240,2.5,"30027310","SCREW JT3-D-6H-5,5/6,3x267 E19","Y - through element"]
["3240Y - through element",240,3,"30027310","SCREW JT3-D-6H-5,5/6,3x267 E19","Y - through element"]
["4240Y - through element",240,4,"30027310","SCREW JT3-D-6H-5,5/6,3x267 E19","Y - through element"]
["5240Y - through element",240,5,"30027304","SCREW JT3-D-12H-5,5/6,3x275 E19","Y - through element"]
["6240Y - through element",240,6,"30027304","SCREW JT3-D-12H-5,5/6,3x275 E19","Y - through element"]
["8240Y - through element",240,8,"30027304","SCREW JT3-D-12H-5,5/6,3x275 E19","Y - through element"]
["10240Y - through element",240,10,"30027304","SCREW JT3-D-12H-5,5/6,3x275 E19","Y - through element"]
["1,5250Y - through element",250,1.5,"xx","xx","Y - through element"]
["1,75250Y - through element",250,1.75,"xx","xx","Y - through element"]
["2250Y - through element",250,2,"xx","xx","Y - through element"]
["2,5250Y - through element",250,2.5,"xx","xx","Y - through element"]
["3250Y - through element",250,3,"xx","xx","Y - through element"]
["4250Y - through element",250,4,"xx","xx","Y - through element"]
["5250Y - through element",250,5,30024102,"SCREW JT3-D-12H-5,5/6,3x300 E19","Y - through element"]
["6250Y - through element",250,6,30024102,"SCREW JT3-D-12H-5,5/6,3x300 E19","Y - through element"]
["8250Y - through element",250,8,30024102,"SCREW JT3-D-12H-5,5/6,3x300 E19","Y - through element"]
["10250Y - through element",250,10,30024102,"SCREW JT3-D-12H-5,5/6,3x300 E19","Y - through element"]
[]
[{"$f":"C220&B220&F220","v":"1,580Z - through longitudinal joint"},80,1.5,{"$f":"VLOOKUP(B220,$H$224:$M$235,IF(C220>4,4,2),FALSE)","v":"30027331"},{"$f":"VLOOKUP(B220,$H$224:$M$235,IF(C220>4,5,3),FALSE)","v":"SCREW JT3-D-6H-5,5/6,3x 87 E19"},"Z - through longitudinal joint"]
[{"$f":"C221&B221&F221","v":"1,7580Z - through longitudinal joint"},80,1.75,{"$f":"VLOOKUP(B221,$H$224:$M$235,IF(C221>4,4,2),FALSE)","v":"30027331"},{"$f":"VLOOKUP(B221,$H$224:$M$235,IF(C221>4,5,3),FALSE)","v":"SCREW JT3-D-6H-5,5/6,3x 87 E19"},"Z - through longitudinal joint"]
["280Z - through longitudinal joint",80,2,"30027331","SCREW JT3-D-6H-5,5/6,3x 87 E19","Z - through longitudinal joint"]
["2,580Z - through longitudinal joint",80,2.5,"30027331","SCREW JT3-D-6H-5,5/6,3x 87 E19","Z - through longitudinal joint"]
["380Z - through longitudinal joint",80,3,"30027331","SCREW JT3-D-6H-5,5/6,3x 87 E19","Z - through longitudinal joint",null,null,"Tip pritrjevanja Z (v moškem spoju)"]
["480Z - through longitudinal joint",80,4,"30027331","SCREW JT3-D-6H-5,5/6,3x 87 E19","Z - through longitudinal joint",null,null,"Do debeline 4mm",null,"nad debelino 4mm"]
["580Z - through longitudinal joint",80,5,"30027308","SCREW JT3-D-12H-5,5/6,3x 95 E19","Z - through longitudinal joint",null,80,"30027331","SCREW JT3-D-6H-5,5/6,3x 87 E19","30027308","SCREW JT3-D-12H-5,5/6,3x 95 E19"]
["680Z - through longitudinal joint",80,6,"30027308","SCREW JT3-D-12H-5,5/6,3x 95 E19","Z - through longitudinal joint",null,100,"30026964","SCREW JT3-D-6H-5,5/6,3x107 E19","30027307","SCREW JT3-D-12H-5,5/6,3x115 E19"]
["880Z - through longitudinal joint",80,8,"30027308","SCREW JT3-D-12H-5,5/6,3x 95 E19","Z - through longitudinal joint",null,120,"30024462","SCREW JT3-D-6H-5,5/6,3x127 E19","30024463","SCREW JT3-D-12H-5,5/6,3x135 E19"]
["1080Z - through longitudinal joint",80,10,"30027308","SCREW JT3-D-12H-5,5/6,3x 95 E19","Z - through longitudinal joint",null,133,"30027300","SCREW JT3-D-6H-5,5/6,3x147 E19","30027301","SCREW JT3-D-12H-5,5/6,3x155 E19"]
["1,5100Z - through longitudinal joint",100,1.5,"30026964","SCREW JT3-D-6H-5,5/6,3x107 E19","Z - through longitudinal joint",null,150,"30024990","SCREW JT3-D-6H-5,5/6,3x167 E19","30027306","SCREW JT3-D-12H-5,5/6,3x175 E19"]
["1,75100Z - through longitudinal joint",100,1.75,"30026964","SCREW JT3-D-6H-5,5/6,3x107 E19","Z - through longitudinal joint",null,172,"30011562","SCREW JT3-D-6H-5,5/6,3x197 E19","30027305","SCREW JT3-D-12H-5,5/6,3x195 E19"]
["2100Z - through longitudinal joint",100,2,"30026964","SCREW JT3-D-6H-5,5/6,3x107 E19","Z - through longitudinal joint",null,200,"30023821","SCREW JT3-D-6H-5,5/6,3x237 E19","30024060","SCREW JT3-D-12H-5,5/6,3x245 E19"]
["2,5100Z - through longitudinal joint",100,2.5,"30026964","SCREW JT3-D-6H-5,5/6,3x107 E19","Z - through longitudinal joint",null,220,"30023821","SCREW JT3-D-6H-5,5/6,3x237 E19","30024060","SCREW JT3-D-12H-5,5/6,3x245 E19"]
["3100Z - through longitudinal joint",100,3,"30026964","SCREW JT3-D-6H-5,5/6,3x107 E19","Z - through longitudinal joint",null,240,"30027310","SCREW JT3-D-6H-5,5/6,3x267 E19","30027304","SCREW JT3-D-12H-5,5/6,3x275 E19"]
["4100Z - through longitudinal joint",100,4,"30026964","SCREW JT3-D-6H-5,5/6,3x107 E19","Z - through longitudinal joint",null,250,"30027310","SCREW JT3-D-6H-5,5/6,3x267 E19","30027304","SCREW JT3-D-12H-5,5/6,3x275 E19"]
["5100Z - through longitudinal joint",100,5,"30027307","SCREW JT3-D-12H-5,5/6,3x115 E19","Z - through longitudinal joint"]
["6100Z - through longitudinal joint",100,6,"30027307","SCREW JT3-D-12H-5,5/6,3x115 E19","Z - through longitudinal joint"]
["8100Z - through longitudinal joint",100,8,"30027307","SCREW JT3-D-12H-5,5/6,3x115 E19","Z - through longitudinal joint"]
["10100Z - through longitudinal joint",100,10,"30027307","SCREW JT3-D-12H-5,5/6,3x115 E19","Z - through longitudinal joint"]
["1,5120Z - through longitudinal joint",120,1.5,"30024462","SCREW JT3-D-6H-5,5/6,3x127 E19","Z - through longitudinal joint"]
["1,75120Z - through longitudinal joint",120,1.75,"30024462","SCREW JT3-D-6H-5,5/6,3x127 E19","Z - through longitudinal joint"]
["2120Z - through longitudinal joint",120,2,"30024462","SCREW JT3-D-6H-5,5/6,3x127 E19","Z - through longitudinal joint"]
["2,5120Z - through longitudinal joint",120,2.5,"30024462","SCREW JT3-D-6H-5,5/6,3x127 E19","Z - through longitudinal joint"]
["3120Z - through longitudinal joint",120,3,"30024462","SCREW JT3-D-6H-5,5/6,3x127 E19","Z - through longitudinal joint"]
["4120Z - through longitudinal joint",120,4,"30024462","SCREW JT3-D-6H-5,5/6,3x127 E19","Z - through longitudinal joint"]
["5120Z - through longitudinal joint",120,5,"30024463","SCREW JT3-D-12H-5,5/6,3x135 E19","Z - through longitudinal joint"]
["6120Z - through longitudinal joint",120,6,"30024463","SCREW JT3-D-12H-5,5/6,3x135 E19","Z - through longitudinal joint"]
["8120Z - through longitudinal joint",120,8,"30024463","SCREW JT3-D-12H-5,5/6,3x135 E19","Z - through longitudinal joint"]
["10120Z - through longitudinal joint",120,10,"30024463","SCREW JT3-D-12H-5,5/6,3x135 E19","Z - through longitudinal joint"]
["1,5133Z - through longitudinal joint",133,1.5,"30027300","SCREW JT3-D-6H-5,5/6,3x147 E19","Z - through longitudinal joint"]
["1,75133Z - through longitudinal joint",133,1.75,"30027300","SCREW JT3-D-6H-5,5/6,3x147 E19","Z - through longitudinal joint"]
["2133Z - through longitudinal joint",133,2,"30027300","SCREW JT3-D-6H-5,5/6,3x147 E19","Z - through longitudinal joint"]
["2,5133Z - through longitudinal joint",133,2.5,"30027300","SCREW JT3-D-6H-5,5/6,3x147 E19","Z - through longitudinal joint"]
["3133Z - through longitudinal joint",133,3,"30027300","SCREW JT3-D-6H-5,5/6,3x147 E19","Z - through longitudinal joint"]
["4133Z - through longitudinal joint",133,4,"30027300","SCREW JT3-D-6H-5,5/6,3x147 E19","Z - through longitudinal joint"]
["5133Z - through longitudinal joint",133,5,"30027301","SCREW JT3-D-12H-5,5/6,3x155 E19","Z - through longitudinal joint"]
["6133Z - through longitudinal joint",133,6,"30027301","SCREW JT3-D-12H-5,5/6,3x155 E19","Z - through longitudinal joint"]
["8133Z - through longitudinal joint",133,8,"30027301","SCREW JT3-D-12H-5,5/6,3x155 E19","Z - through longitudinal joint"]
["10133Z - through longitudinal joint",133,10,"30027301","SCREW JT3-D-12H-5,5/6,3x155 E19","Z - through longitudinal joint"]
["1,5150Z - through longitudinal joint",150,1.5,"30024990","SCREW JT3-D-6H-5,5/6,3x167 E19","Z - through longitudinal joint"]
["1,75150Z - through longitudinal joint",150,1.75,"30024990","SCREW JT3-D-6H-5,5/6,3x167 E19","Z - through longitudinal joint"]
["2150Z - through longitudinal joint",150,2,"30024990","SCREW JT3-D-6H-5,5/6,3x167 E19","Z - through longitudinal joint"]
["2,5150Z - through longitudinal joint",150,2.5,"30024990","SCREW JT3-D-6H-5,5/6,3x167 E19","Z - through longitudinal joint"]
["3150Z - through longitudinal joint",150,3,"30024990","SCREW JT3-D-6H-5,5/6,3x167 E19","Z - through longitudinal joint"]
["4150Z - through longitudinal joint",150,4,"30024990","SCREW JT3-D-6H-5,5/6,3x167 E19","Z - through longitudinal joint"]
["5150Z - through longitudinal joint",150,5,"30027306","SCREW JT3-D-12H-5,5/6,3x175 E19","Z - through longitudinal joint"]
["6150Z - through longitudinal joint",150,6,"30027306","SCREW JT3-D-12H-5,5/6,3x175 E19","Z - through longitudinal joint"]
["8150Z - through longitudinal joint",150,8,"30027306","SCREW JT3-D-12H-5,5/6,3x175 E19","Z - through longitudinal joint"]
["10150Z - through longitudinal joint",150,10,"30027306","SCREW JT3-D-12H-5,5/6,3x175 E19","Z - through longitudinal joint"]
["1,5172Z - through longitudinal joint",172,1.5,"30011562","SCREW JT3-D-6H-5,5/6,3x197 E19","Z - through longitudinal joint"]
["1,75172Z - through longitudinal joint",172,1.75,"30011562","SCREW JT3-D-6H-5,5/6,3x197 E19","Z - through longitudinal joint"]
["2172Z - through longitudinal joint",172,2,"30011562","SCREW JT3-D-6H-5,5/6,3x197 E19","Z - through longitudinal joint"]
["2,5172Z - through longitudinal joint",172,2.5,"30011562","SCREW JT3-D-6H-5,5/6,3x197 E19","Z - through longitudinal joint"]
["3172Z - through longitudinal joint",172,3,"30011562","SCREW JT3-D-6H-5,5/6,3x197 E19","Z - through longitudinal joint"]
["4172Z - through longitudinal joint",172,4,"30011562","SCREW JT3-D-6H-5,5/6,3x197 E19","Z - through longitudinal joint"]
["5172Z - through longitudinal joint",172,5,"30027305","SCREW JT3-D-12H-5,5/6,3x195 E19","Z - through longitudinal joint"]
["6172Z - through longitudinal joint",172,6,"30027305","SCREW JT3-D-12H-5,5/6,3x195 E19","Z - through longitudinal joint"]
["8172Z - through longitudinal joint",172,8,"30027305","SCREW JT3-D-12H-5,5/6,3x195 E19","Z - through longitudinal joint"]
["10172Z - through longitudinal joint",172,10,"30027305","SCREW JT3-D-12H-5,5/6,3x195 E19","Z - through longitudinal joint"]
["1,5200Z - through longitudinal joint",200,1.5,"30023821","SCREW JT3-D-6H-5,5/6,3x237 E19","Z - through longitudinal joint"]
["1,75200Z - through longitudinal joint",200,1.75,"30023821","SCREW JT3-D-6H-5,5/6,3x237 E19","Z - through longitudinal joint"]
["2200Z - through longitudinal joint",200,2,"30023821","SCREW JT3-D-6H-5,5/6,3x237 E19","Z - through longitudinal joint"]
["2,5200Z - through longitudinal joint",200,2.5,"30023821","SCREW JT3-D-6H-5,5/6,3x237 E19","Z - through longitudinal joint"]
["3200Z - through longitudinal joint",200,3,"30023821","SCREW JT3-D-6H-5,5/6,3x237 E19","Z - through longitudinal joint"]
[{"$f":"C285&B285&F285","v":"4200Z - through longitudinal joint"},200,4,{"$f":"VLOOKUP(B285,$H$224:$M$235,IF(C285>4,4,2),FALSE)","v":"30023821"},{"$f":"VLOOKUP(B285,$H$224:$M$235,IF(C285>4,5,3),FALSE)","v":"SCREW JT3-D-6H-5,5/6,3x237 E19"},"Z - through longitudinal joint"]
["5200Z - through longitudinal joint",200,5,"30024060","SCREW JT3-D-12H-5,5/6,3x245 E19","Z - through longitudinal joint"]
["6200Z - through longitudinal joint",200,6,"30024060","SCREW JT3-D-12H-5,5/6,3x245 E19","Z - through longitudinal joint"]
["8200Z - through longitudinal joint",200,8,"30024060","SCREW JT3-D-12H-5,5/6,3x245 E19","Z - through longitudinal joint"]
["10200Z - through longitudinal joint",200,10,"30024060","SCREW JT3-D-12H-5,5/6,3x245 E19","Z - through longitudinal joint"]
["1,5220Z - through longitudinal joint",220,1.5,"30023821","SCREW JT3-D-6H-5,5/6,3x237 E19","Z - through longitudinal joint"]
["1,75220Z - through longitudinal joint",220,1.75,"30023821","SCREW JT3-D-6H-5,5/6,3x237 E19","Z - through longitudinal joint"]
["2220Z - through longitudinal joint",220,2,"30023821","SCREW JT3-D-6H-5,5/6,3x237 E19","Z - through longitudinal joint"]
["2,5220Z - through longitudinal joint",220,2.5,"30023821","SCREW JT3-D-6H-5,5/6,3x237 E19","Z - through longitudinal joint"]
["3220Z - through longitudinal joint",220,3,"30023821","SCREW JT3-D-6H-5,5/6,3x237 E19","Z - through longitudinal joint"]
["4220Z - through longitudinal joint",220,4,"30023821","SCREW JT3-D-6H-5,5/6,3x237 E19","Z - through longitudinal joint"]
["5220Z - through longitudinal joint",220,5,"30024060","SCREW JT3-D-12H-5,5/6,3x245 E19","Z - through longitudinal joint"]
["6220Z - through longitudinal joint",220,6,"30024060","SCREW JT3-D-12H-5,5/6,3x245 E19","Z - through longitudinal joint"]
["8220Z - through longitudinal joint",220,8,"30024060","SCREW JT3-D-12H-5,5/6,3x245 E19","Z - through longitudinal joint"]
["10220Z - through longitudinal joint",220,10,"30024060","SCREW JT3-D-12H-5,5/6,3x245 E19","Z - through longitudinal joint"]
["1,5240Z - through longitudinal joint",240,1.5,"30027310","SCREW JT3-D-6H-5,5/6,3x267 E19","Z - through longitudinal joint"]
["1,75240Z - through longitudinal joint",240,1.75,"30027310","SCREW JT3-D-6H-5,5/6,3x267 E19","Z - through longitudinal joint"]
["2240Z - through longitudinal joint",240,2,"30027310","SCREW JT3-D-6H-5,5/6,3x267 E19","Z - through longitudinal joint"]
["2,5240Z - through longitudinal joint",240,2.5,"30027310","SCREW JT3-D-6H-5,5/6,3x267 E19","Z - through longitudinal joint"]
["3240Z - through longitudinal joint",240,3,"30027310","SCREW JT3-D-6H-5,5/6,3x267 E19","Z - through longitudinal joint"]
["4240Z - through longitudinal joint",240,4,"30027310","SCREW JT3-D-6H-5,5/6,3x267 E19","Z - through longitudinal joint"]
["5240Z - through longitudinal joint",240,5,"30027304","SCREW JT3-D-12H-5,5/6,3x275 E19","Z - through longitudinal joint"]
["6240Z - through longitudinal joint",240,6,"30027304","SCREW JT3-D-12H-5,5/6,3x275 E19","Z - through longitudinal joint"]
["8240Z - through longitudinal joint",240,8,"30027304","SCREW JT3-D-12H-5,5/6,3x275 E19","Z - through longitudinal joint"]
["10240Z - through longitudinal joint",240,10,"30027304","SCREW JT3-D-12H-5,5/6,3x275 E19","Z - through longitudinal joint"]
["1,5250Z - through longitudinal joint",250,1.5,"30027310","SCREW JT3-D-6H-5,5/6,3x267 E19","Z - through longitudinal joint"]
["1,75250Z - through longitudinal joint",250,1.75,"30027310","SCREW JT3-D-6H-5,5/6,3x267 E19","Z - through longitudinal joint"]
["2250Z - through longitudinal joint",250,2,"30027310","SCREW JT3-D-6H-5,5/6,3x267 E19","Z - through longitudinal joint"]
["2,5250Z - through longitudinal joint",250,2.5,"30027310","SCREW JT3-D-6H-5,5/6,3x267 E19","Z - through longitudinal joint"]
["3250Z - through longitudinal joint",250,3,"30027310","SCREW JT3-D-6H-5,5/6,3x267 E19","Z - through longitudinal joint"]
["4250Z - through longitudinal joint",250,4,"30027310","SCREW JT3-D-6H-5,5/6,3x267 E19","Z - through longitudinal joint"]
["5250Z - through longitudinal joint",250,5,"30027304","SCREW JT3-D-12H-5,5/6,3x275 E19","Z - through longitudinal joint"]
["6250Z - through longitudinal joint",250,6,"30027304","SCREW JT3-D-12H-5,5/6,3x275 E19","Z - through longitudinal joint"]
["8250Z - through longitudinal joint",250,8,"30027304","SCREW JT3-D-12H-5,5/6,3x275 E19","Z - through longitudinal joint"]
["10250Z - through longitudinal joint",250,10,"30027304","SCREW JT3-D-12H-5,5/6,3x275 E19","Z - through longitudinal joint"]

{"sheet":"Transport","index":9,"n_rows":59,"n_cols":29,"rows_kept":59,"cut":false,"hidden":false,"merged":[[4,14,4,15],[4,16,4,17],[5,14,5,15],[0,0,0,17],[2,14,2,15],[2,16,2,17],[3,14,3,15],[3,16,3,17],[55,1,57,2],[5,16,5,17],[7,0,7,2],[9,6,9,7],[5,7,5,9]]}
["Qbiss Screen MW Transport",null,null,null,null,null,null,null,null,null,null,null,null,null,null,null,null,null,null,"INSTRUCTIONS"]
[null,null,null,null,null,null,null,null,null,null,null,null,null,null,null,null,null,null,null,"Follow steps"]
[null,"Project name:",null,{"$f":"IF('CUTTING LIST'!C10=\"\",\"Insert text on first page\",'CUTTING LIST'!C10)","v":"Insert text"},null,null,null,null,null,null,null,null,null,null,"Date last saved:",null,{"$f":"ProfessorExcelLastSaveDate()","v":"2020-12-15T08:57:16"},null,null,"STEP 1: Select type of transport","You can select among Truck, Train, Ship transport. ",null,null,null,null,"MORE"]
[null,"Customer name:",null,{"$f":"IF('CUTTING LIST'!C11=\"\",\"Insert text on first page\",'CUTTING LIST'!C11)","v":"Insert text"},null,null,null,null,null,null,null,null,null,null,"Laste saved by:",null,{"$f":"ProfessorExcelLastSavedBy()","v":"Slanšek Matic"},null,null,"STEP 2: Select type of packaging","Select among standard and extended packaging. See the difference on the following",null,null,null,null,null,null,null,"LINK"]
[null,"Customer order no:",null,{"$f":"IF('CUTTING LIST'!C12=\"\",\"Insert text on first page\",'CUTTING LIST'!C12)","v":"Insert text"},null,null,null,null,null,null,null,null,null,null,"Cutting list number:",null,{"$f":"IF('CUTTING LIST'!N3=\"\",\"insert text of first page\",'CUTTING LIST'!N3)","v":"Insert"},null,null,"STEP 3: Select additional options"]
[null,null,null,null,null,null,null,null,null,null,null,null,null,null,"Revision:",null,{"$f":"IF('CUTTING LIST'!N4=\"\",\"insert text of first page\",'CUTTING LIST'!N4)","v":"Insert"},null,null,null,"EPS support blocks"]
[null,null,null,null,null,null,null,null,null,null,null,null,null,null,null,null,null,null,null,null,"Lifting bands"]
["STEP 1:",null,null,null,null,null,"STEP 2:",null,null,null,null,null,null,null,null,null,null,null,null,null,"Reinforcement pallets"]
["Select type of transport:",null,"MORE INFO"," section 2, 2.6, 2.7",null,null,"Select type of packaging:",null,"MORE INFO","section 2",null,null,null,null,null,null,null,null,null,null,"Stacking type in case of Qbiss One elements is always 10"]
["No_selection",null,null,null,null,null,"No selection"]
[]
[]
[]
[]
[]
[]
[]
["STEP 3:"]
["Additional packaging elements"]
["EPS support blocks",null,"No selection","MORE INFO",null,"section 2.4"]
[]
[]
[]
[]
[]
[]
[]
[]
[]
[]
[]
["Lifting bands 12€/package",null,"No selection","MORE INFO",null,"section 2.5"]
[]
[]
[]
[]
[]
[]
[]
["Reinforcement pallets",null,"No selection","MORE INFO",null,"section 2.5"]
[]
[]
[]
[]
[]
[]
[]
[]
[]
[]
[]
[]
["Stacking type",null,10,"MORE INFO",null,"section 2.10"]
[]
[null,"Required fields"]
[null,"Input data doesn't meet Qbiss One limitations - see INSTRUCTIONS on the right"]
[]
[]
[null,"Automatically filled"]

{"sheet":"Data 3 Accessories","index":10,"n_rows":109,"n_cols":39,"rows_kept":109,"cut":false,"hidden":true,"merged":[]}
[null,null,null,"B_B_Horizontal",null,"B_BF_Horizontal",null,"BF_B_Horizontal",null,"BF_BF_Horizontal",null,"F_B_Horizontal",null,"F_BF_Horizontal",null,"B_B_Horizontal_brick",null,"B_BF_Horizontal_brick",null,"BF_B_Horizontal_brick",null,"BF_BF_Horizontal_brick",null,"F_B_Horizontal_brick",null,"F_BF_Horizontal_brick",null,"B_B_Horizontal_asymmetrical_brick",null,"B_BF_Horizontal_asymmetrical_brick",null,"BF_B_Horizontal_asymmetrical_brick",null,"BF_BF_Horizontal_asymmetrical_brick",null,"F_B_Horizontal_asymmetrical_brick",null,"F_BF_Horizontal_asymmetrical_brick"]
[null,null,null,"Qbiss Screen MW - B-B - Horizontal assembly","Note","Qbiss Screen MW - B-BF - Horizontal assembly","Note","Qbiss Screen MW - BF-B - Horizontal assembly","Note","Qbiss Screen MW - BF-BF - Horizontal assembly","Note","Qbiss Screen MW - F-B - Horizontal assembly","Note","Qbiss Screen MW - F-BF - Horizontal assembly","Note","Qbiss Screen MW - B-B - Brick assembly","Note","Qbiss Screen MW - B-BF - Horizontal brick assembly","Note","Qbiss Screen MW - BF-B - Horizontal brick assemly","Note","Qbiss Screen MW - BF-BF - Horizontal brick assembly","Note","Qbiss Screen MW - F-B - Horizontal brick assembly","Note","Qbiss Screen MW - F-BF - Horizontal brick assembly","Note","Qbiss Screen MW - B-B Horizontal asymmertical brick assembly","Note","Qbiss Screen MW - B-BF - Horizontal brick assembly","Note","Qbiss Screen MW - BF-B - Horizontal asymmetrical brick assembly","Note",null,"Note",null,"Note",null,"Note"]
[]
[]
[]
["Primer šifre SAP",null,null,"Q100-1200 9006 PVDF 070/9006 SP 055-KT\nPROFIL HF40 RAL 9006 PVDF 13.1x20 AL\nProfil HF 14 v sklopu panela na linij!",null,"Q100-1200 9006 PVDF 070/9006 SP 055-KT\nPROFIL HF52 RAL9006 PVDF 34.1x21 AL\nProfil HF 14 v sklopu panela na linij!",null,"Q100-1200 9006 PVDF 070/9006 SP 055-KT\nPROFIL HF40 RAL 9006 PVDF 13.1x20 AL\nProfil HF 55 v sklopu panela na linij!",null,"Q100-1200 9006 PVDF 070/9006 SP 055-KT\nPROFIL HF52 RAL9006 PVDF 34.1x21 AL\nProfil HF 55 v sklopu panela na linij!",null,"QFB100-1060 9006 PVDF 70/9002 SP50-KT\nPROFIL HF40 RAL 9006 PVDF 13.1x20 AL\nNi profila v sklopu panela na linij!",null,"QFB100-1060 9006 PVDF 70/9002 SP50-KT\nPROFIL HF52 RAL9006 PVDF 34.1x21 AL\nNi profila v sklopu panela na linij!",null,"Q100-1200 9006 PVDF 070/9006 SP 055-KT\nPROFIL HF40 RAL 9006 PVDF 13.1x20 AL\nProfil HF 14 v sklopu panela na linij!",null,"Q100-1200 9006 PVDF 070/9006 SP 055-KT\nPROFIL HF52 RAL9006 PVDF 34.1x21 AL\nProfil HF 14 v sklopu panela na linij!",null,"Q100-1200 9006 PVDF 070/9006 SP 055-KT\nPROFIL HF40 RAL 9006 PVDF 13.1x20 AL\nProfil HF 55 v sklopu panela na linij!",null,"Q100-1200 9006 PVDF 070/9006 SP 055-KT\nPROFIL HF52 RAL9006 PVDF 34.1x21 AL\nProfil HF 55 v sklopu panela na linij!",null,"QFB100-1060 9006 PVDF 70/9002 SP50-KT\nPROFIL HF40 RAL 9006 PVDF 13.1x20 AL\nNi profila v sklopu panela na linij!",null,"QFB100-1060 9006 PVDF 70/9002 SP50-KT\nPROFIL HF52 RAL9006 PVDF 34.1x21 AL\nNi profila v sklopu panela na linij!",null,"Q100-1200 9006 PVDF 070/9006 SP 055-KT\nPROFIL HF40 RAL 9006 PVDF 13.1x20 AL\nProfil HF 14 v sklopu panela na linij!",null,"Q100-1200 9006 PVDF 070/9006 SP 055-KT\nPROFIL HF52 RAL9006 PVDF 34.1x21 AL\nProfil HF 14 v sklopu panela na linij!",null,"Q100-1200 9006 PVDF 070/9006 SP 055-KT\nPROFIL HF40 RAL 9006 PVDF 13.1x20 AL\nProfil HF 55 v sklopu panela na linij!",null,"Q100-1200 9006 PVDF 070/9006 SP 055-KT\nPROFIL HF52 RAL9006 PVDF 34.1x21 AL\nProfil HF 55 v sklopu panela na linij!",null,"QFB100-1060 9006 PVDF 70/9002 SP50-KT\nPROFIL HF40 RAL 9006 PVDF 13.1x20 AL\nNi profila v sklopu panela na linij!",null,"QFB100-1060 9006 PVDF 70/9002 SP50-KT\nPROFIL HF52 RAL9006 PVDF 34.1x21 AL\nNi profila v sklopu panela na linij!"]
[]
["Fixation_screw_in_panel_panel_joint_without_thread_under_the_head_and_without_washer","pcs",null,"self-tapping or self-drilling; see table","NOT included in element price; quantity of screws according to structural calculation; dimension of screw is based on element thickness and thickness of steel (sub)structure ","self-tapping or self-drilling; see table","NOT included in element price; quantity of screws according to structural calculation; dimension of screw is based on element thickness and thickness of steel (sub)structure ","self-tapping or self-drilling; see table","NOT included in element price; quantity of screws according to structural calculation; dimension of screw is based on element thickness and thickness of steel (sub)structure ","self-tapping or self-drilling; see table","NOT included in element price; quantity of screws according to structural calculation; dimension of screw is based on element thickness and thickness of steel (sub)structure ","self-tapping or self-drilling; see table","NOT included in element price; quantity of screws according to structural calculation; dimension of screw is based on element thickness and thickness of steel (sub)structure ","self-tapping or self-drilling; see table","NOT included in element price; quantity of screws according to structural calculation; dimension of screw is based on element thickness and thickness of steel (sub)structure ","self-tapping or self-drilling; see table","NOT included in element price; quantity of screws according to structural calculation; dimension of screw is based on element thickness and thickness of steel (sub)structure ","self-tapping or self-drilling; see table","NOT included in element price; quantity of screws according to structural calculation; dimension of screw is based on element thickness and thickness of steel (sub)structure ","self-tapping or self-drilling; see table","NOT included in element price; quantity of screws according to structural calculation; dimension of screw is based on element thickness and thickness of steel (sub)structure ","self-tapping or self-drilling; see table","NOT included in element price; quantity of screws according to structural calculation; dimension of screw is based on element thickness and thickness of steel (sub)structure ","self-tapping or self-drilling; see table","NOT included in element price; quantity of screws according to structural calculation; dimension of screw is based on element thickness and thickness of steel (sub)structure ","self-tapping or self-drilling; see table","NOT included in element price; quantity of screws according to structural calculation; dimension of screw is based on element thickness and thickness of steel (sub)structure ","self-tapping or self-drilling; see table","NOT included in element price; quantity of screws according to structural calculation; dimension of screw is based on element thickness and thickness of steel (sub)structure ","self-tapping or self-drilling; see table","NOT included in element price; quantity of screws according to structural calculation; dimension of screw is based on element thickness and thickness of steel (sub)structure ","self-tapping or self-drilling; see table","NOT included in element price; quantity of screws according to structural calculation; dimension of screw is based on element thickness and thickness of steel (sub)structure ","self-tapping or self-drilling; see table","NOT included in element price; quantity of screws according to structural calculation; dimension of screw is based on element thickness and thickness of steel (sub)structure ","self-tapping or self-drilling; see table","NOT included in element price; quantity of screws according to structural calculation; dimension of screw is based on element thickness and thickness of steel (sub)structure ","self-tapping or self-drilling; see table","NOT included in element price; quantity of screws according to structural calculation; dimension of screw is based on element thickness and thickness of steel (sub)structure "]
["Fixation_screw_through_internal_steel_sheet","pcs",null,"self-tapping or self-drilling; see table","NOT included in element price; suggested quantity of screws 1-2 pcs per each facade element (depends on type and size of element)","self-tapping or self-drilling; see table","NOT included in element price; suggested quantity of screws 1-2 pcs per each facade element (depends on type and size of element)","self-tapping or self-drilling; see table","NOT included in element price; suggested quantity of screws 1-2 pcs per each facade element (depends on type and size of element)","self-tapping or self-drilling; see table","NOT included in element price; suggested quantity of screws 1-2 pcs per each facade element (depends on type and size of element)","self-tapping or self-drilling; see table","NOT included in element price; suggested quantity of screws 1-2 pcs per each facade element (depends on type and size of element)","self-tapping or self-drilling; see table","NOT included in element price; suggested quantity of screws 1-2 pcs per each facade element (depends on type and size of element)","self-tapping or self-drilling; see table","NOT included in element price; suggested quantity of screws 1-2 pcs per each facade element (depends on type and size of element)","self-tapping or self-drilling; see table","NOT included in element price; suggested quantity of screws 1-2 pcs per each facade element (depends on type and size of element)","self-tapping or self-drilling; see table","NOT included in element price; suggested quantity of screws 1-2 pcs per each facade element (depends on type and size of element)","self-tapping or self-drilling; see table","NOT included in element price; suggested quantity of screws 1-2 pcs per each facade element (depends on type and size of element)","self-tapping or self-drilling; see table","NOT included in element price; suggested quantity of screws 1-2 pcs per each facade element (depends on type and size of element)","self-tapping or self-drilling; see table","NOT included in element price; suggested quantity of screws 1-2 pcs per each facade element (depends on type and size of element)","self-tapping or self-drilling; see table","NOT included in element price; suggested quantity of screws 1-2 pcs per each facade element (depends on type and size of element)","self-tapping or self-drilling; see table","NOT included in element price; suggested quantity of screws 1-2 pcs per each facade element (depends on type and size of element)","self-tapping or self-drilling; see table","NOT included in element price; suggested quantity of screws 1-2 pcs per each facade element (depends on type and size of element)","self-tapping or self-drilling; see table","NOT included in element price; suggested quantity of screws 1-2 pcs per each facade element (depends on type and size of element)","self-tapping or self-drilling; see table","NOT included in element price; suggested quantity of screws 1-2 pcs per each facade element (depends on type and size of element)","self-tapping or self-drilling; see table","NOT included in element price; suggested quantity of screws 1-2 pcs per each facade element (depends on type and size of element)"]
["EPDM_Transversal_Gasket","m",null,"T052\n30014372\ncut to size for brick","included in element price; quantity of transversal (vertical) joint","T052\n30014372\ncut to size for brick","included in element price; quantity of transversal (vertical) joint","T052\n30014372\ncut to size for brick","included in element price; quantity of transversal (vertical) joint","T052\n30014372\ncut to size for brick","included in element price; quantity of transversal (vertical) joint","T052\n30014372\ncut to size for brick","included in element price; quantity of transversal (vertical) joint","T052\n30014372\ncut to size for brick","included in element price; quantity of transversal (vertical) joint","T052\n30014372\ncut to size for brick","included in element price; quantity of transversal (vertical) joint","T052\n30014372\ncut to size for brick","included in element price; quantity of transversal (vertical) joint","T052\n30014372\ncut to size for brick","included in element price; quantity of transversal (vertical) joint","T052\n30014372\ncut to size for brick","included in element price; quantity of transversal (vertical) joint","T052\n30014372\ncut to size for brick","included in element price; quantity of transversal (vertical) joint","T052\n30014372\ncut to size for brick","included in element price; quantity of transversal (vertical) joint","T052\n30014372\ncut to size for brick","included in element price; quantity of transversal (vertical) joint","T052\n30014372\ncut to size for brick","included in element price; quantity of transversal (vertical) joint","T052\n30014372\ncut to size for brick","included in element price; quantity of transversal (vertical) joint","T052\n30014372\ncut to size for brick","included in element price; quantity of transversal (vertical) joint","T052\n30014372\ncut to size for brick","included in element price; quantity of transversal (vertical) joint","T052\n30014372\ncut to size for brick","included in element price; quantity of transversal (vertical) joint"]
["Decorative_ALU_Extrusion","m",null,"A023 (HF40)\nSAP code colour specific\ncut to size for brick","included in element price; quantity of transversal (vertical) joint; supplied in 4 m lenghts; specify color","A097 (HF52)\nSAP code colour specific\ncut to size for brick ???\n30018981 tesnilo EPDM 20X20X15 ?","included in element price; quantity of transversal (vertical) joint; supplied in 4 m lenghts; specify color","A023 (HF40)\nSAP code colour specific\ncut to size for brick","included in element price; quantity of transversal (vertical) joint; supplied in 4 m lenghts; specify color","A097 (HF52)\nSAP code colour specific\ncut to size for brick ???\n30018981 tesnilo EPDM 20X20X15 ?","included in element price; quantity of transversal (vertical) joint; supplied in 4 m lenghts; specify color","A023 (HF40)\nSAP code colour specific\ncut to size for brick","included in element price; quantity of transversal (vertical) joint; supplied in 4 m lenghts; specify color","A097 (HF52)\nSAP code colour specific\ncut to size for brick ???\n30018981 tesnilo EPDM 20X20X15 ?","included in element price; quantity of transversal (vertical) joint; supplied in 4 m lenghts; specify color","A023 (HF40)\nSAP code colour specific\ncut to size for brick","included in element price; quantity of transversal (vertical) joint; supplied in 4 m lenghts; specify color","A097 (HF52)\nSAP code colour specific\ncut to size for brick ???\n30018981 tesnilo EPDM 20X20X15 ?","included in element price; quantity of transversal (vertical) joint; supplied in 4 m lenghts; specify color","A023 (HF40)\nSAP code colour specific\ncut to size for brick","included in element price; quantity of transversal (vertical) joint; supplied in 4 m lenghts; specify color","A097 (HF52)\nSAP code colour specific\ncut to size for brick ???\n30018981 tesnilo EPDM 20X20X15 ?","included in element price; quantity of transversal (vertical) joint; supplied in 4 m lenghts; specify color","A023 (HF40)\nSAP code colour specific\ncut to size for brick","included in element price; quantity of transversal (vertical) joint; supplied in 4 m lenghts; specify color","A097 (HF52)\nSAP code colour specific\ncut to size for brick ???\n30018981 tesnilo EPDM 20X20X15 ?","included in element price; quantity of transversal (vertical) joint; supplied in 4 m lenghts; specify color","A023 (HF40)\nSAP code colour specific\ncut to size for brick","included in element price; quantity of transversal (vertical) joint; supplied in 4 m lenghts; specify color","A097 (HF52)\nSAP code colour specific\ncut to size for brick ???\n30018981 tesnilo EPDM 20X20X15 ?","included in element price; quantity of transversal (vertical) joint; supplied in 4 m lenghts; specify color","A023 (HF40)\nSAP code colour specific\ncut to size for brick","included in element price; quantity of transversal (vertical) joint; supplied in 4 m lenghts; specify color","A097 (HF52)\nSAP code colour specific\ncut to size for brick ???\n30018981 tesnilo EPDM 20X20X15 ?","included in element price; quantity of transversal (vertical) joint; supplied in 4 m lenghts; specify color","A023 (HF40)\nSAP code colour specific\ncut to size for brick","included in element price; quantity of transversal (vertical) joint; supplied in 4 m lenghts; specify color","A097 (HF52)\nSAP code colour specific\ncut to size for brick ???\n30018981 tesnilo EPDM 20X20X15 ?","included in element price; quantity of transversal (vertical) joint; supplied in 4 m lenghts; specify color"]
["Junction_drip_element","pcs",null,"O1070 (3x44x156)\n30006439\n\nO10071 (3.7x44x92)\n30007027 for Brick","included in element price; quantity min. 1 piece per façade element","O1070 (3x44x156)\n30006439\n\nO10071 (3.7x44x92)\n30007027 for Brick","included in element price; quantity min. 1 piece per façade element","O1070 (3x44x156)\n30006439\n\nO10071 (3.7x44x92)\n30007027 for Brick","included in element price; quantity min. 1 piece per façade element","O1070 (3x44x156)\n30006439\n\nO10071 (3.7x44x92)\n30007027 for Brick","included in element price; quantity min. 1 piece per façade element","O1xxx (3x44x140)\n30025013\n\n\ndefinirat za Brick","included in element price; quantity min. 1 piece per façade element","O1xxx (3x44x140)\n30025013\n\n\ndefinirat za Brick","included in element price; quantity min. 1 piece per façade element","O1070 (3x44x156)\n30006439\n\nO10071 (3.7x44x92)\n30007027 for Brick","included in element price; quantity min. 1 piece per façade element","O1070 (3x44x156)\n30006439\n\nO10071 (3.7x44x92)\n30007027 for Brick","included in element price; quantity min. 1 piece per façade element","O1070 (3x44x156)\n30006439\n\nO10071 (3.7x44x92)\n30007027 for Brick","included in element price; quantity min. 1 piece per façade element","O1070 (3x44x156)\n30006439\n\nO10071 (3.7x44x92)\n30007027 for Brick","included in element price; quantity min. 1 piece per façade element","O1xxx (3x44x140)\n30025013\n\n\ndefinirat za Brick","included in element price; quantity min. 1 piece per façade element","O1xxx (3x44x140)\n30025013\n\n\ndefinirat za Brick","included in element price; quantity min. 1 piece per façade element","O1070 (3x44x156)\n30006439\n\nO10071 (3.7x44x92)\n30007027 for Brick","included in element price; quantity min. 1 piece per façade element","O1070 (3x44x156)\n30006439\n\nO10071 (3.7x44x92)\n30007027 for Brick","included in element price; quantity min. 1 piece per façade element","O1070 (3x44x156)\n30006439\n\nO10071 (3.7x44x92)\n30007027 for Brick","included in element price; quantity min. 1 piece per façade element","O1070 (3x44x156)\n30006439\n\nO10071 (3.7x44x92)\n30007027 for Brick","included in element price; quantity min. 1 piece per façade element","O1xxx (3x44x140)\n30025013\n\n\ndefinirat za Brick","included in element price; quantity min. 1 piece per façade element","O1xxx (3x44x140)\n30025013\n\n\ndefinirat za Brick","included in element price; quantity min. 1 piece per façade element"]
["Installation_Kit_Package_includes_spacer_crosses_wooden_pad_spray_with_soapy_water_and_installation_manual","pcs",null,"Installation Kit Package - horizontal\n30007109\nInstallation kit package - Brick\n30018303","included in element price; quantity 1 pcs per order plus additional 1 pcs for each 500 m2","Installation Kit Package - horizontal","included in element price; quantity 1 pcs per order plus additional 1 pcs for each 500 m2","Installation Kit Package - horizontal\n30007109\nInstallation kit package - Brick\n30018303\nNavodilo (imamo za B) - potrebno dopolnit.\nKriž od B je ustrezen.\n\nKriž za Brick ni potreben.","included in element price; quantity 1 pcs per order plus additional 1 pcs for each 500 m2","Installation Kit Package - horizontal\n30007109\nInstallation kit package - Brick\n30018303\nNavodilo (imamo za B) - potrebno dopolnit.\nKriž od B je ustrezen.\n\nKriž za Brick ni potreben.","included in element price; quantity 1 pcs per order plus additional 1 pcs for each 500 m2","Installation Kit Package - horizontal\n30007109\nInstallation kit package - Brick\n30018303 \nNavodilo - potrebno pripravit.\nKriž od F je ustrezen.\n\nKriž za Brick ni potreben.","included in element price; quantity 1 pcs per order plus additional 1 pcs for each 500 m2","Installation Kit Package - horizontal\n30007109\nInstallation kit package - Brick\n30018303\nNavodilo - potrebno pripravit.\nKriž (od F) je ustrezen.\n\nKriž za Brick ni potreben.","included in element price; quantity 1 pcs per order plus additional 1 pcs for each 500 m2","Installation Kit Package - horizontal\n30007109\nInstallation kit package - Brick\n30018303","included in element price; quantity 1 pcs per order plus additional 1 pcs for each 500 m2","Installation Kit Package - horizontal\n30007109\nInstallation kit package - Brick\n30018303","included in element price; quantity 1 pcs per order plus additional 1 pcs for each 500 m2","Installation Kit Package - horizontal\n30007109\nInstallation kit package - Brick\n30018303\nNavodilo (imamo za B) - potrebno dopolnit.\nKriž od B je ustrezen.\n\nKriž za Brick ni potreben.","included in element price; quantity 1 pcs per order plus additional 1 pcs for each 500 m2","Installation Kit Package - horizontal\n30007109\nInstallation kit package - Brick\n30018303\nNavodilo (imamo za B) - potrebno dopolnit.\nKriž od B je ustrezen.\n\nKriž za Brick ni potreben.","included in element price; quantity 1 pcs per order plus additional 1 pcs for each 500 m2","Installation Kit Package - horizontal\n30007109\nInstallation kit package - Brick\n30018303\nNavodilo - potrebno pripravit.\nKriž od F je ustrezen.\n\nKriž za Brick ni potreben.","included in element price; quantity 1 pcs per order plus additional 1 pcs for each 500 m2","Installation Kit Package - horizontal\n30007109\nInstallation kit package - Brick\n30018303\nNavodilo - potrebno pripravit.\nKriž (od F) je ustrezen.\n\nKriž za Brick ni potreben.","included in element price; quantity 1 pcs per order plus additional 1 pcs for each 500 m2","Installation Kit Package - horizontal\n30007109\nInstallation kit package - Brick\n30018303","included in element price; quantity 1 pcs per order plus additional 1 pcs for each 500 m2","Installation Kit Package - horizontal\n30007109\nInstallation kit package - Brick\n30018303","included in element price; quantity 1 pcs per order plus additional 1 pcs for each 500 m2","Installation Kit Package - horizontal\n30007109\nInstallation kit package - Brick\n30018303\nNavodilo (imamo za B) - potrebno dopolnit.\nKriž od B je ustrezen.\n\nKriž za Brick ni potreben.","included in element price; quantity 1 pcs per order plus additional 1 pcs for each 500 m2","Installation Kit Package - horizontal\n30007109\nInstallation kit package - Brick\n30018303\nNavodilo (imamo za B) - potrebno dopolnit.\nKriž od B je ustrezen.\n\nKriž za Brick ni potreben.","included in element price; quantity 1 pcs per order plus additional 1 pcs for each 500 m2","Installation Kit Package - horizontal\n30007109\nInstallation kit package - Brick\n30018303\nNavodilo - potrebno pripravit.\nKriž od F je ustrezen.\n\nKriž za Brick ni potreben.","included in element price; quantity 1 pcs per order plus additional 1 pcs for each 500 m2","Installation Kit Package - horizontal\n30007109\nInstallation kit package - Brick\n30018303\nNavodilo - potrebno pripravit.\nKriž (od F) je ustrezen.\n\nKriž za Brick ni potreben.","included in element price; quantity 1 pcs per order plus additional 1 pcs for each 500 m2"]
["Electrochemical_potential_insulation_tape_self_adhesive_PE_or_EPDM_dimension_05x100_120","m",null,null,"NOT included in element price; quantity as per details",0,"NOT included in element price; quantity as per details",0,"NOT included in element price; quantity as per details",0,"NOT included in element price; quantity as per details",0,"NOT included in element price; quantity as per details",0,"NOT included in element price; quantity as per details",0,"NOT included in element price; quantity as per details",0,"NOT included in element price; quantity as per details",0,"NOT included in element price; quantity as per details",0,"NOT included in element price; quantity as per details",0,"NOT included in element price; quantity as per details",0,"NOT included in element price; quantity as per details",0,"NOT included in element price; quantity as per details",0,"NOT included in element price; quantity as per details",0,"NOT included in element price; quantity as per details",0,"NOT included in element price; quantity as per details",0,"NOT included in element price; quantity as per details",0,"NOT included in element price; quantity as per details"]
["EPDM_Cube_Gasket_26x26x30","pcs",null,"T022\n30007025","NOT included in element price; quantity as per details","Installation kit package - Brick","NOT included in element price; quantity as per details","T022\n30007025","NOT included in element price; quantity as per details","not required","NOT included in element price; quantity as per details","T022\n30007025","NOT included in element price; quantity as per details","not required","NOT included in element price; quantity as per details","T022\n30007025","NOT included in element price; quantity as per details","T022\n30007025","NOT included in element price; quantity as per details","T022\n30007025","NOT included in element price; quantity as per details","not required","NOT included in element price; quantity as per details","T022\n30007025","NOT included in element price; quantity as per details","not required","NOT included in element price; quantity as per details","T022\n30007025","NOT included in element price; quantity as per details","T022\n30007025","NOT included in element price; quantity as per details","T022\n30007025","NOT included in element price; quantity as per details","not required","NOT included in element price; quantity as per details","T022\n30007025","NOT included in element price; quantity as per details","not required","NOT included in element price; quantity as per details"]
["EPDM_Drip_Element","pcs",null,"T051\n30006438","NOT included in price - quantity 1 pcs for each transversal (vertical) joint in connection to drip detail and above window/door/opening profile",30018303,"NOT included in price - quantity 1 pcs for each transversal (vertical) joint in connection to drip detail and above window/door/opening profile","T051\n30006438","NOT included in price - quantity 1 pcs for each transversal (vertical) joint in connection to drip detail and above window/door/opening profile","T051\n30006438\nxxx Support of decorative profile","NOT included in price - quantity 1 pcs for each transversal (vertical) joint in connection to drip detail and above window/door/opening profile","T051\n30006438","NOT included in price - quantity 1 pcs for each transversal (vertical) joint in connection to drip detail and above window/door/opening profile","T051\n30006438\nxxx Support of decorative profile","NOT included in price - quantity 1 pcs for each transversal (vertical) joint in connection to drip detail and above window/door/opening profile","T051\n30006438","NOT included in price - quantity 1 pcs for each transversal (vertical) joint in connection to drip detail and above window/door/opening profile","T051\n30006438\nxxx Support of decorative profile","NOT included in price - quantity 1 pcs for each transversal (vertical) joint in connection to drip detail and above window/door/opening profile","T051\n30006438","NOT included in price - quantity 1 pcs for each transversal (vertical) joint in connection to drip detail and above window/door/opening profile","T051\n30006438\nxxx Support of decorative profile","NOT included in price - quantity 1 pcs for each transversal (vertical) joint in connection to drip detail and above window/door/opening profile","T051\n30006438","NOT included in price - quantity 1 pcs for each transversal (vertical) joint in connection to drip detail and above window/door/opening profile","T051\n30006438\nxxx Support of decorative profile","NOT included in price - quantity 1 pcs for each transversal (vertical) joint in connection to drip detail and above window/door/opening profile","T051\n30006438","NOT included in price - quantity 1 pcs for each transversal (vertical) joint in connection to drip detail and above window/door/opening profile","T051\n30006438\nxxx Support of decorative profile","NOT included in price - quantity 1 pcs for each transversal (vertical) joint in connection to drip detail and above window/door/opening profile","T051\n30006438","NOT included in price - quantity 1 pcs for each transversal (vertical) joint in connection to drip detail and above window/door/opening profile","T051\n30006438\nxxx Support of decorative profile","NOT included in price - quantity 1 pcs for each transversal (vertical) joint in connection to drip detail and above window/door/opening profile","T051\n30006438","NOT included in price - quantity 1 pcs for each transversal (vertical) joint in connection to drip detail and above window/door/opening profile","T051\n30006438\nxxx Support of decorative profile","NOT included in price - quantity 1 pcs for each transversal (vertical) joint in connection to drip detail and above window/door/opening profile"]
["Stainless_drip_element","pcs",null,"O655\n30026912","NOT included in price - quantity 1 pcs for each transversal (vertical) joint in connection to detail with face flashing for window/door/opening","O655\n30026912","NOT included in price - quantity 1 pcs for each transversal (vertical) joint in connection to detail with face flashing for window/door/opening","O655\n30026912","NOT included in price - quantity 1 pcs for each transversal (vertical) joint in connection to detail with face flashing for window/door/opening","O655\n30026912","NOT included in price - quantity 1 pcs for each transversal (vertical) joint in connection to detail with face flashing for window/door/opening","O655\n30026912","NOT included in price - quantity 1 pcs for each transversal (vertical) joint in connection to detail with face flashing for window/door/opening","O655\n30026912","NOT included in price - quantity 1 pcs for each transversal (vertical) joint in connection to detail with face flashing for window/door/opening","O655\n30026912","NOT included in price - quantity 1 pcs for each transversal (vertical) joint in connection to detail with face flashing for window/door/opening","O655\n30026912","NOT included in price - quantity 1 pcs for each transversal (vertical) joint in connection to detail with face flashing for window/door/opening","O655\n30026912","NOT included in price - quantity 1 pcs for each transversal (vertical) joint in connection to detail with face flashing for window/door/opening","O655\n30026912","NOT included in price - quantity 1 pcs for each transversal (vertical) joint in connection to detail with face flashing for window/door/opening","O655\n30026912","NOT included in price - quantity 1 pcs for each transversal (vertical) joint in connection to detail with face flashing for window/door/opening","O655\n30026912","NOT included in price - quantity 1 pcs for each transversal (vertical) joint in connection to detail with face flashing for window/door/opening","O655\n30026912","NOT included in price - quantity 1 pcs for each transversal (vertical) joint in connection to detail with face flashing for window/door/opening","O655\n30026912","NOT included in price - quantity 1 pcs for each transversal (vertical) joint in connection to detail with face flashing for window/door/opening","O655\n30026912","NOT included in price - quantity 1 pcs for each transversal (vertical) joint in connection to detail with face flashing for window/door/opening","O655\n30026912","NOT included in price - quantity 1 pcs for each transversal (vertical) joint in connection to detail with face flashing for window/door/opening","O655\n30026912","NOT included in price - quantity 1 pcs for each transversal (vertical) joint in connection to detail with face flashing for window/door/opening","O655\n30026912","NOT included in price - quantity 1 pcs for each transversal (vertical) joint in connection to detail with face flashing for window/door/opening"]
["Load_Bearing_Fixing_Plate","pcs",null,"N637\n30006944","Included in element price, depending on type of element, any additional elements required  for i.e. connection to other façade system not included, quantity subject to design information ","N637\n30006944","Included in element price, depending on type of element, any additional elements required  for i.e. connection to other façade system not included, quantity subject to design information ","N637\n30006944","Included in element price, depending on type of element, any additional elements required  for i.e. connection to other façade system not included, quantity subject to design information ","N637\n30006944","Included in element price, depending on type of element, any additional elements required  for i.e. connection to other façade system not included, quantity subject to design information ","N637\n30006944","Included in element price, depending on type of element, any additional elements required  for i.e. connection to other façade system not included, quantity subject to design information ","N637\n30006944","Included in element price, depending on type of element, any additional elements required  for i.e. connection to other façade system not included, quantity subject to design information ","N637\n30006944","Included in element price, depending on type of element, any additional elements required  for i.e. connection to other façade system not included, quantity subject to design information ","N637\n30006944","Included in element price, depending on type of element, any additional elements required  for i.e. connection to other façade system not included, quantity subject to design information ","N637\n30006944","Included in element price, depending on type of element, any additional elements required  for i.e. connection to other façade system not included, quantity subject to design information ","N637\n30006944","Included in element price, depending on type of element, any additional elements required  for i.e. connection to other façade system not included, quantity subject to design information ","N637\n30006944","Included in element price, depending on type of element, any additional elements required  for i.e. connection to other façade system not included, quantity subject to design information ","N637\n30006944","Included in element price, depending on type of element, any additional elements required  for i.e. connection to other façade system not included, quantity subject to design information ","N637\n30006944","Included in element price, depending on type of element, any additional elements required  for i.e. connection to other façade system not included, quantity subject to design information ","N637\n30006944","Included in element price, depending on type of element, any additional elements required  for i.e. connection to other façade system not included, quantity subject to design information ","N637\n30006944","Included in element price, depending on type of element, any additional elements required  for i.e. connection to other façade system not included, quantity subject to design information ","N637\n30006944","Included in element price, depending on type of element, any additional elements required  for i.e. connection to other façade system not included, quantity subject to design information ","N637\n30006944","Included in element price, depending on type of element, any additional elements required  for i.e. connection to other façade system not included, quantity subject to design information ","N637\n30006944","Included in element price, depending on type of element, any additional elements required  for i.e. connection to other façade system not included, quantity subject to design information "]
["Mechanical_gripper_for_horizontal_installation","pcs",null,"PHQ for each panel thickness","NOT included in element price; quantity as required by installer","PHQ for each panel thickness","NOT included in element price; quantity as required by installer","PHQ for each panel thickness","NOT included in element price; quantity as required by installer","PHQ for each panel thickness","NOT included in element price; quantity as required by installer","PHQ for each panel thickness","NOT included in element price; quantity as required by installer","PHQ for each panel thickness","NOT included in element price; quantity as required by installer","PHQ for each panel thickness","NOT included in element price; quantity as required by installer","PHQ for each panel thickness","NOT included in element price; quantity as required by installer","PHQ for each panel thickness","NOT included in element price; quantity as required by installer","PHQ for each panel thickness","NOT included in element price; quantity as required by installer","PHQ for each panel thickness","NOT included in element price; quantity as required by installer","PHQ for each panel thickness","NOT included in element price; quantity as required by installer","PHQ for each panel thickness","NOT included in element price; quantity as required by installer","PHQ for each panel thickness","NOT included in element price; quantity as required by installer","PHQ for each panel thickness","NOT included in element price; quantity as required by installer","PHQ for each panel thickness","NOT included in element price; quantity as required by installer","PHQ for each panel thickness","NOT included in element price; quantity as required by installer","PHQ for each panel thickness","NOT included in element price; quantity as required by installer"]
["Mastic_seal_MS_polymer_based_or_PUR_based_required_for_EPDM_cube_and_internal_joint_sealing","pcs",null,null,"NOT included in element price; quantity as required by installer",null,"NOT included in element price; quantity as required by installer",null,"NOT included in element price; quantity as required by installer",null,"NOT included in element price; quantity as required by installer",null,"NOT included in element price; quantity as required by installer",null,"NOT included in element price; quantity as required by installer",null,"NOT included in element price; quantity as required by installer",null,"NOT included in element price; quantity as required by installer",null,"NOT included in element price; quantity as required by installer",null,"NOT included in element price; quantity as required by installer",null,"NOT included in element price; quantity as required by installer",null,"NOT included in element price; quantity as required by installer",null,"NOT included in element price; quantity as required by installer",null,"NOT included in element price; quantity as required by installer",null,"NOT included in element price; quantity as required by installer",null,"NOT included in element price; quantity as required by installer",null,"NOT included in element price; quantity as required by installer",null,"NOT included in element price; quantity as required by installer"]
[]
[]
["NAME",null,null,"B_B_Vertical",null,"B_BF_Vertical",null,"BF_B_Vertical",null,"BF_BF_Vertical",null,"B_B_Vertical_brick",null,"B_BF_Vertical_brick",null,"BF_B_Vertical_brick",null,"BF_BF_Vertical_brick"]
[]
[]
[]
[]
[]
[]
["Primer šifre SAP",null,null,"Q100-1200 9006 PVDF 070/9006 SP 055-KT\nPROFIL HF40 RAL 9006 PVDF 13.1x20 AL\nProfil HF 14 v sklopu panela na linij!",null,"Q100-1200 9006 PVDF 070/9006 SP 055-KT\nPROFIL HF52 RAL9006 PVDF 34.1x21 AL\nProfil HF 14 v sklopu panela na linij!",null,"Q100-1200 9006 PVDF 070/9006 SP 055-KT\nPROFIL HF40 RAL 9006 PVDF 13.1x20 AL\nProfil HF 55 v sklopu panela na linij!",null,"Q100-1200 9006 PVDF 070/9006 SP 055-KT\nPROFIL HF52 RAL9006 PVDF 34.1x21 AL\nProfil HF 55 v sklopu panela na linij!",null,"Q100-1200 9006 PVDF 070/9006 SP 055-KT\nPROFIL HF40 RAL 9006 PVDF 13.1x20 AL\nProfil HF 14 v sklopu panela na linij!",null,"Q100-1200 9006 PVDF 070/9006 SP 055-KT\nPROFIL HF52 RAL9006 PVDF 34.1x21 AL\nProfil HF 14 v sklopu panela na linij!",null,"Q100-1200 9006 PVDF 070/9006 SP 055-KT\nPROFIL HF40 RAL 9006 PVDF 13.1x20 AL\nProfil HF 55 v sklopu panela na linij!",null,"Q100-1200 9006 PVDF 070/9006 SP 055-KT\nPROFIL HF52 RAL9006 PVDF 34.1x21 AL\nProfil HF 55 v sklopu panela na linij!"]
[]
["Fixation_screw_in_panel_panel_joint_without_thread_under_the_head_and_without_washer","pcs",null,"self-tapping or self-drilling; see table","NOT included in element price; quantity of screws according to structural calculation; dimension of screw is based on element thickness and thickness of steel (sub)structure ","self-tapping or self-drilling; see table","NOT included in element price; quantity of screws according to structural calculation; dimension of screw is based on element thickness and thickness of steel (sub)structure ","self-tapping or self-drilling; see table","NOT included in element price; quantity of screws according to structural calculation; dimension of screw is based on element thickness and thickness of steel (sub)structure ","self-tapping or self-drilling; see table","NOT included in element price; quantity of screws according to structural calculation; dimension of screw is based on element thickness and thickness of steel (sub)structure ","self-tapping or self-drilling; see table","NOT included in element price; quantity of screws according to structural calculation; dimension of screw is based on element thickness and thickness of steel (sub)structure ","self-tapping or self-drilling; see table","NOT included in element price; quantity of screws according to structural calculation; dimension of screw is based on element thickness and thickness of steel (sub)structure ","self-tapping or self-drilling; see table","NOT included in element price; quantity of screws according to structural calculation; dimension of screw is based on element thickness and thickness of steel (sub)structure ","self-tapping or self-drilling; see table","NOT included in element price; quantity of screws according to structural calculation; dimension of screw is based on element thickness and thickness of steel (sub)structure "]
["Fixation_screw_through_internal_steel_sheet","pcs",null,"self-tapping or self-drilling; see table","NOT included in element price; suggested quantity of screws 1-2 pcs per each facade element (depends on type and size of element)","self-tapping or self-drilling; see table","NOT included in element price; suggested quantity of screws 1-2 pcs per each facade element (depends on type and size of element)","self-tapping or self-drilling; see table","NOT included in element price; suggested quantity of screws 1-2 pcs per each facade element (depends on type and size of element)","self-tapping or self-drilling; see table","NOT included in element price; suggested quantity of screws 1-2 pcs per each facade element (depends on type and size of element)","self-tapping or self-drilling; see table","NOT included in element price; suggested quantity of screws 1-2 pcs per each facade element (depends on type and size of element)","self-tapping or self-drilling; see table","NOT included in element price; suggested quantity of screws 1-2 pcs per each facade element (depends on type and size of element)","self-tapping or self-drilling; see table","NOT included in element price; suggested quantity of screws 1-2 pcs per each facade element (depends on type and size of element)","self-tapping or self-drilling; see table","NOT included in element price; suggested quantity of screws 1-2 pcs per each facade element (depends on type and size of element)"]
["EPDM_Transversal_Gasket","m",null,"T052\n30014372\ncut to size for brick","included in element price; quantity of transversal (horizontal) joint","T052\n30014372\ncut to size for brick","included in element price; quantity of transversal (horizontal) joint","T052\n30014372\ncut to size for brick","included in element price; quantity of transversal (horizontal) joint","T052\n30014372\ncut to size for brick","included in element price; quantity of transversal (horizontal) joint","T052\n30014372\ncut to size for brick","included in element price; quantity of transversal (horizontal) joint","T052\n30014372\ncut to size for brick","included in element price; quantity of transversal (horizontal) joint","T052\n30014372\ncut to size for brick","included in element price; quantity of transversal (horizontal) joint","T052\n30014372\ncut to size for brick","included in element price; quantity of transversal (horizontal) joint"]
["Decorative_ALU_Extrusion","m",null,"A023 (HF40)\nSAP code colour specific\ncut to size for brick","included in element price; quantity of transversal (horizontal) joint; supplied in 4 m lenghts; specify color","A097 (HF52)\nSAP code colour specific\ncut to size for brick ???\n30018981 tesnilo EPDM 20X20X15 ?","included in element price; quantity of transversal (horizontal) joint; supplied in 4 m lenghts; specify color","A023 (HF40)\nSAP code colour specific\ncut to size for brick","included in element price; quantity of transversal (horizontal) joint; supplied in 4 m lenghts; specify color","A097 (HF52)\nSAP code colour specific\ncut to size for brick ???\n30018981 tesnilo EPDM 20X20X15 ?","included in element price; quantity of transversal (horizontal) joint; supplied in 4 m lenghts; specify color","A023 (HF40)\nSAP code colour specific\ncut to size for brick","included in element price; quantity of transversal (horizontal) joint; supplied in 4 m lenghts; specify color","A097 (HF52)\nSAP code colour specific\ncut to size for brick ???\n30018981 tesnilo EPDM 20X20X15 ?","included in element price; quantity of transversal (horizontal) joint; supplied in 4 m lenghts; specify color","A023 (HF40)\nSAP code colour specific\ncut to size for brick","included in element price; quantity of transversal (horizontal) joint; supplied in 4 m lenghts; specify color","A097 (HF52)\nSAP code colour specific\ncut to size for brick ???\n30018981 tesnilo EPDM 20X20X15 ?","included in element price; quantity of transversal (horizontal) joint; supplied in 4 m lenghts; specify color"]
["Joint_profile_20_25_1","m",null,"N544\n81010514","NOT included in element price; quantity of transversal (horizontal) joint","N544\n81010514","NOT included in element price; quantity of transversal (horizontal) joint","N544\n81010514","NOT included in element price; quantity of transversal (horizontal) joint","N544\n81010514","NOT included in element price; quantity of transversal (horizontal) joint","N544\n81010514","NOT included in element price; quantity of transversal (horizontal) joint","N544\n81010514","NOT included in element price; quantity of transversal (horizontal) joint","N544\n81010514","NOT included in element price; quantity of transversal (horizontal) joint","N544\n81010514","NOT included in element price; quantity of transversal (horizontal) joint"]
["Electrochemical_potential_insulation_tape_self_adhesive_PE_or_EPDM_dimension_05x100_120","pcs",null,null,"NOT included in element price; quantity as required by installer",null,"NOT included in element price; quantity as required by installer",null,"NOT included in element price; quantity as required by installer",null,"NOT included in element price; quantity as required by installer",null,"NOT included in element price; quantity as required by installer",null,"NOT included in element price; quantity as required by installer",null,"NOT included in element price; quantity as required by installer",null,"NOT included in element price; quantity as required by installer"]
["Installation_Kit_Package_includes_spacer_crosses_wooden_pad_spray_with_soapy_water_and_installation_manual","pcs",null,"Installation Kit Package - Vertical\n30030437","included in element price; quantity 1 pcs per order plus additional 1 pcs for each 500 m2","Installation Kit Package - Vertical","included in element price; quantity 1 pcs per order plus additional 1 pcs for each 500 m2","Installation Kit Package - Vertical\n30030437\nNavodilo (imamo za B) - potrebno dopolnit.\nKriž od B je ustrezen.","included in element price; quantity 1 pcs per order plus additional 1 pcs for each 500 m2","Installation Kit Package - Vertical\n30030437\nNavodilo (imamo za B) - potrebno dopolnit.\nKriž od B je ustrezen.","included in element price; quantity 1 pcs per order plus additional 1 pcs for each 500 m2","Installation Kit Package - Vertical\n30030437","included in element price; quantity 1 pcs per order plus additional 1 pcs for each 500 m2","Installation Kit Package - Vertical","included in element price; quantity 1 pcs per order plus additional 1 pcs for each 500 m2","Installation Kit Package - Vertical\n30030437\nNavodilo (imamo za B) - potrebno dopolnit.\nKriž od B je ustrezen.","included in element price; quantity 1 pcs per order plus additional 1 pcs for each 500 m2","Installation Kit Package - Vertical\n30030437\nNavodilo (imamo za B) - potrebno dopolnit.\nKriž od B je ustrezen.","included in element price; quantity 1 pcs per order plus additional 1 pcs for each 500 m2"]
["PE_butyl_tape_1_50_200","m",null,"T102\n30016941","NOT included in element price; quantity min. 200mm per element","T102\n30016941","NOT included in element price; quantity min. 200mm per element","T102\n30016941","NOT included in element price; quantity min. 200mm per element","T102\n30016941","NOT included in element price; quantity min. 200mm per element","T102\n30016941","NOT included in element price; quantity min. 200mm per element","T102\n30016941","NOT included in element price; quantity min. 200mm per element","T102\n30016941","NOT included in element price; quantity min. 200mm per element","T102\n30016941","NOT included in element price; quantity min. 200mm per element"]
["EPDM_Cube_Gasket_26x26x30","pcs",null,"T022\n30007025","NOT included in element price; quantity as per details","T022\n30007025","NOT included in element price; quantity as per details","T022\n30007025","NOT included in element price; quantity as per details","not required","NOT included in element price; quantity as per details","T022\n30007025","NOT included in element price; quantity as per details","T022\n30007025","NOT included in element price; quantity as per details","T022\n30007025","NOT included in element price; quantity as per details","not required","NOT included in element price; quantity as per details"]
["Load_Bearing_Fixing_Plate","pcs",null,"N637\n30006944","Included in element price, depending on type of element, any additional elements required for i.e. connection to other facade system not included, quantity subject to design information","N637\n30006944","Included in element price, depending on type of element, any additional elements required for i.e. connection to other facade system not included, quantity subject to design information","N637\n30006944","Included in element price, depending on type of element, any additional elements required for i.e. connection to other facade system not included, quantity subject to design information","N637\n30006944","Included in element price, depending on type of element, any additional elements required for i.e. connection to other facade system not included, quantity subject to design information","N637\n30006944","Included in element price, depending on type of element, any additional elements required for i.e. connection to other facade system not included, quantity subject to design information","N637\n30006944","Included in element price, depending on type of element, any additional elements required for i.e. connection to other facade system not included, quantity subject to design information","N637\n30006944","Included in element price, depending on type of element, any additional elements required for i.e. connection to other facade system not included, quantity subject to design information","N637\n30006944","Included in element price, depending on type of element, any additional elements required for i.e. connection to other facade system not included, quantity subject to design information"]
["Seaming_tool_recomended","pcs",null,"PS 130\n30029421","NOT included in element price; quantity as required by installer","PS 130\n30029421","NOT included in element price; quantity as required by installer","PS 130\n30029421","NOT included in element price; quantity as required by installer","PS 130\n30029421","NOT included in element price; quantity as required by installer","PS 130\n30029421","NOT included in element price; quantity as required by installer","PS 130\n30029421","NOT included in element price; quantity as required by installer","PS 130\n30029421","NOT included in element price; quantity as required by installer","PS 130\n30029421","NOT included in element price; quantity as required by installer"]
["Mastic_seal_MS_polymer_based_or_PUR_based_required_for_EPDM_cube_and_internal_joint_sealing","pcs",null,null,"NOT included in element price; quantity as required by installer",null,"NOT included in element price; quantity as required by installer",null,"NOT included in element price; quantity as required by installer",null,"NOT included in element price; quantity as required by installer",null,"NOT included in element price; quantity as required by installer",null,"NOT included in element price; quantity as required by installer",null,"NOT included in element price; quantity as required by installer",null,"NOT included in element price; quantity as required by installer"]
[]
[]
["NAME",null,null,"B_B_Soffit",null,"B_BF_Soffit",null,"BF_B_Soffit",null,"BF_BF_Soffit",null,"F_B_Soffit",null,"F_BF_Soffit",null,"B_B_Soffit",null,"B_BF_Soffit",null,"BF_B_Soffit",null,"BF_BF_Soffit",null,"F_B_Soffit_brick",null,"F_BF_Horizontal_brick",null,"B_B_Horizontal_asymmetrical_brick",null,"B_BF_Horizontal_asymmetrical_brick",null,"BF_B_Horizontal_asymmetrical_brick",null,"BF_BF_Horizontal_asymmetrical_brick",null,"F_B_Horizontal_asymmetrical_brick",null,"F_BF_Horizontal_asymmetrical_brick"]
[null,null,null,"Qbiss Screen MW - B-B - Soffit","Note","Qbiss Screen MW - B-BF - Soffit","Note","Qbiss Screen MW - BF-B - Soffit","Note","Qbiss Screen MW - BF-BF - Soffit","Note","Qbiss Screen MW - F-B - Soffit","Note","Qbiss Screen MW - F-BF - Soffit","Note","Qbiss Screen MW - B-B - Soffit","Note","Qbiss Screen MW - B-BF - Soffit","Note","Qbiss Screen MW - BF-B - Soffit","Note","Qbiss Screen MW - BF-BF - Soffit","Note","Qbiss Screen MW - F-B - Horizontal brick assembly","Note","Qbiss Screen MW - F-BF - Horizontal brick assembly","Note","Qbiss Screen MW - B-B Horizontal asymmertical brick assembly","Note","Qbiss Screen MW - B-BF - Horizontal brick assembly","Note","Qbiss Screen MW - BF-B - Horizontal asymmetrical brick assembly","Note",null,"Note",null,"Note",null,"Note"]
[]
[]
[]
["Primer šifre SAP",null,null,"Q100-1200 9006 PVDF 070/9006 SP 055-KT\nPROFIL HF40 RAL 9006 PVDF 13.1x20 AL\nProfil HF 14 v sklopu panela na linij!",null,"Q100-1200 9006 PVDF 070/9006 SP 055-KT\nPROFIL HF52 RAL9006 PVDF 34.1x21 AL\nProfil HF 14 v sklopu panela na linij!",null,"Q100-1200 9006 PVDF 070/9006 SP 055-KT\nPROFIL HF40 RAL 9006 PVDF 13.1x20 AL\nProfil HF 55 v sklopu panela na linij!",null,"Q100-1200 9006 PVDF 070/9006 SP 055-KT\nPROFIL HF52 RAL9006 PVDF 34.1x21 AL\nProfil HF 55 v sklopu panela na linij!",null,"QFB100-1060 9006 PVDF 70/9002 SP50-KT\nPROFIL HF40 RAL 9006 PVDF 13.1x20 AL\nNi profila v sklopu panela na linij!",null,"QFB100-1060 9006 PVDF 70/9002 SP50-KT\nPROFIL HF52 RAL9006 PVDF 34.1x21 AL\nNi profila v sklopu panela na linij!",null,"Q100-1200 9006 PVDF 070/9006 SP 055-KT\nPROFIL HF40 RAL 9006 PVDF 13.1x20 AL\nProfil HF 14 v sklopu panela na linij!",null,"Q100-1200 9006 PVDF 070/9006 SP 055-KT\nPROFIL HF52 RAL9006 PVDF 34.1x21 AL\nProfil HF 14 v sklopu panela na linij!",null,"Q100-1200 9006 PVDF 070/9006 SP 055-KT\nPROFIL HF40 RAL 9006 PVDF 13.1x20 AL\nProfil HF 55 v sklopu panela na linij!",null,"Q100-1200 9006 PVDF 070/9006 SP 055-KT\nPROFIL HF52 RAL9006 PVDF 34.1x21 AL\nProfil HF 55 v sklopu panela na linij!",null,"QFB100-1060 9006 PVDF 70/9002 SP50-KT\nPROFIL HF40 RAL 9006 PVDF 13.1x20 AL\nNi profila v sklopu panela na linij!",null,"QFB100-1060 9006 PVDF 70/9002 SP50-KT\nPROFIL HF52 RAL9006 PVDF 34.1x21 AL\nNi profila v sklopu panela na linij!",null,"Q100-1200 9006 PVDF 070/9006 SP 055-KT\nPROFIL HF40 RAL 9006 PVDF 13.1x20 AL\nProfil HF 14 v sklopu panela na linij!",null,"Q100-1200 9006 PVDF 070/9006 SP 055-KT\nPROFIL HF52 RAL9006 PVDF 34.1x21 AL\nProfil HF 14 v sklopu panela na linij!",null,"Q100-1200 9006 PVDF 070/9006 SP 055-KT\nPROFIL HF40 RAL 9006 PVDF 13.1x20 AL\nProfil HF 55 v sklopu panela na linij!",null,"Q100-1200 9006 PVDF 070/9006 SP 055-KT\nPROFIL HF52 RAL9006 PVDF 34.1x21 AL\nProfil HF 55 v sklopu panela na linij!",null,"QFB100-1060 9006 PVDF 70/9002 SP50-KT\nPROFIL HF40 RAL 9006 PVDF 13.1x20 AL\nNi profila v sklopu panela na linij!",null,"QFB100-1060 9006 PVDF 70/9002 SP50-KT\nPROFIL HF52 RAL9006 PVDF 34.1x21 AL\nNi profila v sklopu panela na linij!"]
[]
["Fixation_screw_in_panel_panel_joint_without_thread_under_the_head_and_without_washer","pcs",null,"bla bla","NOT included in element price; quantity of screws according to structural calculation; dimension of screw is based on element thickness and thickness of steel (sub)structure ","self-tapping or self-drilling; see table","NOT included in element price; quantity of screws according to structural calculation; dimension of screw is based on element thickness and thickness of steel (sub)structure ","self-tapping or self-drilling; see table","NOT included in element price; quantity of screws according to structural calculation; dimension of screw is based on element thickness and thickness of steel (sub)structure ","self-tapping or self-drilling; see table","NOT included in element price; quantity of screws according to structural calculation; dimension of screw is based on element thickness and thickness of steel (sub)structure ","self-tapping or self-drilling; see table","NOT included in element price; quantity of screws according to structural calculation; dimension of screw is based on element thickness and thickness of steel (sub)structure ","self-tapping or self-drilling; see table","NOT included in element price; quantity of screws according to structural calculation; dimension of screw is based on element thickness and thickness of steel (sub)structure ","self-tapping or self-drilling; see table","NOT included in element price; quantity of screws according to structural calculation; dimension of screw is based on element thickness and thickness of steel (sub)structure ","self-tapping or self-drilling; see table","NOT included in element price; quantity of screws according to structural calculation; dimension of screw is based on element thickness and thickness of steel (sub)structure ","self-tapping or self-drilling; see table","NOT included in element price; quantity of screws according to structural calculation; dimension of screw is based on element thickness and thickness of steel (sub)structure ","self-tapping or self-drilling; see table","NOT included in element price; quantity of screws according to structural calculation; dimension of screw is based on element thickness and thickness of steel (sub)structure ","self-tapping or self-drilling; see table","NOT included in element price; quantity of screws according to structural calculation; dimension of screw is based on element thickness and thickness of steel (sub)structure ","self-tapping or self-drilling; see table","NOT included in element price; quantity of screws according to structural calculation; dimension of screw is based on element thickness and thickness of steel (sub)structure ","self-tapping or self-drilling; see table","NOT included in element price; quantity of screws according to structural calculation; dimension of screw is based on element thickness and thickness of steel (sub)structure ","self-tapping or self-drilling; see table","NOT included in element price; quantity of screws according to structural calculation; dimension of screw is based on element thickness and thickness of steel (sub)structure ","self-tapping or self-drilling; see table","NOT included in element price; quantity of screws according to structural calculation; dimension of screw is based on element thickness and thickness of steel (sub)structure ","self-tapping or self-drilling; see table","NOT included in element price; quantity of screws according to structural calculation; dimension of screw is based on element thickness and thickness of steel (sub)structure ","self-tapping or self-drilling; see table","NOT included in element price; quantity of screws according to structural calculation; dimension of screw is based on element thickness and thickness of steel (sub)structure ","self-tapping or self-drilling; see table","NOT included in element price; quantity of screws according to structural calculation; dimension of screw is based on element thickness and thickness of steel (sub)structure "]
["Fixation_screw_through_internal_steel_sheet","pcs",null,"self-tapping or self-drilling; see table","NOT included in element price; suggested quantity of screws 1-2 pcs per each facade element (depends on type and size of element)","self-tapping or self-drilling; see table","NOT included in element price; suggested quantity of screws 1-2 pcs per each facade element (depends on type and size of element)","self-tapping or self-drilling; see table","NOT included in element price; suggested quantity of screws 1-2 pcs per each facade element (depends on type and size of element)","self-tapping or self-drilling; see table","NOT included in element price; suggested quantity of screws 1-2 pcs per each facade element (depends on type and size of element)","self-tapping or self-drilling; see table","NOT included in element price; suggested quantity of screws 1-2 pcs per each facade element (depends on type and size of element)","self-tapping or self-drilling; see table","NOT included in element price; suggested quantity of screws 1-2 pcs per each facade element (depends on type and size of element)","self-tapping or self-drilling; see table","NOT included in element price; suggested quantity of screws 1-2 pcs per each facade element (depends on type and size of element)","self-tapping or self-drilling; see table","NOT included in element price; suggested quantity of screws 1-2 pcs per each facade element (depends on type and size of element)","self-tapping or self-drilling; see table","NOT included in element price; suggested quantity of screws 1-2 pcs per each facade element (depends on type and size of element)","self-tapping or self-drilling; see table","NOT included in element price; suggested quantity of screws 1-2 pcs per each facade element (depends on type and size of element)","self-tapping or self-drilling; see table","NOT included in element price; suggested quantity of screws 1-2 pcs per each facade element (depends on type and size of element)","self-tapping or self-drilling; see table","NOT included in element price; suggested quantity of screws 1-2 pcs per each facade element (depends on type and size of element)","self-tapping or self-drilling; see table","NOT included in element price; suggested quantity of screws 1-2 pcs per each facade element (depends on type and size of element)","self-tapping or self-drilling; see table","NOT included in element price; suggested quantity of screws 1-2 pcs per each facade element (depends on type and size of element)","self-tapping or self-drilling; see table","NOT included in element price; suggested quantity of screws 1-2 pcs per each facade element (depends on type and size of element)","self-tapping or self-drilling; see table","NOT included in element price; suggested quantity of screws 1-2 pcs per each facade element (depends on type and size of element)","self-tapping or self-drilling; see table","NOT included in element price; suggested quantity of screws 1-2 pcs per each facade element (depends on type and size of element)","self-tapping or self-drilling; see table","NOT included in element price; suggested quantity of screws 1-2 pcs per each facade element (depends on type and size of element)"]
["EPDM_Transversal_Gasket","m",null,"T052\n30014372\ncut to size for brick","included in element price; quantity of transversal (vertical) joint","T052\n30014372\ncut to size for brick","included in element price; quantity of transversal (vertical) joint","T052\n30014372\ncut to size for brick","included in element price; quantity of transversal (vertical) joint","T052\n30014372\ncut to size for brick","included in element price; quantity of transversal (vertical) joint","T052\n30014372\ncut to size for brick","included in element price; quantity of transversal (vertical) joint","T052\n30014372\ncut to size for brick","included in element price; quantity of transversal (vertical) joint","T052\n30014372\ncut to size for brick","included in element price; quantity of transversal (vertical) joint","T052\n30014372\ncut to size for brick","included in element price; quantity of transversal (vertical) joint","T052\n30014372\ncut to size for brick","included in element price; quantity of transversal (vertical) joint","T052\n30014372\ncut to size for brick","included in element price; quantity of transversal (vertical) joint","T052\n30014372\ncut to size for brick","included in element price; quantity of transversal (vertical) joint","T052\n30014372\ncut to size for brick","included in element price; quantity of transversal (vertical) joint","T052\n30014372\ncut to size for brick","included in element price; quantity of transversal (vertical) joint","T052\n30014372\ncut to size for brick","included in element price; quantity of transversal (vertical) joint","T052\n30014372\ncut to size for brick","included in element price; quantity of transversal (vertical) joint","T052\n30014372\ncut to size for brick","included in element price; quantity of transversal (vertical) joint","T052\n30014372\ncut to size for brick","included in element price; quantity of transversal (vertical) joint","T052\n30014372\ncut to size for brick","included in element price; quantity of transversal (vertical) joint"]
["Decorative_ALU_Extrusion","m",null,"A023 (HF40)\nSAP code colour specific\ncut to size for brick","included in element price; quantity of transversal (vertical) joint; supplied in 4 m lenghts; specify color","A097 (HF52)\nSAP code colour specific\ncut to size for brick ???\n30018981 tesnilo EPDM 20X20X15 ?","included in element price; quantity of transversal (vertical) joint; supplied in 4 m lenghts; specify color","A023 (HF40)\nSAP code colour specific\ncut to size for brick","included in element price; quantity of transversal (vertical) joint; supplied in 4 m lenghts; specify color","A097 (HF52)\nSAP code colour specific\ncut to size for brick ???\n30018981 tesnilo EPDM 20X20X15 ?","included in element price; quantity of transversal (vertical) joint; supplied in 4 m lenghts; specify color","A023 (HF40)\nSAP code colour specific\ncut to size for brick","included in element price; quantity of transversal (vertical) joint; supplied in 4 m lenghts; specify color","A097 (HF52)\nSAP code colour specific\ncut to size for brick ???\n30018981 tesnilo EPDM 20X20X15 ?","included in element price; quantity of transversal (vertical) joint; supplied in 4 m lenghts; specify color","A023 (HF40)\nSAP code colour specific\ncut to size for brick","included in element price; quantity of transversal (vertical) joint; supplied in 4 m lenghts; specify color","A097 (HF52)\nSAP code colour specific\ncut to size for brick ???\n30018981 tesnilo EPDM 20X20X15 ?","included in element price; quantity of transversal (vertical) joint; supplied in 4 m lenghts; specify color","A023 (HF40)\nSAP code colour specific\ncut to size for brick","included in element price; quantity of transversal (vertical) joint; supplied in 4 m lenghts; specify color","A097 (HF52)\nSAP code colour specific\ncut to size for brick ???\n30018981 tesnilo EPDM 20X20X15 ?","included in element price; quantity of transversal (vertical) joint; supplied in 4 m lenghts; specify color","A023 (HF40)\nSAP code colour specific\ncut to size for brick","included in element price; quantity of transversal (vertical) joint; supplied in 4 m lenghts; specify color","A097 (HF52)\nSAP code colour specific\ncut to size for brick ???\n30018981 tesnilo EPDM 20X20X15 ?","included in element price; quantity of transversal (vertical) joint; supplied in 4 m lenghts; specify color","A023 (HF40)\nSAP code colour specific\ncut to size for brick","included in element price; quantity of transversal (vertical) joint; supplied in 4 m lenghts; specify color","A097 (HF52)\nSAP code colour specific\ncut to size for brick ???\n30018981 tesnilo EPDM 20X20X15 ?","included in element price; quantity of transversal (vertical) joint; supplied in 4 m lenghts; specify color","A023 (HF40)\nSAP code colour specific\ncut to size for brick","included in element price; quantity of transversal (vertical) joint; supplied in 4 m lenghts; specify color","A097 (HF52)\nSAP code colour specific\ncut to size for brick ???\n30018981 tesnilo EPDM 20X20X15 ?","included in element price; quantity of transversal (vertical) joint; supplied in 4 m lenghts; specify color","A023 (HF40)\nSAP code colour specific\ncut to size for brick","included in element price; quantity of transversal (vertical) joint; supplied in 4 m lenghts; specify color","A097 (HF52)\nSAP code colour specific\ncut to size for brick ???\n30018981 tesnilo EPDM 20X20X15 ?","included in element price; quantity of transversal (vertical) joint; supplied in 4 m lenghts; specify color"]
["Mastic_seal_MS_polymer_based_or_PUR_based_required_for_EPDM_cube_and_internal_joint_sealing","pcs",null,null,"NOT included in element price; quantity as required by installer",null,"NOT included in element price; quantity as required by installer",null,"NOT included in element price; quantity as required by installer",null,"NOT included in element price; quantity as required by installer",null,"NOT included in element price; quantity as required by installer",null,"NOT included in element price; quantity as required by installer",null,"NOT included in element price; quantity as required by installer",null,"NOT included in element price; quantity as required by installer",null,"NOT included in element price; quantity as required by installer",null,"NOT included in element price; quantity as required by installer",null,"NOT included in element price; quantity as required by installer",null,"NOT included in element price; quantity as required by installer",null,"NOT included in element price; quantity as required by installer",null,"NOT included in element price; quantity as required by installer",null,"NOT included in element price; quantity as required by installer",null,"NOT included in element price; quantity as required by installer",null,"NOT included in element price; quantity as required by installer",null,"NOT included in element price; quantity as required by installer"]
["Installation_Kit_Package_includes_spacer_crosses_wooden_pad_spray_with_soapy_water_and_installation_manual","pcs",null,"Installation Kit Package - horizontal","included in element price; quantity 1 pcs per order plus additional 1 pcs for each 500 m2","Installation Kit Package - horizontal","included in element price; quantity 1 pcs per order plus additional 1 pcs for each 500 m2","Installation Kit Package - horizontal\n30007109\nInstallation kit package - Brick\n30018303\nNavodilo (imamo za B) - potrebno dopolnit.\nKriž od B je ustrezen.\n\nKriž za Brick ni potreben.","included in element price; quantity 1 pcs per order plus additional 1 pcs for each 500 m2","Installation Kit Package - horizontal\n30007109\nInstallation kit package - Brick\n30018303\nNavodilo (imamo za B) - potrebno dopolnit.\nKriž od B je ustrezen.\n\nKriž za Brick ni potreben.","included in element price; quantity 1 pcs per order plus additional 1 pcs for each 500 m2","Installation Kit Package - horizontal\n30007109\nInstallation kit package - Brick\n30018303\nNavodilo - potrebno pripravit.\nKriž od F je ustrezen.\n\nKriž za Brick ni potreben.","included in element price; quantity 1 pcs per order plus additional 1 pcs for each 500 m2","Installation Kit Package - horizontal\n30007109\nInstallation kit package - Brick\n30018303\nNavodilo - potrebno pripravit.\nKriž (od F) je ustrezen.\n\nKriž za Brick ni potreben.","included in element price; quantity 1 pcs per order plus additional 1 pcs for each 500 m2","Installation Kit Package - horizontal","included in element price; quantity 1 pcs per order plus additional 1 pcs for each 500 m2","Installation Kit Package - horizontal","included in element price; quantity 1 pcs per order plus additional 1 pcs for each 500 m2","Installation Kit Package - horizontal\n30007109\nInstallation kit package - Brick\n30018303\nNavodilo (imamo za B) - potrebno dopolnit.\nKriž od B je ustrezen.\n\nKriž za Brick ni potreben.","included in element price; quantity 1 pcs per order plus additional 1 pcs for each 500 m2","Installation Kit Package - horizontal\n30007109\nInstallation kit package - Brick\n30018303\nNavodilo (imamo za B) - potrebno dopolnit.\nKriž od B je ustrezen.\n\nKriž za Brick ni potreben.","included in element price; quantity 1 pcs per order plus additional 1 pcs for each 500 m2","Installation Kit Package - horizontal\n30007109\nInstallation kit package - Brick\n30018303\nNavodilo - potrebno pripravit.\nKriž od F je ustrezen.\n\nKriž za Brick ni potreben.","included in element price; quantity 1 pcs per order plus additional 1 pcs for each 500 m2","Installation Kit Package - horizontal\n30007109\nInstallation kit package - Brick\n30018303\nNavodilo - potrebno pripravit.\nKriž (od F) je ustrezen.\n\nKriž za Brick ni potreben.","included in element price; quantity 1 pcs per order plus additional 1 pcs for each 500 m2","Installation Kit Package - horizontal","included in element price; quantity 1 pcs per order plus additional 1 pcs for each 500 m2","Installation Kit Package - horizontal","included in element price; quantity 1 pcs per order plus additional 1 pcs for each 500 m2","Installation Kit Package - horizontal\n30007109\nInstallation kit package - Brick\n30018303\nNavodilo (imamo za B) - potrebno dopolnit.\nKriž od B je ustrezen.\n\nKriž za Brick ni potreben.","included in element price; quantity 1 pcs per order plus additional 1 pcs for each 500 m2","Installation Kit Package - horizontal\n30007109\nInstallation kit package - Brick\n30018303\nNavodilo (imamo za B) - potrebno dopolnit.\nKriž od B je ustrezen.\n\nKriž za Brick ni potreben.","included in element price; quantity 1 pcs per order plus additional 1 pcs for each 500 m2","Installation Kit Package - horizontal\n30007109\nInstallation kit package - Brick\n30018303\nNavodilo - potrebno pripravit.\nKriž od F je ustrezen.\n\nKriž za Brick ni potreben.","included in element price; quantity 1 pcs per order plus additional 1 pcs for each 500 m2","Installation Kit Package - horizontal\n30007109\nInstallation kit package - Brick\n30018303\nNavodilo - potrebno pripravit.\nKriž (od F) je ustrezen.\n\nKriž za Brick ni potreben.","included in element price; quantity 1 pcs per order plus additional 1 pcs for each 500 m2"]
["Electrochemical_potential_insulation_tape_self_adhesive_PE_or_EPDM_dimension_05x100_120","mm",null,null,"NOT included in element price; quantity as required by installer",null,"NOT included in element price; quantity as required by installer",null,"NOT included in element price; quantity as required by installer",null,"NOT included in element price; quantity as required by installer",null,"NOT included in element price; quantity as required by installer",null,"NOT included in element price; quantity as required by installer",null,"NOT included in element price; quantity as required by installer",null,"NOT included in element price; quantity as required by installer",null,"NOT included in element price; quantity as required by installer",null,"NOT included in element price; quantity as required by installer",null,"NOT included in element price; quantity as required by installer",null,"NOT included in element price; quantity as required by installer",null,"NOT included in element price; quantity as required by installer",null,"NOT included in element price; quantity as required by installer",null,"NOT included in element price; quantity as required by installer",null,"NOT included in element price; quantity as required by installer",null,"NOT included in element price; quantity as required by installer",null,"NOT included in element price; quantity as required by installer"]
["EPDM_Cube_Gasket_26x26x30","pcs",null,"Installation kit package - Brick","NOT included in element price; quantity as per details","Installation kit package - Brick","NOT included in element price; quantity as per details","T022\n30007025","NOT included in element price; quantity as per details","not required","NOT included in element price; quantity as per details","T022\n30007025","NOT included in element price; quantity as per details","not required","NOT included in element price; quantity as per details","Installation kit package - Brick","NOT included in element price; quantity as per details","Installation kit package - Brick","NOT included in element price; quantity as per details","T022\n30007025","NOT included in element price; quantity as per details","not required","NOT included in element price; quantity as per details","T022\n30007025","NOT included in element price; quantity as per details","not required","NOT included in element price; quantity as per details","Installation kit package - Brick","NOT included in element price; quantity as per details","Installation kit package - Brick","NOT included in element price; quantity as per details","T022\n30007025","NOT included in element price; quantity as per details","not required","NOT included in element price; quantity as per details","T022\n30007025","NOT included in element price; quantity as per details","not required","NOT included in element price; quantity as per details"]
["EPDM_drip_element","pcs",null,30018303,"NOT included in price - quantity 1 pcs for each transversal (vertical) joint in connection to drip detail and above window/door/opening profile",30018303,"NOT included in price - quantity 1 pcs for each transversal (vertical) joint in connection to drip detail and above window/door/opening profile","T051\n30006438","NOT included in price - quantity 1 pcs for each transversal (vertical) joint in connection to drip detail and above window/door/opening profile","T051\n30006438\nxxx Support of decorative profile","NOT included in price - quantity 1 pcs for each transversal (vertical) joint in connection to drip detail and above window/door/opening profile","T051\n30006438","NOT included in price - quantity 1 pcs for each transversal (vertical) joint in connection to drip detail and above window/door/opening profile","T051\n30006438\nxxx Support of decorative profile","NOT included in price - quantity 1 pcs for each transversal (vertical) joint in connection to drip detail and above window/door/opening profile",30018303,"NOT included in price - quantity 1 pcs for each transversal (vertical) joint in connection to drip detail and above window/door/opening profile",30018303,"NOT included in price - quantity 1 pcs for each transversal (vertical) joint in connection to drip detail and above window/door/opening profile","T051\n30006438","NOT included in price - quantity 1 pcs for each transversal (vertical) joint in connection to drip detail and above window/door/opening profile","T051\n30006438\nxxx Support of decorative profile","NOT included in price - quantity 1 pcs for each transversal (vertical) joint in connection to drip detail and above window/door/opening profile","T051\n30006438","NOT included in price - quantity 1 pcs for each transversal (vertical) joint in connection to drip detail and above window/door/opening profile","T051\n30006438\nxxx Support of decorative profile","NOT included in price - quantity 1 pcs for each transversal (vertical) joint in connection to drip detail and above window/door/opening profile",30018303,"NOT included in price - quantity 1 pcs for each transversal (vertical) joint in connection to drip detail and above window/door/opening profile",30018303,"NOT included in price - quantity 1 pcs for each transversal (vertical) joint in connection to drip detail and above window/door/opening profile","T051\n30006438","NOT included in price - quantity 1 pcs for each transversal (vertical) joint in connection to drip detail and above window/door/opening profile","T051\n30006438\nxxx Support of decorative profile","NOT included in price - quantity 1 pcs for each transversal (vertical) joint in connection to drip detail and above window/door/opening profile","T051\n30006438","NOT included in price - quantity 1 pcs for each transversal (vertical) joint in connection to drip detail and above window/door/opening profile","T051\n30006438\nxxx Support of decorative profile","NOT included in price - quantity 1 pcs for each transversal (vertical) joint in connection to drip detail and above window/door/opening profile"]
["Stainless_drip_element","pcs",null,"O655\n30026912","NOT included in price - quantity 1 pcs for each transversal (vertical) joint in connection to detail with face flashing for window/door/opening","O655\n30026912","NOT included in price - quantity 1 pcs for each transversal (vertical) joint in connection to detail with face flashing for window/door/opening","O655\n30026912","NOT included in price - quantity 1 pcs for each transversal (vertical) joint in connection to detail with face flashing for window/door/opening","O655\n30026912","NOT included in price - quantity 1 pcs for each transversal (vertical) joint in connection to detail with face flashing for window/door/opening","O655\n30026912","NOT included in price - quantity 1 pcs for each transversal (vertical) joint in connection to detail with face flashing for window/door/opening","O655\n30026912","NOT included in price - quantity 1 pcs for each transversal (vertical) joint in connection to detail with face flashing for window/door/opening","O655\n30026912","NOT included in price - quantity 1 pcs for each transversal (vertical) joint in connection to detail with face flashing for window/door/opening","O655\n30026912","NOT included in price - quantity 1 pcs for each transversal (vertical) joint in connection to detail with face flashing for window/door/opening","O655\n30026912","NOT included in price - quantity 1 pcs for each transversal (vertical) joint in connection to detail with face flashing for window/door/opening","O655\n30026912","NOT included in price - quantity 1 pcs for each transversal (vertical) joint in connection to detail with face flashing for window/door/opening","O655\n30026912","NOT included in price - quantity 1 pcs for each transversal (vertical) joint in connection to detail with face flashing for window/door/opening","O655\n30026912","NOT included in price - quantity 1 pcs for each transversal (vertical) joint in connection to detail with face flashing for window/door/opening","O655\n30026912","NOT included in price - quantity 1 pcs for each transversal (vertical) joint in connection to detail with face flashing for window/door/opening","O655\n30026912","NOT included in price - quantity 1 pcs for each transversal (vertical) joint in connection to detail with face flashing for window/door/opening","O655\n30026912","NOT included in price - quantity 1 pcs for each transversal (vertical) joint in connection to detail with face flashing for window/door/opening","O655\n30026912","NOT included in price - quantity 1 pcs for each transversal (vertical) joint in connection to detail with face flashing for window/door/opening","O655\n30026912","NOT included in price - quantity 1 pcs for each transversal (vertical) joint in connection to detail with face flashing for window/door/opening","O655\n30026912","NOT included in price - quantity 1 pcs for each transversal (vertical) joint in connection to detail with face flashing for window/door/opening"]
["Load_Bearing_Fixing_Plate","pcs",null,"N637\n30006944","Included in element price, depending on type of element, any additional elements required  for i.e. connection to other façade system not included, quantity subject to design information ","N637\n30006944","Included in element price, depending on type of element, any additional elements required  for i.e. connection to other façade system not included, quantity subject to design information ","N637\n30006944","Included in element price, depending on type of element, any additional elements required  for i.e. connection to other façade system not included, quantity subject to design information ","N637\n30006944","Included in element price, depending on type of element, any additional elements required  for i.e. connection to other façade system not included, quantity subject to design information ","N637\n30006944","Included in element price, depending on type of element, any additional elements required  for i.e. connection to other façade system not included, quantity subject to design information ","N637\n30006944","Included in element price, depending on type of element, any additional elements required  for i.e. connection to other façade system not included, quantity subject to design information ","N637\n30006944","Included in element price, depending on type of element, any additional elements required  for i.e. connection to other façade system not included, quantity subject to design information ","N637\n30006944","Included in element price, depending on type of element, any additional elements required  for i.e. connection to other façade system not included, quantity subject to design information ","N637\n30006944","Included in element price, depending on type of element, any additional elements required  for i.e. connection to other façade system not included, quantity subject to design information ","N637\n30006944","Included in element price, depending on type of element, any additional elements required  for i.e. connection to other façade system not included, quantity subject to design information ","N637\n30006944","Included in element price, depending on type of element, any additional elements required  for i.e. connection to other façade system not included, quantity subject to design information ","N637\n30006944","Included in element price, depending on type of element, any additional elements required  for i.e. connection to other façade system not included, quantity subject to design information ","N637\n30006944","Included in element price, depending on type of element, any additional elements required  for i.e. connection to other façade system not included, quantity subject to design information ","N637\n30006944","Included in element price, depending on type of element, any additional elements required  for i.e. connection to other façade system not included, quantity subject to design information ","N637\n30006944","Included in element price, depending on type of element, any additional elements required  for i.e. connection to other façade system not included, quantity subject to design information ","N637\n30006944","Included in element price, depending on type of element, any additional elements required  for i.e. connection to other façade system not included, quantity subject to design information ","N637\n30006944","Included in element price, depending on type of element, any additional elements required  for i.e. connection to other façade system not included, quantity subject to design information ","N637\n30006944","Included in element price, depending on type of element, any additional elements required  for i.e. connection to other façade system not included, quantity subject to design information "]
["Mechanical_gripper_for_horizontal_installation","pcs",null,"PHQ for each panel thickness","NOT included in element price; quantity as required by installer","PHQ for each panel thickness","NOT included in element price; quantity as required by installer","PHQ for each panel thickness","NOT included in element price; quantity as required by installer","PHQ for each panel thickness","NOT included in element price; quantity as required by installer","PHQ for each panel thickness","NOT included in element price; quantity as required by installer","PHQ for each panel thickness","NOT included in element price; quantity as required by installer","PHQ for each panel thickness","NOT included in element price; quantity as required by installer","PHQ for each panel thickness","NOT included in element price; quantity as required by installer","PHQ for each panel thickness","NOT included in element price; quantity as required by installer","PHQ for each panel thickness","NOT included in element price; quantity as required by installer","PHQ for each panel thickness","NOT included in element price; quantity as required by installer","PHQ for each panel thickness","NOT included in element price; quantity as required by installer","PHQ for each panel thickness","NOT included in element price; quantity as required by installer","PHQ for each panel thickness","NOT included in element price; quantity as required by installer","PHQ for each panel thickness","NOT included in element price; quantity as required by installer","PHQ for each panel thickness","NOT included in element price; quantity as required by installer","PHQ for each panel thickness","NOT included in element price; quantity as required by installer","PHQ for each panel thickness","NOT included in element price; quantity as required by installer"]
["Mastic_seal_MS_polymer_based_or_PUR_based_required_for_EPDM_cube_and_internal_joint_sealing","pcs",null,null,"NOT included in element price; quantity as required by installer",null,"NOT included in element price; quantity as required by installer",null,"NOT included in element price; quantity as required by installer",null,"NOT included in element price; quantity as required by installer",null,"NOT included in element price; quantity as required by installer",null,"NOT included in element price; quantity as required by installer",null,"NOT included in element price; quantity as required by installer",null,"NOT included in element price; quantity as required by installer",null,"NOT included in element price; quantity as required by installer",null,"NOT included in element price; quantity as required by installer",null,"NOT included in element price; quantity as required by installer",null,"NOT included in element price; quantity as required by installer",null,"NOT included in element price; quantity as required by installer",null,"NOT included in element price; quantity as required by installer",null,"NOT included in element price; quantity as required by installer",null,"NOT included in element price; quantity as required by installer",null,"NOT included in element price; quantity as required by installer",null,"NOT included in element price; quantity as required by installer"]
[]
[]
[]
[]
[]
[]
[]
[]
[]
[]
[]
[]
[]
[]
[]
[]
[]
[]
[]
[null,null,null,"ODKAPNIK SPODAJ 31X38X66 EPDM",null,30006438]
[null,null,null,"ODKAPNIK SPODAJ 31X38X66 EPDM",null,602247]
[null,null,null,"ODKAPNIK SPODAJ QB 32X22X176 NER (01046)",null,30027664]
[null,null,null,"ODKAPNIK SPODAJ QF 7X44X70 NER. (01256)",null,30025355]
[null,null,null,"ODKAPNIK SPOJA 3-PAN.-OPEČNA  3.7X44X92",null,30007027]
[null,null,null,"ODKAPNIK SPOJA 4-PAN.HORIZ. QFB 3X44X140",null,30025013]
[null,null,null,"ODKAPNIK SPOJA 4-PANELOV FUSION 7X44X119",null,30012038]
[null,null,null,"ODKAPNIK SPOJA 4-PANELOV HORIZ. 3X44X156",null,30006439]
[null,null,null,"ODKAPNIK SPOJA 4-PANELOV HORIZ. 3X44X156",null,30014945]
[null,null,null,"ODKAPNIK SPOJA 4-PANELOV HORIZ. 3X44X156",null,602244]
[null,null,null,"ODKAPNIK TESNILA 50X60 NER. QF (01259)",null,30026913]
[null,null,null,"ODKAPNIK TESNILA 50X85 NER. QB (0655)",null,30026912]
[]
[]
[]
[]
[null,null,null,"PAKET MONTAŽNI MALI QBISS BRICK",null,30018303]
[null,null,null,"PAKET MONTAŽNI MALI QBISS FUSION",null,30012195]
[null,null,null,"PAKET MONTAŽNI MALI QBISS HORIZONTAL",null,30007109]
[]
[null,null,null,"PAKET MONTAŽNI MALI QBISS VERTICAL",null,30030437]
[]
[]
[null,null,null,"PAKET MONTAŽNI QBISS SCREEN H",null,30029187]
[null,null,null,"PAKET MONTAŽNI QBISS SCREEN H FB",null,30029188]

{"sheet":"UPDATES","index":11,"n_rows":2,"n_cols":2,"rows_kept":2,"cut":false,"hidden":true,"merged":[]}
["Version","What is new"]
["1.0","Release"]

{"sheet":"Data 1","index":12,"n_rows":147,"n_cols":17,"rows_kept":147,"cut":false,"hidden":true,"merged":[[145,1,145,5],[146,1,146,5]]}
["Data"]
["Type of cladding  system","System"]
["Horizontal"]
["Vertical"]
["Vertical_brick"]
["Soffit"]
[]
[]
["Joint","Horizontal","Vertical","Horizontal_brick","Vertical_brick","Horizontal_asymmetrical_brick","Soffit"]
["B-B","B-B","B-B","B-B","B-B","B-B","B-B"]
["B-BF","B-BF","B-BF","B-BF","B-BF","B-BF","B-BF"]
["BF-B","BF-B","BF-B","BF-B","BF-B","BF-B","BF-B"]
["BF-BF","BF-BF","BF-BF","BF-BF","BF-BF","BF-BF","BF-BF"]
["F-B","F-B",null,"F-B",null,"F-B","F-B"]
["F-BF","F-BF",null,"F-BF",null,"F-BF","F-BF"]
[]
["Joint","Horizontal","Vertical","Horizontal_brick","Vertical_brick","Horizontal_asymmetrical_brick","Soffit"]
["B-B","B_B_Horizontal","B_B_Vertical","B_B_Horizontal_brick","B_B_Vertical_brick","B_B_Horizontal_asymmetrical_brick","B_B_Soffit"]
["B-BF","B_BF_Horizontal","B_BF_Vertical","B_BF_Horizontal_brick","B_BF_Vertical_brick","B_BF_Horizontal_asymmetrical_brick","B_BF_Soffit"]
["BF-B","BF_B_Horizontal","BF_B_Vertical","BF_B_Horizontal_brick","BF_B_Vertical_brick","BF_B_Horizontal_asymmetrical_brick","BF_B_Soffit"]
["BF-BF","BF_BF_Horizontal","BF_BF_Vertical","BF_BF_Horizontal_brick","BF_BF_Vertical_brick","BF_BF_Horizontal_asymmetrical_brick","BF_BF_Soffit"]
["F-B","F_B_Horizontal",null,"F_B_Horizontal_brick",null,"F_B_Horizontal_asymmetrical_brick","F_B_Soffit"]
["F-BF","F_BF_Horizontal",null,"F_BF_Horizontal_brick",null,"F_BF_Horizontal_asymmetrical_brick","F_BF_Soffit"]
[]
[]
["Joint","Picture"]
[{"$f":"B18","v":"B_B_Horizontal"}]
["B_BF_Horizontal"]
["BF_B_Horizontal"]
["BF_BF_Horizontal"]
["F_B_Horizontal"]
["F_BF_Horizontal"]
[{"$f":"C18","v":"B_B_Vertical"}]
[{"$f":"C19","v":"B_BF_Vertical"}]
[{"$f":"C20","v":"BF_B_Vertical"}]
[{"$f":"C21","v":"BF_BF_Vertical"}]
[{"$f":"D18","v":"B_B_Horizontal_brick"}]
["B_BF_Horizontal_brick"]
["BF_B_Horizontal_brick"]
["BF_BF_Horizontal_brick"]
["F_B_Horizontal_brick"]
["F_BF_Horizontal_brick"]
[{"$f":"E18","v":"B_B_Vertical_brick"}]
[{"$f":"E19","v":"B_BF_Vertical_brick"}]
[{"$f":"E20","v":"BF_B_Vertical_brick"}]
[{"$f":"E21","v":"BF_BF_Vertical_brick"}]
[{"$f":"F18","v":"B_B_Horizontal_asymmetrical_brick"}]
["B_BF_Horizontal_asymmetrical_brick"]
["BF_B_Horizontal_asymmetrical_brick"]
["BF_BF_Horizontal_asymmetrical_brick"]
["F_B_Horizontal_asymmetrical_brick"]
["F_BF_Horizontal_asymmetrical_brick"]
["B_B_Soffit"]
["B_BF_Soffit"]
["BF_B_Soffit"]
["BF_BF_Soffit"]
["F_B_Soffit"]
["F_BF_Soffit"]
[]
[]
[]
["L-corner elements","Vertical",null,null,"Horizontal"]
[]
["Type of assembly"]
["No_selection"]
[null,null,null,null,"Transversal_corner"]
["Longitudinal_corner"]
[]
[]
["Joint","Transversal_corner","Longitudinal_corner","No_selection"]
[null,"B-B","B-B","No_selection"]
[null,"B-BF","B-BF"]
[null,"BF-B","BF-B"]
[null,"BF-BF","BF-BF"]
[null,"F-B"]
[null,"F-BF"]
[]
[]
["Joint","Transversal_corner","Longitudinal_corner","No_selection"]
["B-B","B_B_Transversal_corner","B_B_Longitudinal_corner"]
["B-BF","B_BF_Transversal_corner","B_BF_Longitudinal_corner"]
["BF-B","BF_B_Transversal_corner","BF_B_Longitudinal_corner"]
["BF-BF","BF_BF_Transversal_corner","BF_BF_Longitudinal_corner"]
["F-B","F_B_Transversal_corner"]
["F-BF","F_BF_Transversal_corner"]
["No_selection",null,null,"No_selection1"]
[]
[]
["B_B_Transversal_corner"]
["B_BF_Transversal_corner"]
["BF_B_Transversal_corner"]
["BF_BF_Transversal_corner"]
["F_B_Transversal_corner"]
["F_BF_Transversal_corner"]
["B_Longitudinal_corner"]
["B_BF_Longitudinal_corner"]
["BF_B_Longitudinal_corner"]
["BF_BF_Longitudinal_corner"]
["No_selection1"]
[]
[]
["Element type","Horizontal","Vertical","Horizontal_brick","Vertical_brick","Horizontal_asymmetrical_brick","Soffit",null,null,null,null,"Corner_and_curved",null,null,null,"Longitudinal1","Transversal1"]
[]
[null,1,1,1,1,1,1,null,null,null,null,1,null,null,null,1,1]
[null,2,3,2,3,2,2,null,null,null,null,2,null,null,null,3,2]
[null,3,5,3,5,3,3,null,null,null,null,3,null,null,null,5,3]
[null,4,7,4,7,4,4,null,null,null,null,4,null,null,null,6,4]
[null,5,8,5,8,5,5,null,null,null,null,5,null,null,null,7,5]
[null,6,9,6,9,6,6,null,null,null,null,6,null,null,null,8,6]
[null,7,null,7,null,7,7,null,null,null,null,7,null,null,null,9,7]
[null,8,null,8,null,8,8,null,null,null,null,8,null,null,null,null,8]
[null,9,null,9,null,9,9,null,null,null,null,9,null,null,null,null,9]
[]
[]
[]
[]
[]
[]
["Curved elements"]
[]
["Curved elements type"]
["No_selection"]
["Longitudinal"]
["Transversal"]
[]
[]
["U_corner_element"]
["No_selection"]
["U_corner_element"]
[]
[]
[]
[]
[]
["U_corner_joint_possibilities"]
["No_selection"]
["B"]
["B_BF"]
["BF_B"]
["BF_BF"]
["F_B"]
["F_BF"]
[]
[]
["Curved_elements_section"]
["Longitudinal_"]
["Transversal_"]

{"sheet":"Data 2","index":13,"n_rows":99,"n_cols":23,"rows_kept":99,"cut":false,"hidden":true,"merged":[]}
["External colour","External coating",null,null,"Internal colour","Internal coating",null,null,"Thickness of external steel sheet",null,null,null,null,"External steel sheet profilation",null,null,null,"Thickness of elements",null,null,null,null,"Mineral wool"]
[null,null,null,null,null,null,null,null,0.7,null,null,null,null,"G"]
["White","PUR-PA 50",null,null,"RAL 9010","SP 25",null,null,null,null,null,null,null,null,null,null,null,80,null,null,null,null,"Power T"]
["Grey White","PUR-PA 50",null,null,"RAL 9002","PVDF 25",null,null,null,null,null,null,null,null,null,null,null,100,null,null,null,null,"Power S"]
["Cream","PUR-PA 50",null,null,"RAL 1015","PVDF 35",null,null,"Thickness of internal steel sheet",null,null,null,null,"Internal steel sheet profilation",null,null,null,120,null,null,null,null,"Perform C"]
["Light Grey","PUR-PA 50",null,null,"RAL7035","PUR/PA 50",null,null,null,null,null,null,null,null,null,null,null,133]
["Bright Yellow","PUR-PA 50",null,null,"RAL 7038","HPS 200",null,null,0.7,null,null,null,null,"\"G\"",null,null,null,150]
["Basalt Grey","PUR-PA 50",null,null,"RAL 7046","PRISMA",null,null,0.67500000000000004,null,null,null,null,"\"S\"",null,null,null,172]
["Sapphire Blue","PUR-PA 50",null,null,"RAL 9006","Stainless Steel",null,null,null,null,null,null,null,"\"V\"",null,null,null,200]
["Traffic Red","PUR-PA 50",null,null,"RAL 9007","RAL 9001 PVCF 150",null,null,null,null,null,null,null,"\"V2\"",null,null,null,240]
["Anthracite","PUR-PA 50",null,null,"RAL 3020","RAL 9003 PVCF 120",null,null,null,null,null,null,null,"\"M\""]
["Black","PUR-PA 50",null,null,"RAL 6005","RAL 9010 PVCF 150",null,null,null,null,null,null,null,"\"M3\""]
["Light Silver","PUR-PA 50",null,null,"RAL 5010","Other"]
["Silver","PUR-PA 50",null,null,"RAL 7016"]
["Dark Silver","PUR-PA 50",null,null,"White","PUR-PA 50"]
["Light Graphite","PUR-PA 50",null,null,"Grey White","PUR-PA 50"]
["Seren Anthracite","PVDF 40",null,null,"Cream","PUR-PA 50"]
["Seren White","PVDF 40",null,null,"Light Grey","PUR-PA 50"]
["Seren Silver","PVDF 40",null,null,"Bright Yellow","PUR-PA 50"]
["Seren Gold","PVDF 40",null,null,"Basalt Grey","PUR-PA 50"]
["Seren Copper","PVDF 40",null,null,"Sapphire Blue","PUR-PA 50"]
["Seren Black","PVDF 40",null,null,"Traffic Red","PUR-PA 50"]
["Seren Midas","PVDF 40",null,null,"Anthracite","PUR-PA 50"]
["Sirius Sparkle","PVDF 40",null,null,"Black","PUR-PA 50"]
["Orion Sparkle","PVDF 40",null,null,"Light Silver","PUR-PA 50"]
["Zeus Sparkle","PVDF 40",null,null,"Silver","PUR-PA 50"]
["Quadro Lucido","Stainless steel",null,null,"Dark Silver","PUR-PA 50"]
["Dots Lucido","Stainless steel",null,null,"Light Graphite","PUR-PA 50"]
["2WL Lucido","Stainless steel",null,null,"Seren Anthracite","PVDF 40"]
["5WL Lucido","Stainless steel",null,null,"Seren White","PVDF 40"]
["Pelle Lucido","Stainless steel",null,null,"Seren Silver","PVDF 40"]
["Other",null,null,null,"Seren Gold","PVDF 40"]
[null,null,null,null,"Seren Copper","PVDF 40"]
[null,null,null,null,"Seren Black","PVDF 40"]
[null,null,null,null,"Seren Midas","PVDF 40"]
[null,null,null,null,"Sirius Sparkle","PVDF 40"]
[null,null,null,null,"Orion Sparkle","PVDF 40"]
[null,null,null,null,"Zeus Sparkle","PVDF 40"]
[null,null,null,null,"Quadro Lucido","Stainless Steel"]
[null,null,null,null,"Dots Lucido","Stainless Steel"]
[null,null,null,null,"2WL Lucido","Stainless Steel"]
[null,null,null,null,"5WL Lucido","Stainless Steel"]
[null,null,null,null,"Pelle Lucido","Stainless Steel"]
[]
[]
[]
[]
[]
[]
[]
[]
[]
[]
["Transport"]
[]
["Transport type"]
["No_selection"]
["Truck"]
["Ship_containers"]
["Train"]
["Air_transport"]
[]
[]
["Type of packaging"]
["No selection"]
["Standard packaging"]
["Extended packaging"]
[]
[]
["Additional packaging elements"]
["Lifting bands"]
["No selection"]
["YES"]
["NO"]
[]
["Reinforcement pallets"]
["No selection"]
["YES"]
["NO"]
[]
["EPS support blocks"]
["No selection"]
["YES "]
["NO"]
[]
[]
[]
["Certificate requirement"]
["None"]
["FM approval"]
["CSTB France"]
["LPCB UK Insurance approval"]
["Ü (Zulassung) Germany"]
["BREEAM"]
["BREEAM Netherland"]
["LEED"]
["FOOD SAFE"]
["DGNB"]
["Other"]